VENDOR,CATEGORY,AMOUNT,PAYMENT DATE
"A M C MECHANICAL, INC.",OUTSIDE SERVICES,"$15,040.60 ",1/5/2016
"A M C MECHANICAL, INC.",OUTSIDE SERVICES,"$1,462.63 ",1/25/2016
"A M C MECHANICAL, INC.",OUTSIDE SERVICES,"$11,717.71 ",2/1/2016
"A M C MECHANICAL, INC.",OUTSIDE SERVICES,$533.50 ,3/15/2016
"A M C MECHANICAL, INC.",OUTSIDE SERVICES,"$6,383.59 ",3/22/2016
"A M C MECHANICAL, INC.",OUTSIDE SERVICES,"$2,502.07 ",3/28/2016
"A M C MECHANICAL, INC.",OUTSIDE SERVICES,"$3,425.82 ",4/27/2016
"A M C MECHANICAL, INC.",OUTSIDE SERVICES,"$21,183.88 ",5/26/2016
"A M C MECHANICAL, INC.",OUTSIDE SERVICES,$796 ,5/31/2016
"A M C MECHANICAL, INC.",OUTSIDE SERVICES,"$2,106.01 ",6/14/2016
"A M C MECHANICAL, INC.",MATERIALS - NON-INVENTORY,"$2,362.95 ",7/26/2016
"A M C MECHANICAL, INC.",OUTSIDE SERVICES,"$1,230 ",7/26/2016
"A M C MECHANICAL, INC.",MATERIALS - NON-INVENTORY,"$1,111.31 ",8/23/2016
"A M C MECHANICAL, INC.",MATERIALS - NON-INVENTORY,"$11,466.17 ",8/29/2016
"A M C MECHANICAL, INC.",OUTSIDE SERVICES,"$1,528.45 ",9/12/2016
"A M C MECHANICAL, INC.",OUTSIDE SERVICES,"$1,347 ",10/13/2016
"A M C MECHANICAL, INC.",MATERIALS - NON-INVENTORY,"$8,587.76 ",11/14/2016
"A M C MECHANICAL, INC.",OUTSIDE SERVICES,"$10,071.88 ",11/14/2016
"A M C MECHANICAL, INC.",MATERIALS - NON-INVENTORY,"$1,092.75 ",11/28/2016
"A M C MECHANICAL, INC.",OUTSIDE SERVICES,"$1,635.73 ",11/28/2016
"A M C MECHANICAL, INC.",OUTSIDE SERVICES,$720.64 ,12/15/2016
"A M C MECHANICAL, INC.",OUTSIDE SERVICES,"$1,493 ",12/27/2016
A-ALERT EXTERMINATING SERVICE,OUTSIDE SERVICES,$30 ,1/6/2016
A-ALERT EXTERMINATING SERVICE,OUTSIDE SERVICES,$585 ,1/13/2016
A-ALERT EXTERMINATING SERVICE,OUTSIDE SERVICES,$435 ,1/13/2016
A-ALERT EXTERMINATING SERVICE,OUTSIDE SERVICES,"$1,025 ",1/13/2016
A-ALERT EXTERMINATING SERVICE,OUTSIDE SERVICES,$75 ,1/19/2016
A-ALERT EXTERMINATING SERVICE,OUTSIDE SERVICES,"$2,075 ",1/19/2016
A-ALERT EXTERMINATING SERVICE,OUTSIDE SERVICES,$75 ,1/27/2016
A-ALERT EXTERMINATING SERVICE,OUTSIDE SERVICES,$420 ,1/27/2016
A-ALERT EXTERMINATING SERVICE,OUTSIDE SERVICES,$225 ,2/4/2016
A-ALERT EXTERMINATING SERVICE,OUTSIDE SERVICES,$70 ,2/4/2016
A-ALERT EXTERMINATING SERVICE,OUTSIDE SERVICES,$45 ,2/8/2016
A-ALERT EXTERMINATING SERVICE,OUTSIDE SERVICES,$105 ,2/8/2016
A-ALERT EXTERMINATING SERVICE,OUTSIDE SERVICES,$540 ,2/8/2016
A-ALERT EXTERMINATING SERVICE,OUTSIDE SERVICES,$285 ,2/9/2016
A-ALERT EXTERMINATING SERVICE,OUTSIDE SERVICES,$45 ,2/17/2016
A-ALERT EXTERMINATING SERVICE,OUTSIDE SERVICES,$75 ,2/17/2016
A-ALERT EXTERMINATING SERVICE,OUTSIDE SERVICES,$350 ,2/17/2016
A-ALERT EXTERMINATING SERVICE,OUTSIDE SERVICES,$240 ,2/18/2016
A-ALERT EXTERMINATING SERVICE,OUTSIDE SERVICES,$30 ,2/22/2016
A-ALERT EXTERMINATING SERVICE,OUTSIDE SERVICES,$430 ,2/22/2016
A-ALERT EXTERMINATING SERVICE,OUTSIDE SERVICES,$150 ,2/23/2016
A-ALERT EXTERMINATING SERVICE,OUTSIDE SERVICES,$75 ,2/29/2016
A-ALERT EXTERMINATING SERVICE,OUTSIDE SERVICES,$75 ,3/1/2016
A-ALERT EXTERMINATING SERVICE,OUTSIDE SERVICES,$150 ,3/14/2016
A-ALERT EXTERMINATING SERVICE,OUTSIDE SERVICES,$610 ,3/14/2016
A-ALERT EXTERMINATING SERVICE,OUTSIDE SERVICES,$45 ,3/15/2016
A-ALERT EXTERMINATING SERVICE,OUTSIDE SERVICES,$75 ,3/21/2016
A-ALERT EXTERMINATING SERVICE,OUTSIDE SERVICES,$75 ,3/22/2016
A-ALERT EXTERMINATING SERVICE,OUTSIDE SERVICES,$225 ,3/29/2016
A-ALERT EXTERMINATING SERVICE,OUTSIDE SERVICES,$30 ,3/29/2016
A-ALERT EXTERMINATING SERVICE,OUTSIDE SERVICES,$690 ,3/29/2016
A-ALERT EXTERMINATING SERVICE,OUTSIDE SERVICES,$75 ,4/11/2016
A-ALERT EXTERMINATING SERVICE,OUTSIDE SERVICES,$645 ,4/11/2016
A-ALERT EXTERMINATING SERVICE,OUTSIDE SERVICES,$120 ,4/18/2016
A-ALERT EXTERMINATING SERVICE,OUTSIDE SERVICES,$115 ,4/18/2016
A-ALERT EXTERMINATING SERVICE,OUTSIDE SERVICES,$150 ,4/25/2016
A-ALERT EXTERMINATING SERVICE,OUTSIDE SERVICES,$30 ,4/25/2016
A-ALERT EXTERMINATING SERVICE,OUTSIDE SERVICES,$465 ,4/25/2016
A-ALERT EXTERMINATING SERVICE,OUTSIDE SERVICES,$75 ,5/9/2016
A-ALERT EXTERMINATING SERVICE,OUTSIDE SERVICES,$75 ,5/9/2016
A-ALERT EXTERMINATING SERVICE,OUTSIDE SERVICES,$295 ,5/9/2016
A-ALERT EXTERMINATING SERVICE,OUTSIDE SERVICES,$45 ,5/19/2016
A-ALERT EXTERMINATING SERVICE,OUTSIDE SERVICES,$150 ,5/26/2016
A-ALERT EXTERMINATING SERVICE,OUTSIDE SERVICES,$30 ,5/26/2016
A-ALERT EXTERMINATING SERVICE,OUTSIDE SERVICES,$570 ,5/26/2016
A-ALERT EXTERMINATING SERVICE,OUTSIDE SERVICES,$75 ,5/31/2016
A-ALERT EXTERMINATING SERVICE,OUTSIDE SERVICES,$210 ,5/31/2016
A-ALERT EXTERMINATING SERVICE,OUTSIDE SERVICES,$195 ,6/28/2016
A-ALERT EXTERMINATING SERVICE,OUTSIDE SERVICES,$75 ,6/28/2016
A-ALERT EXTERMINATING SERVICE,OUTSIDE SERVICES,"$1,300 ",6/28/2016
A-ALERT EXTERMINATING SERVICE,OUTSIDE SERVICES,$30 ,6/30/2016
A-ALERT EXTERMINATING SERVICE,OUTSIDE SERVICES,$75 ,7/6/2016
A-ALERT EXTERMINATING SERVICE,OUTSIDE SERVICES,$326 ,7/6/2016
A-ALERT EXTERMINATING SERVICE,OUTSIDE SERVICES,$75 ,7/11/2016
A-ALERT EXTERMINATING SERVICE,OUTSIDE SERVICES,$385 ,7/11/2016
A-ALERT EXTERMINATING SERVICE,OUTSIDE SERVICES,$420 ,8/4/2016
A-ALERT EXTERMINATING SERVICE,OUTSIDE SERVICES,$30 ,8/4/2016
A-ALERT EXTERMINATING SERVICE,OUTSIDE SERVICES,$505 ,8/4/2016
A-ALERT EXTERMINATING SERVICE,OUTSIDE SERVICES,$445 ,8/8/2016
A-ALERT EXTERMINATING SERVICE,OUTSIDE SERVICES,$150 ,8/11/2016
A-ALERT EXTERMINATING SERVICE,OUTSIDE SERVICES,$385 ,8/15/2016
A-ALERT EXTERMINATING SERVICE,OUTSIDE SERVICES,$75 ,8/22/2016
A-ALERT EXTERMINATING SERVICE,OUTSIDE SERVICES,$45 ,9/8/2016
A-ALERT EXTERMINATING SERVICE,OUTSIDE SERVICES,$225 ,9/12/2016
A-ALERT EXTERMINATING SERVICE,OUTSIDE SERVICES,$180 ,9/12/2016
A-ALERT EXTERMINATING SERVICE,OUTSIDE SERVICES,$115 ,9/12/2016
A-ALERT EXTERMINATING SERVICE,OUTSIDE SERVICES,$685 ,9/12/2016
A-ALERT EXTERMINATING SERVICE,OUTSIDE SERVICES,$75 ,9/19/2016
A-ALERT EXTERMINATING SERVICE,OUTSIDE SERVICES,$190 ,9/19/2016
A-ALERT EXTERMINATING SERVICE,OUTSIDE SERVICES,$775 ,9/29/2016
A-ALERT EXTERMINATING SERVICE,OUTSIDE SERVICES,$195 ,10/4/2016
A-ALERT EXTERMINATING SERVICE,OUTSIDE SERVICES,$255 ,10/4/2016
A-ALERT EXTERMINATING SERVICE,OUTSIDE SERVICES,$45 ,10/17/2016
A-ALERT EXTERMINATING SERVICE,OUTSIDE SERVICES,$385 ,10/17/2016
A-ALERT EXTERMINATING SERVICE,OUTSIDE SERVICES,$225 ,11/1/2016
A-ALERT EXTERMINATING SERVICE,OUTSIDE SERVICES,$770 ,11/1/2016
A-ALERT EXTERMINATING SERVICE,OUTSIDE SERVICES,$30 ,11/2/2016
A-ALERT EXTERMINATING SERVICE,OUTSIDE SERVICES,$445 ,11/7/2016
A-ALERT EXTERMINATING SERVICE,OUTSIDE SERVICES,$120 ,11/9/2016
A-ALERT EXTERMINATING SERVICE,OUTSIDE SERVICES,$135 ,11/10/2016
A-ALERT EXTERMINATING SERVICE,OUTSIDE SERVICES,$350 ,11/14/2016
A-ALERT EXTERMINATING SERVICE,OUTSIDE SERVICES,$45 ,11/22/2016
A-ALERT EXTERMINATING SERVICE,OUTSIDE SERVICES,$75 ,11/22/2016
A-ALERT EXTERMINATING SERVICE,OUTSIDE SERVICES,$35 ,11/22/2016
A-ALERT EXTERMINATING SERVICE,OUTSIDE SERVICES,$75 ,12/5/2016
A-ALERT EXTERMINATING SERVICE,OUTSIDE SERVICES,$75 ,12/5/2016
A-ALERT EXTERMINATING SERVICE,OUTSIDE SERVICES,$780 ,12/5/2016
A-ALERT EXTERMINATING SERVICE,OUTSIDE SERVICES,$150 ,12/13/2016
A-ALERT EXTERMINATING SERVICE,OUTSIDE SERVICES,$105 ,12/13/2016
A-ALERT EXTERMINATING SERVICE,OUTSIDE SERVICES,$680 ,12/13/2016
A-ALERT EXTERMINATING SERVICE,OUTSIDE SERVICES,$45 ,12/19/2016
A-ALERT EXTERMINATING SERVICE,OUTSIDE SERVICES,$75 ,12/19/2016
A-ALERT EXTERMINATING SERVICE,OUTSIDE SERVICES,$115 ,12/19/2016
A-ALERT EXTERMINATING SERVICE,OUTSIDE SERVICES,$225 ,12/19/2016
A-ALERT EXTERMINATING SERVICE,OUTSIDE SERVICES,$150 ,12/27/2016
A-ALERT EXTERMINATING SERVICE,OUTSIDE SERVICES,$30 ,12/27/2016
A-ALERT EXTERMINATING SERVICE,OUTSIDE SERVICES,$408 ,12/27/2016
"A-S-K ASSOCIATES, INC.",MISCELLANEOUS OTHER EXPENSE,"$2,350 ",5/12/2016
"A-S-K ASSOCIATES,INC.",MISCELLANEOUS OTHER EXPENSE,"$2,350 ",5/12/2016
"A-TIRE COUNTY SERVICE, INC.",OUTSIDE SERVICES,$702.63 ,1/13/2016
"A-TIRE COUNTY SERVICE, INC.",MISCELLANEOUS OTHER EXPENSE,$46.50 ,1/13/2016
"A-TIRE COUNTY SERVICE, INC.",OUTSIDE SERVICES,"$3,402.87 ",1/14/2016
"A-TIRE COUNTY SERVICE, INC.",MISCELLANEOUS OTHER EXPENSE,$53.50 ,1/14/2016
"A-TIRE COUNTY SERVICE, INC.",OUTSIDE SERVICES,$593.94 ,2/4/2016
"A-TIRE COUNTY SERVICE, INC.",MISCELLANEOUS OTHER EXPENSE,$53.50 ,2/4/2016
"A-TIRE COUNTY SERVICE, INC.",OUTSIDE SERVICES,"$8,302.14 ",2/10/2016
"A-TIRE COUNTY SERVICE, INC.",OUTSIDE SERVICES,$939.53 ,2/11/2016
"A-TIRE COUNTY SERVICE, INC.",OUTSIDE SERVICES,"$1,050.06 ",2/16/2016
"A-TIRE COUNTY SERVICE, INC.",MISCELLANEOUS OTHER EXPENSE,$35 ,2/16/2016
"A-TIRE COUNTY SERVICE, INC.",OUTSIDE SERVICES,$48.60 ,3/1/2016
"A-TIRE COUNTY SERVICE, INC.",OUTSIDE SERVICES,$225 ,3/2/2016
"A-TIRE COUNTY SERVICE, INC.",OUTSIDE SERVICES,"$5,519.26 ",3/2/2016
"A-TIRE COUNTY SERVICE, INC.",OUTSIDE SERVICES,"$1,979.57 ",3/16/2016
"A-TIRE COUNTY SERVICE, INC.",MISCELLANEOUS OTHER EXPENSE,$94 ,3/16/2016
"A-TIRE COUNTY SERVICE, INC.",OUTSIDE SERVICES,$476.82 ,3/30/2016
"A-TIRE COUNTY SERVICE, INC.",OUTSIDE SERVICES,"$2,014.53 ",4/12/2016
"A-TIRE COUNTY SERVICE, INC.",MISCELLANEOUS OTHER EXPENSE,$180 ,4/12/2016
"A-TIRE COUNTY SERVICE, INC.",OUTSIDE SERVICES,$150 ,4/21/2016
"A-TIRE COUNTY SERVICE, INC.",OUTSIDE SERVICES,$577.19 ,4/21/2016
"A-TIRE COUNTY SERVICE, INC.",MISCELLANEOUS OTHER EXPENSE,$150 ,4/21/2016
"A-TIRE COUNTY SERVICE, INC.",MISCELLANEOUS OTHER EXPENSE,$23.50 ,4/21/2016
"A-TIRE COUNTY SERVICE, INC.",OUTSIDE SERVICES,"$2,103.35 ",4/25/2016
"A-TIRE COUNTY SERVICE, INC.",MISCELLANEOUS OTHER EXPENSE,$23.50 ,4/25/2016
"A-TIRE COUNTY SERVICE, INC.",OUTSIDE SERVICES,$720 ,5/16/2016
"A-TIRE COUNTY SERVICE, INC.",OUTSIDE SERVICES,"$3,000.19 ",5/16/2016
"A-TIRE COUNTY SERVICE, INC.",MISCELLANEOUS OTHER EXPENSE,$158 ,5/16/2016
"A-TIRE COUNTY SERVICE, INC.",OUTSIDE SERVICES,$180 ,5/23/2016
"A-TIRE COUNTY SERVICE, INC.",OUTSIDE SERVICES,"$3,320.95 ",5/23/2016
"A-TIRE COUNTY SERVICE, INC.",MISCELLANEOUS OTHER EXPENSE,$23 ,5/23/2016
"A-TIRE COUNTY SERVICE, INC.",OUTSIDE SERVICES,"$1,238.95 ",5/24/2016
"A-TIRE COUNTY SERVICE, INC.",MISCELLANEOUS OTHER EXPENSE,$23 ,5/24/2016
"A-TIRE COUNTY SERVICE, INC.",OUTSIDE SERVICES,$180 ,7/6/2016
"A-TIRE COUNTY SERVICE, INC.",OUTSIDE SERVICES,"$4,808.86 ",7/6/2016
"A-TIRE COUNTY SERVICE, INC.",MISCELLANEOUS OTHER EXPENSE,$185.50 ,7/6/2016
"A-TIRE COUNTY SERVICE, INC.",OUTSIDE SERVICES,$420 ,8/1/2016
"A-TIRE COUNTY SERVICE, INC.",OUTSIDE SERVICES,"$7,225.16 ",8/1/2016
"A-TIRE COUNTY SERVICE, INC.",MISCELLANEOUS OTHER EXPENSE,$46 ,8/1/2016
"A-TIRE COUNTY SERVICE, INC.",OUTSIDE SERVICES,$330 ,9/12/2016
"A-TIRE COUNTY SERVICE, INC.",OUTSIDE SERVICES,"$4,179.70 ",9/12/2016
"A-TIRE COUNTY SERVICE, INC.",OUTSIDE SERVICES,"$1,214.21 ",10/4/2016
"A-TIRE COUNTY SERVICE, INC.",MISCELLANEOUS OTHER EXPENSE,$47 ,10/4/2016
"A-TIRE COUNTY SERVICE, INC.",OUTSIDE SERVICES,$630 ,11/9/2016
"A-TIRE COUNTY SERVICE, INC.",OUTSIDE SERVICES,"$8,268.12 ",11/9/2016
"A-TIRE COUNTY SERVICE, INC.",MISCELLANEOUS OTHER EXPENSE,$94 ,11/9/2016
"A-TIRE COUNTY SERVICE, INC.",OUTSIDE SERVICES,$360 ,11/15/2016
"A-TIRE COUNTY SERVICE, INC.",OUTSIDE SERVICES,"$4,232.26 ",11/15/2016
"A-TIRE COUNTY SERVICE, INC.",MISCELLANEOUS OTHER EXPENSE,$23 ,11/15/2016
"A-TIRE COUNTY SERVICE, INC.",OUTSIDE SERVICES,$210 ,12/8/2016
"A-TIRE COUNTY SERVICE, INC.",OUTSIDE SERVICES,"$1,262.94 ",12/8/2016
"A-TIRE COUNTY SERVICE, INC.",OUTSIDE SERVICES,"$1,502.20 ",12/27/2016
"A-TIRE COUNTY SERVICE, INC.",MISCELLANEOUS OTHER EXPENSE,$46 ,12/27/2016
A-1 AIR COMPRESSOR CORP.,OUTSIDE SERVICES,$249 ,3/15/2016
A-1 AIR COMPRESSOR CORP.,OUTSIDE SERVICES,"$13,457 ",10/27/2016
A-1 EQUIPMENT SALES,OUTSIDE SERVICES,"$1,155.16 ",9/12/2016
AAAED 2016 CONFERENCE,PROFESSIONAL SERVICES,$815 ,4/28/2016
AARCHER INSTITUE COURSE REG,PROFESSIONAL SERVICES,$931 ,10/27/2016
AARON GULBRANSEN,TUITION REIMBURSEMENT,"$2,739 ",1/6/2016
AARON GULBRANSEN,TUITION REIMBURSEMENT,"$2,739 ",6/15/2016
AARON MAERTINS,TUITION REIMBURSEMENT,"$5,200 ",5/23/2016
AARON MAERTINS,METRA SPONSORED EVENT,$51.75 ,8/9/2016
"ABACUS SCALE CO., INC.",OUTSIDE SERVICES,"$1,102.74 ",11/28/2016
"ABILITY ENGINEERING TECHNOLOGY,INC.",MATERIALS - NON-INVENTORY,$892.80 ,7/25/2016
"ABILITY ENGINEERING TECHNOLOGY,INC.",MISCELLANEOUS OTHER EXPENSE,$48 ,7/25/2016
ABT,MATERIALS - NON-INVENTORY,$971 ,1/14/2016
ABT,MATERIALS - NON-INVENTORY,$836 ,3/7/2016
ABT,MATERIALS - NON-INVENTORY,$475 ,4/28/2016
ABT,MATERIALS - NON-INVENTORY,$189 ,4/28/2016
ABT,MATERIALS - NON-INVENTORY,$475 ,4/28/2016
ABT,OUTSIDE SERVICES,$169 ,4/28/2016
ABT,MISCELLANEOUS OTHER EXPENSE,$198 ,4/28/2016
ABT,MATERIALS - NON-INVENTORY,$357 ,4/28/2016
ABT,MATERIALS - NON-INVENTORY,$189 ,5/16/2016
ABT,OUTSIDE SERVICES,$198 ,5/16/2016
ABT,OUTSIDE SERVICES,$404 ,5/16/2016
ABT,MISCELLANEOUS OTHER EXPENSE,$834.20 ,5/16/2016
ABT,MATERIALS - NON-INVENTORY,$197 ,6/27/2016
ABT,MATERIALS - NON-INVENTORY,$148 ,6/27/2016
ABT,MATERIALS - NON-INVENTORY,$982.20 ,6/27/2016
ABT,MATERIALS - NON-INVENTORY,$135 ,7/25/2016
ABT,MATERIALS - NON-INVENTORY,$242.98 ,7/25/2016
ABT,MISCELLANEOUS OTHER EXPENSE,$193.03 ,7/25/2016
ABT,MATERIALS - NON-INVENTORY,$676 ,8/11/2016
ABT,MATERIALS - NON-INVENTORY,$169 ,8/11/2016
ABT,MATERIALS - NON-INVENTORY,$730 ,8/11/2016
ABT,MATERIALS - NON-INVENTORY,$445 ,8/22/2016
ABT,MISCELLANEOUS OTHER EXPENSE,$367.98 ,9/8/2016
ABT,MATERIALS - NON-INVENTORY,$951 ,11/10/2016
ABT,MATERIALS - NON-INVENTORY,$504 ,11/14/2016
ABT,OUTSIDE SERVICES,"$1,431 ",11/14/2016
ABT,MISCELLANEOUS OTHER EXPENSE,$695 ,11/14/2016
ABT,MATERIALS - NON-INVENTORY,$315 ,11/17/2016
"ACA COMPLIANCE SERVICES, INC.",MISCELLANEOUS OTHER EXPENSE,"$5,799 ",1/11/2016
"ACA COMPLIANCE SERVICES, INC.",MISCELLANEOUS OTHER EXPENSE,"$11,760 ",2/17/2016
"ACACIA FINANCIAL GROUP, INC.",PROFESSIONAL SERVICES,"$14,043.75 ",2/18/2016
"ACACIA FINANCIAL GROUP, INC.",PROFESSIONAL SERVICES,"$7,968.75 ",4/12/2016
"ACACIA FINANCIAL GROUP, INC.",PROFESSIONAL SERVICES,$568.75 ,4/28/2016
"ACACIA FINANCIAL GROUP, INC.",PROFESSIONAL SERVICES,$406.25 ,5/19/2016
"ACACIA FINANCIAL GROUP, INC.",PROFESSIONAL SERVICES,"$19,756.25 ",12/5/2016
"ACACIA FINANCIAL GROUP, INC.",PROFESSIONAL SERVICES,"$6,931.25 ",12/15/2016
ACCENTURE LLP,OUTSIDE SERVICES,"$220,486.98 ",3/7/2016
ACCENTURE LLP,OUTSIDE SERVICES,"$6,075 ",3/7/2016
ACCENTURE LLP,OUTSIDE SERVICES,"$174,610 ",3/7/2016
ACCENTURE LLP,OUTSIDE SERVICES,"$164,304.50 ",4/18/2016
ACCENTURE LLP,OUTSIDE SERVICES,"$172,625 ",4/18/2016
ACCENTURE LLP,OUTSIDE SERVICES,"$159,065 ",5/9/2016
ACCENTURE LLP,OUTSIDE SERVICES,"$27,350 ",5/9/2016
ACCENTURE LLP,OUTSIDE SERVICES,"$261,636 ",7/25/2016
ACCENTURE LLP,OUTSIDE SERVICES,"$6,000 ",7/25/2016
ACCENTURE LLP,OUTSIDE SERVICES,"$9,608.26 ",7/25/2016
ACCENTURE LLP,OUTSIDE SERVICES,"$136,972.50 ",9/8/2016
ACCENTURE LLP,OUTSIDE SERVICES,"$1,500 ",9/8/2016
ACCENTURE LLP,OUTSIDE SERVICES,"$1,900.85 ",9/8/2016
ACCENTURE LLP,OUTSIDE SERVICES,"$87,371 ",9/19/2016
ACCENTURE LLP,OUTSIDE SERVICES,"$42,980.50 ",11/17/2016
"ACCUNET SOLUTIONS, INC.",PROFESSIONAL SERVICES,"$5,607.07 ",1/14/2016
"ACCUNET SOLUTIONS, INC.",PROFESSIONAL SERVICES,"$6,303.98 ",11/8/2016
ACCURATE FORMS & SUPPLIES,MATERIALS - NON-INVENTORY,"$4,701.95 ",1/6/2016
ACCURATE FORMS & SUPPLIES,MATERIALS - NON-INVENTORY,"$2,914.10 ",1/25/2016
ACCURATE FORMS & SUPPLIES,MATERIALS - NON-INVENTORY,"$1,363.45 ",2/1/2016
ACCURATE FORMS & SUPPLIES,MATERIALS - NON-INVENTORY,"$3,032.70 ",3/7/2016
ACCURATE FORMS & SUPPLIES,MATERIALS - NON-INVENTORY,"$1,582.90 ",3/28/2016
ACCURATE FORMS & SUPPLIES,MATERIALS - NON-INVENTORY,"$1,582.90 ",4/11/2016
ACCURATE FORMS & SUPPLIES,MATERIALS - NON-INVENTORY,"$1,173.65 ",5/9/2016
ACCURATE FORMS & SUPPLIES,MATERIALS - NON-INVENTORY,"$1,296.90 ",5/23/2016
ACCURATE FORMS & SUPPLIES,MATERIALS - NON-INVENTORY,"$1,296.90 ",5/26/2016
ACCURATE FORMS & SUPPLIES,MATERIALS - NON-INVENTORY,"$2,347.30 ",6/6/2016
ACCURATE FORMS & SUPPLIES,MATERIALS - NON-INVENTORY,"$1,755.60 ",6/14/2016
ACCURATE FORMS & SUPPLIES,MATERIALS - NON-INVENTORY,"$1,220.45 ",6/20/2016
ACCURATE FORMS & SUPPLIES,MATERIALS - NON-INVENTORY,"$1,844.20 ",7/25/2016
ACCURATE FORMS & SUPPLIES,MATERIALS - NON-INVENTORY,"$1,417.80 ",7/26/2016
ACCURATE FORMS & SUPPLIES,MATERIALS - NON-INVENTORY,"$4,820.20 ",9/8/2016
ACCURATE FORMS & SUPPLIES,MATERIALS - NON-INVENTORY,"$1,348.60 ",9/19/2016
ACCURATE FORMS & SUPPLIES,MATERIALS - NON-INVENTORY,"$1,348.60 ",10/4/2016
ACCURATE FORMS & SUPPLIES,MATERIALS - NON-INVENTORY,"$2,686.90 ",10/18/2016
ACCURATE FORMS & SUPPLIES,MATERIALS - NON-INVENTORY,"$1,445.95 ",11/15/2016
ACCURATE FORMS & SUPPLIES,MATERIALS - NON-INVENTORY,"$1,348.60 ",11/29/2016
ACCURATE FORMS & SUPPLIES,MATERIALS - NON-INVENTORY,"$1,646 ",12/19/2016
"ACCURATE REPORTING CO., INC.",OUTSIDE SERVICES - CAPITAL,"$3,210.60 ",1/5/2016
"ACCURATE REPORTING CO., INC.",PROFESSIONAL SERVICES,"$1,686.45 ",1/5/2016
"ACCURATE REPORTING CO., INC.",MISCELLANEOUS OTHER EXPENSE,"$1,788.35 ",1/6/2016
"ACCURATE REPORTING CO., INC.",PROFESSIONAL SERVICES,$836.35 ,1/12/2016
"ACCURATE REPORTING CO., INC.",PROFESSIONAL SERVICES,$161.45 ,1/19/2016
"ACCURATE REPORTING CO., INC.",MISCELLANEOUS OTHER EXPENSE,"$1,647.95 ",2/17/2016
"ACCURATE REPORTING CO., INC.",PROFESSIONAL SERVICES,"$4,431.60 ",2/17/2016
"ACCURATE REPORTING CO., INC.",PROFESSIONAL SERVICES,"$1,842.95 ",2/22/2016
"ACCURATE REPORTING CO., INC.",MISCELLANEOUS OTHER EXPENSE,$541.35 ,3/31/2016
"ACCURATE REPORTING CO., INC.",PROFESSIONAL SERVICES,"$1,849.15 ",3/31/2016
"ACCURATE REPORTING CO., INC.",PROFESSIONAL SERVICES,$856.85 ,4/4/2016
"ACCURATE REPORTING CO., INC.",MISCELLANEOUS OTHER EXPENSE,$285.40 ,4/7/2016
"ACCURATE REPORTING CO., INC.",PROFESSIONAL SERVICES,$385.60 ,4/7/2016
"ACCURATE REPORTING CO., INC.",MISCELLANEOUS OTHER EXPENSE,"$5,901.95 ",4/12/2016
"ACCURATE REPORTING CO., INC.",PROFESSIONAL SERVICES,"$7,694.75 ",4/12/2016
"ACCURATE REPORTING CO., INC.",PROFESSIONAL SERVICES,$219.10 ,4/12/2016
"ACCURATE REPORTING CO., INC.",MISCELLANEOUS OTHER EXPENSE,$10 ,4/12/2016
"ACCURATE REPORTING CO., INC.",PROFESSIONAL SERVICES,$656.75 ,4/13/2016
"ACCURATE REPORTING CO., INC.",MISCELLANEOUS OTHER EXPENSE,$62 ,5/5/2016
"ACCURATE REPORTING CO., INC.",MISCELLANEOUS OTHER EXPENSE,$624.50 ,5/9/2016
"ACCURATE REPORTING CO., INC.",MISCELLANEOUS OTHER EXPENSE,$530.70 ,5/16/2016
"ACCURATE REPORTING CO., INC.",PROFESSIONAL SERVICES,$989.05 ,5/16/2016
"ACCURATE REPORTING CO., INC.",PROFESSIONAL SERVICES,"$1,350.15 ",6/6/2016
"ACCURATE REPORTING CO., INC.",MISCELLANEOUS OTHER EXPENSE,"$1,758.85 ",6/7/2016
"ACCURATE REPORTING CO., INC.",MISCELLANEOUS OTHER EXPENSE,"$1,488.80 ",6/13/2016
"ACCURATE REPORTING CO., INC.",MISCELLANEOUS OTHER EXPENSE,$167.85 ,6/14/2016
"ACCURATE REPORTING CO., INC.",MISCELLANEOUS OTHER EXPENSE,"$1,265.20 ",6/27/2016
"ACCURATE REPORTING CO., INC.",OUTSIDE SERVICES - CAPITAL,$97.20 ,7/5/2016
"ACCURATE REPORTING CO., INC.",MISCELLANEOUS OTHER EXPENSE,"$1,664.80 ",7/25/2016
"ACCURATE REPORTING CO., INC.",PROFESSIONAL SERVICES,"$1,007.85 ",7/26/2016
"ACCURATE REPORTING CO., INC.",PROFESSIONAL SERVICES,"$1,384.35 ",7/26/2016
"ACCURATE REPORTING CO., INC.",PROFESSIONAL SERVICES,"$1,952.90 ",7/28/2016
"ACCURATE REPORTING CO., INC.",MISCELLANEOUS OTHER EXPENSE,"$4,982.40 ",8/29/2016
"ACCURATE REPORTING CO., INC.",MISCELLANEOUS OTHER EXPENSE,$789.80 ,8/31/2016
"ACCURATE REPORTING CO., INC.",MISCELLANEOUS OTHER EXPENSE,"$3,291.70 ",9/6/2016
"ACCURATE REPORTING CO., INC.",MISCELLANEOUS OTHER EXPENSE,"$1,830.35 ",10/4/2016
"ACCURATE REPORTING CO., INC.",MISCELLANEOUS OTHER EXPENSE,$879.10 ,10/10/2016
"ACCURATE REPORTING CO., INC.",MISCELLANEOUS OTHER EXPENSE,$576.50 ,10/13/2016
"ACCURATE REPORTING CO., INC.",MISCELLANEOUS OTHER EXPENSE,"$8,006.10 ",10/25/2016
"ACCURATE REPORTING CO., INC.",MISCELLANEOUS OTHER EXPENSE,$107.45 ,11/1/2016
"ACCURATE REPORTING CO., INC.",MISCELLANEOUS OTHER EXPENSE,"$1,217.65 ",12/5/2016
"ACCURATE REPORTING CO., INC.",MISCELLANEOUS OTHER EXPENSE,"$5,029.90 ",12/8/2016
"ACCURATE REPORTING CO., INC.",MISCELLANEOUS OTHER EXPENSE,$497.45 ,12/12/2016
"ACCURATE REPORTING CO., INC.",MISCELLANEOUS OTHER EXPENSE,"$3,825.90 ",12/13/2016
ACE BAKERY,MISCELLANEOUS OTHER EXPENSE,$80 ,1/25/2016
ACE BAKERY,MISCELLANEOUS OTHER EXPENSE,$870 ,1/25/2016
ACE BAKERY,MISCELLANEOUS OTHER EXPENSE,$90 ,3/15/2016
ACE BAKERY,MISCELLANEOUS OTHER EXPENSE,"$1,045 ",3/15/2016
ACE BAKERY,MISCELLANEOUS OTHER EXPENSE,$40 ,3/28/2016
ACE BAKERY,MISCELLANEOUS OTHER EXPENSE,$410 ,3/28/2016
ACE BAKERY,MISCELLANEOUS OTHER EXPENSE,$40 ,4/11/2016
ACE BAKERY,MISCELLANEOUS OTHER EXPENSE,$460 ,4/11/2016
ACE BAKERY,MISCELLANEOUS OTHER EXPENSE,$20 ,5/12/2016
ACE BAKERY,MISCELLANEOUS OTHER EXPENSE,$230 ,5/12/2016
ACE BAKERY,MISCELLANEOUS OTHER EXPENSE,$10 ,6/13/2016
ACE BAKERY,MISCELLANEOUS OTHER EXPENSE,$175 ,6/13/2016
ACE BAKERY,MISCELLANEOUS OTHER EXPENSE,$40 ,7/26/2016
ACE BAKERY,MISCELLANEOUS OTHER EXPENSE,$405 ,7/26/2016
ACE BAKERY,MISCELLANEOUS OTHER EXPENSE,$190 ,9/12/2016
ACE BAKERY,MISCELLANEOUS OTHER EXPENSE,"$2,684 ",9/12/2016
ACE BAKERY,MISCELLANEOUS OTHER EXPENSE,$30 ,10/12/2016
ACE BAKERY,MISCELLANEOUS OTHER EXPENSE,$290 ,10/12/2016
ACE COFFEE BAR INC.,MATERIALS - NON-INVENTORY,$91 ,1/25/2016
ACE COFFEE BAR INC.,MATERIALS - NON-INVENTORY,$69.50 ,2/2/2016
ACE COFFEE BAR INC.,MATERIALS - NON-INVENTORY,$349 ,2/8/2016
ACE COFFEE BAR INC.,MATERIALS - NON-INVENTORY,$401 ,4/11/2016
ACE COFFEE BAR INC.,MATERIALS - NON-INVENTORY,$22 ,4/21/2016
ACE COFFEE BAR INC.,MATERIALS - NON-INVENTORY,$219.75 ,5/23/2016
ACE COFFEE BAR INC.,MATERIALS - NON-INVENTORY,$416.25 ,8/12/2016
ACE COFFEE BAR INC.,MATERIALS - NON-INVENTORY,$220.75 ,9/29/2016
ACE COFFEE BAR INC.,MATERIALS - NON-INVENTORY,$386.50 ,11/15/2016
ACE PUMP CORP.,MATERIALS - NON-INVENTORY,"$1,006.50 ",1/14/2016
ACE PUMP CORP.,MISCELLANEOUS OTHER EXPENSE,$45 ,1/14/2016
ACI WORLDWIDE CORP.,BANK CHARGES,"$48,105 ",1/27/2016
ACI WORLDWIDE CORP.,BANK CHARGES,"$128,677.81 ",3/8/2016
ACI WORLDWIDE CORP.,PROFESSIONAL SERVICES,"$15,210 ",3/14/2016
ACI WORLDWIDE CORP.,PROFESSIONAL SERVICES,"$5,490 ",4/21/2016
ACI WORLDWIDE CORP.,PROFESSIONAL SERVICES,$150 ,4/26/2016
ACI WORLDWIDE CORP.,PROFESSIONAL SERVICES,"$32,335 ",6/27/2016
ACI WORLDWIDE CORP.,PROFESSIONAL SERVICES,"$94,452 ",11/14/2016
ACI WORLDWIDE CORP.,PROFESSIONAL SERVICES,$150 ,11/15/2016
ACI WORLDWIDE CORP.,PROFESSIONAL SERVICES,"$24,774 ",12/8/2016
ACI WORLDWIDE CORP.,PROFESSIONAL SERVICES,"$9,855 ",12/12/2016
"ACORN GARAGE, INC.",OUTSIDE SERVICES,"$2,064.67 ",1/6/2016
"ACORN GARAGE, INC.",MISCELLANEOUS OTHER EXPENSE,$59.97 ,1/6/2016
"ACORN GARAGE, INC.",OUTSIDE SERVICES,"$1,893.09 ",1/25/2016
"ACORN GARAGE, INC.",MISCELLANEOUS OTHER EXPENSE,$119.94 ,1/25/2016
"ACORN GARAGE, INC.",OUTSIDE SERVICES,"$5,821.66 ",1/27/2016
"ACORN GARAGE, INC.",MISCELLANEOUS OTHER EXPENSE,$59.97 ,1/27/2016
"ACORN GARAGE, INC.",OUTSIDE SERVICES,"$6,968.36 ",2/8/2016
"ACORN GARAGE, INC.",MISCELLANEOUS OTHER EXPENSE,$559.36 ,2/8/2016
"ACORN GARAGE, INC.",OUTSIDE SERVICES,$246.65 ,2/17/2016
"ACORN GARAGE, INC.",MISCELLANEOUS OTHER EXPENSE,$87 ,2/17/2016
"ACORN GARAGE, INC.",OUTSIDE SERVICES,"$7,342.76 ",3/1/2016
"ACORN GARAGE, INC.",MISCELLANEOUS OTHER EXPENSE,$62 ,3/1/2016
"ACORN GARAGE, INC.",MISCELLANEOUS OTHER EXPENSE,$50 ,3/28/2016
"ACORN GARAGE, INC.",OUTSIDE SERVICES,$247.04 ,3/29/2016
"ACORN GARAGE, INC.",MISCELLANEOUS OTHER EXPENSE,$25 ,3/29/2016
"ACORN GARAGE, INC.",OUTSIDE SERVICES,$648.33 ,4/25/2016
"ACORN GARAGE, INC.",MISCELLANEOUS OTHER EXPENSE,$100 ,4/25/2016
"ACORN GARAGE, INC.",OUTSIDE SERVICES,"$6,534.55 ",4/28/2016
"ACORN GARAGE, INC.",MISCELLANEOUS OTHER EXPENSE,$199 ,4/28/2016
"ACORN GARAGE, INC.",OUTSIDE SERVICES,"$4,762.97 ",5/16/2016
"ACORN GARAGE, INC.",MISCELLANEOUS OTHER EXPENSE,$175 ,5/16/2016
"ACORN GARAGE, INC.",MISCELLANEOUS OTHER EXPENSE,$25 ,5/17/2016
"ACORN GARAGE, INC.",OUTSIDE SERVICES,"$5,516.33 ",7/5/2016
"ACORN GARAGE, INC.",MISCELLANEOUS OTHER EXPENSE,$75 ,7/5/2016
"ACORN GARAGE, INC.",OUTSIDE SERVICES,"$5,223.60 ",7/11/2016
"ACORN GARAGE, INC.",MISCELLANEOUS OTHER EXPENSE,$113 ,7/11/2016
"ACORN GARAGE, INC.",OUTSIDE SERVICES,"$8,805.69 ",7/28/2016
"ACORN GARAGE, INC.",MISCELLANEOUS OTHER EXPENSE,"$1,132.31 ",7/28/2016
"ACORN GARAGE, INC.",OUTSIDE SERVICES,$117.18 ,8/2/2016
"ACORN GARAGE, INC.",MISCELLANEOUS OTHER EXPENSE,$25 ,8/2/2016
"ACORN GARAGE, INC.",OUTSIDE SERVICES,"$11,221.67 ",9/12/2016
"ACORN GARAGE, INC.",MISCELLANEOUS OTHER EXPENSE,$724 ,9/12/2016
"ACORN GARAGE, INC.",MISCELLANEOUS OTHER EXPENSE,$25 ,9/19/2016
"ACORN GARAGE, INC.",OUTSIDE SERVICES,"$1,227.20 ",10/6/2016
"ACORN GARAGE, INC.",MISCELLANEOUS OTHER EXPENSE,$50 ,10/6/2016
"ACORN GARAGE, INC.",OUTSIDE SERVICES,$623.56 ,10/12/2016
"ACORN GARAGE, INC.",MISCELLANEOUS OTHER EXPENSE,$37 ,10/12/2016
"ACORN GARAGE, INC.",OUTSIDE SERVICES,"$7,444.10 ",10/13/2016
"ACORN GARAGE, INC.",MISCELLANEOUS OTHER EXPENSE,$187 ,10/13/2016
"ACORN GARAGE, INC.",OUTSIDE SERVICES,$850.23 ,10/17/2016
"ACORN GARAGE, INC.",MISCELLANEOUS OTHER EXPENSE,$25 ,10/17/2016
"ACORN GARAGE, INC.",MISCELLANEOUS OTHER EXPENSE,$25 ,10/24/2016
"ACORN GARAGE, INC.",MISCELLANEOUS OTHER EXPENSE,$100 ,11/10/2016
"ACORN GARAGE, INC.",MISCELLANEOUS OTHER EXPENSE,$25 ,11/14/2016
"ACORN GARAGE, INC.",OUTSIDE SERVICES,"$14,196.80 ",11/28/2016
"ACORN GARAGE, INC.",MISCELLANEOUS OTHER EXPENSE,$212 ,11/28/2016
"ACORN GARAGE, INC.",OUTSIDE SERVICES,"$7,137.54 ",12/15/2016
"ACORN GARAGE, INC.",MISCELLANEOUS OTHER EXPENSE,$175 ,12/15/2016
"ACORN GARAGE, INC.",MISCELLANEOUS OTHER EXPENSE,$25 ,12/19/2016
ACTON MOBILE,RENTAL EXPENSE,"$1,056 ",10/12/2016
ACTON MOBILE,RENTAL EXPENSE,$352 ,10/24/2016
ACTON MOBILE,OUTSIDE SERVICES - CAPITAL,"$3,702 ",10/25/2016
ACTON MOBILE,OUTSIDE SERVICES - CAPITAL,"$7,203 ",10/27/2016
ACTON MOBILE,OUTSIDE SERVICES - CAPITAL,"$6,915 ",11/1/2016
ADAM FARENCE,"EMP EXPENSE REIMB, LOCAL",$330.06 ,2/3/2016
ADAM FARENCE,"EMP EXPENSE REIMB, LOCAL",$349.92 ,2/18/2016
ADAM FARENCE,"EMP EXPENSE REIMB, LOCAL",$282.42 ,4/18/2016
ADAM FARENCE,"EMP EXPENSE REIMB, LOCAL",$491.90 ,5/9/2016
ADAM FARENCE,"EMP EXPENSE REIMB, LOCAL",$282.96 ,5/31/2016
ADAM FARENCE,"EMP EXPENSE REIMB, LOCAL",$125.28 ,7/7/2016
ADAM FARENCE,"EMP EXPENSE REIMB, LOCAL",$475.74 ,8/1/2016
ADAM FARENCE,"EMP EXPENSE REIMB, LOCAL",$130.68 ,8/29/2016
ADAM FARENCE,"EMP EXPENSE REIMB, LOCAL",$649.62 ,9/21/2016
ADAM FARENCE,"EMP EXPENSE REIMB, LOCAL",$359.10 ,10/27/2016
ADAM FARENCE,"EMP EXPENSE REIMB, LOCAL",$286.74 ,11/22/2016
ADAM GIBSON,"EMP EXPENSE REIMB, LOCAL",$17 ,4/18/2016
ADAM GIBSON,"EMP EXPENSE REIMB, LOCAL",$12 ,5/31/2016
ADAM GIBSON,"EMP EXPENSE REIMB, LOCAL",$12.10 ,9/1/2016
ADAM GIBSON,"EMP EXPENSE REIMB, LOCAL",$15.93 ,12/27/2016
ADAM HAYWOOD,"EMP EXPENSE REIMB, LOCAL",$52.90 ,2/2/2016
ADAM SINGER,"EMP EXPENSE REIMB, LOCAL",$90.85 ,1/25/2016
ADAM SINGER,"EMP EXPENSE REIMB, LOCAL",$41.09 ,3/7/2016
ADAM SINGER,"EMP EXPENSE REIMB, LOCAL",$116.32 ,7/6/2016
ADAM SINGER,"EMP EXPENSE REIMB, LOCAL",$35.15 ,7/26/2016
ADAM SINGER,"EMP EXPENSE REIMB, LOCAL",$35.15 ,8/11/2016
ADAM SINGER,"EMP EXPENSE REIMB, LOCAL",$35.15 ,9/6/2016
"ADAMS & WESTLAKE, LTD.",MATERIALS - INVENTORY,"$26,579.86 ",1/25/2016
"ADAMS & WESTLAKE, LTD.",MATERIALS - INVENTORY,"$11,319.85 ",3/14/2016
"ADAMS & WESTLAKE, LTD.",MATERIALS - INVENTORY,"$9,893.64 ",3/16/2016
"ADAMS & WESTLAKE, LTD.",MATERIALS - INVENTORY,$897.50 ,3/21/2016
"ADAMS & WESTLAKE, LTD.",MATERIALS - INVENTORY,"$2,884.75 ",3/28/2016
"ADAMS & WESTLAKE, LTD.",MATERIALS - INVENTORY,"$3,159.75 ",4/11/2016
"ADAMS & WESTLAKE, LTD.",MATERIALS - INVENTORY,"$1,250 ",4/18/2016
"ADAMS & WESTLAKE, LTD.",MATERIALS - INVENTORY,"$9,570.15 ",4/25/2016
"ADAMS & WESTLAKE, LTD.",MATERIALS - INVENTORY,"$7,701.75 ",5/3/2016
"ADAMS & WESTLAKE, LTD.",MATERIALS - INVENTORY,"$4,800 ",5/9/2016
"ADAMS & WESTLAKE, LTD.",MATERIALS - INVENTORY,"$1,114.40 ",5/16/2016
"ADAMS & WESTLAKE, LTD.",MATERIALS - INVENTORY,"$29,170.95 ",5/23/2016
"ADAMS & WESTLAKE, LTD.",MATERIALS - INVENTORY,$800 ,6/27/2016
"ADAMS & WESTLAKE, LTD.",MATERIALS - INVENTORY,"$30,697.44 ",7/19/2016
"ADAMS & WESTLAKE, LTD.",MATERIALS - INVENTORY,"$32,071.74 ",8/30/2016
"ADAMS & WESTLAKE, LTD.",MATERIALS - INVENTORY,"$4,187.25 ",9/15/2016
"ADAMS & WESTLAKE, LTD.",MATERIALS - INVENTORY,"$2,347.62 ",10/4/2016
"ADAMS & WESTLAKE, LTD.",MATERIALS - INVENTORY,"$2,372.25 ",10/10/2016
"ADAMS & WESTLAKE, LTD.",MATERIALS - INVENTORY,"$1,600 ",10/17/2016
"ADAMS & WESTLAKE, LTD.",MATERIALS - INVENTORY,"$6,188.23 ",10/24/2016
"ADAMS & WESTLAKE, LTD.",MATERIALS - INVENTORY,"$7,240.73 ",11/14/2016
"ADAMS & WESTLAKE, LTD.",MATERIALS - INVENTORY,"$7,396.54 ",11/21/2016
"ADAMS & WESTLAKE, LTD.",MATERIALS - INVENTORY,$147.28 ,11/28/2016
"ADAMS & WESTLAKE, LTD.",MATERIALS - INVENTORY,$147.28 ,12/15/2016
"ADAMS & WESTLAKE, LTD.",MATERIALS - INVENTORY,"$5,104.08 ",12/19/2016
"ADDISON ELECTRIC, INC.",MATERIALS - INVENTORY,$104 ,1/12/2016
"ADDISON ELECTRIC, INC.",MATERIALS - INVENTORY,$726.50 ,1/25/2016
"ADDISON ELECTRIC, INC.",MATERIALS - INVENTORY,$398.80 ,2/8/2016
"ADDISON ELECTRIC, INC.",MATERIALS - INVENTORY,$390 ,3/22/2016
"ADDISON ELECTRIC, INC.",MATERIALS - INVENTORY,$327 ,4/28/2016
"ADDISON ELECTRIC, INC.",MATERIALS - INVENTORY,$52 ,5/12/2016
"ADDISON ELECTRIC, INC.",MATERIALS - INVENTORY,$232 ,5/19/2016
"ADDISON ELECTRIC, INC.",MATERIALS - INVENTORY,$770 ,5/23/2016
"ADDISON ELECTRIC, INC.",MATERIALS - INVENTORY,$751 ,6/20/2016
"ADDISON ELECTRIC, INC.",MATERIALS - INVENTORY,$84 ,6/21/2016
"ADDISON ELECTRIC, INC.",MATERIALS - INVENTORY,$627.50 ,7/26/2016
"ADDISON ELECTRIC, INC.",MATERIALS - INVENTORY,"$1,980.50 ",8/30/2016
"ADDISON ELECTRIC, INC.",MATERIALS - INVENTORY,$506.50 ,9/15/2016
"ADDISON ELECTRIC, INC.",MATERIALS - INVENTORY,$997 ,11/14/2016
ADRIAN G. LOPEZ,"EMP EXPENSE REIMB, LOCAL",$101.95 ,2/29/2016
ADRIANA S. MENA,"EMP EXPENSE REIMB, LOCAL",$12 ,9/6/2016
"ADVANCE GLASS SERVICE, INC.",OUTSIDE SERVICES,"$6,307 ",8/22/2016
ADVANCE SEARCH TECHNICAL STAFFING,PROFESSIONAL SERVICES,"$8,062.50 ",1/20/2016
ADVANCE SEARCH TECHNICAL STAFFING,PROFESSIONAL SERVICES,"$18,600 ",2/18/2016
ADVANCE SEARCH TECHNICAL STAFFING,PROFESSIONAL SERVICES,"$9,000 ",3/8/2016
ADVANCE SEARCH TECHNICAL STAFFING,PROFESSIONAL SERVICES,"$6,000 ",3/14/2016
ADVANCE SEARCH TECHNICAL STAFFING,PROFESSIONAL SERVICES,"$6,300 ",3/30/2016
ADVANCE SEARCH TECHNICAL STAFFING,PROFESSIONAL SERVICES,"$6,150 ",4/21/2016
ADVANCE SEARCH TECHNICAL STAFFING,PROFESSIONAL SERVICES,"$6,000 ",5/12/2016
ADVANCE SEARCH TECHNICAL STAFFING,PROFESSIONAL SERVICES,"$12,075 ",5/19/2016
ADVANCE SEARCH TECHNICAL STAFFING,PROFESSIONAL SERVICES,"$5,775 ",6/7/2016
ADVANCE SEARCH TECHNICAL STAFFING,PROFESSIONAL SERVICES,"$6,000 ",6/27/2016
ADVANCE SEARCH TECHNICAL STAFFING,PROFESSIONAL SERVICES,"$6,000 ",8/2/2016
ADVANCE SEARCH TECHNICAL STAFFING,PROFESSIONAL SERVICES,"$4,800 ",8/11/2016
ADVANCE SEARCH TECHNICAL STAFFING,PROFESSIONAL SERVICES,"$11,175 ",8/22/2016
ADVANCE SEARCH TECHNICAL STAFFING,PROFESSIONAL SERVICES,"$4,650 ",9/29/2016
ADVANCE SEARCH TECHNICAL STAFFING,PROFESSIONAL SERVICES,"$6,520 ",12/19/2016
"AECOM TECHNICAL SERVICES, INC.",OUTSIDE SERVICES - CAPITAL,"$39,870.24 ",1/13/2016
"AECOM TECHNICAL SERVICES, INC.",OUTSIDE SERVICES - CAPITAL,"$62,331.79 ",2/3/2016
"AECOM TECHNICAL SERVICES, INC.",ENGINEERING & DESIGN,"$34,950.61 ",2/8/2016
"AECOM TECHNICAL SERVICES, INC.",OUTSIDE SERVICES - CAPITAL,"$24,552.38 ",2/18/2016
"AECOM TECHNICAL SERVICES, INC.",ENGINEERING & DESIGN,"$19,409.92 ",2/18/2016
"AECOM TECHNICAL SERVICES, INC.",OUTSIDE SERVICES - CAPITAL,"$23,581.75 ",4/18/2016
"AECOM TECHNICAL SERVICES, INC.",OUTSIDE SERVICES - CAPITAL,"$35,648.08 ",5/19/2016
"AECOM TECHNICAL SERVICES, INC.",ENGINEERING & DESIGN,"$6,022.95 ",5/19/2016
"AECOM TECHNICAL SERVICES, INC.",OUTSIDE SERVICES - CAPITAL,"$10,783.57 ",7/19/2016
"AECOM TECHNICAL SERVICES, INC.",OUTSIDE SERVICES - CAPITAL,"$48,298.46 ",8/22/2016
"AECOM TECHNICAL SERVICES, INC.",OUTSIDE SERVICES - CAPITAL,"$34,938.65 ",10/19/2016
"AECOM TECHNICAL SERVICES, INC.",ENGINEERING & DESIGN,"$1,103.56 ",10/20/2016
"AECOM TECHNICAL SERVICES, INC.",ENGINEERING & DESIGN,"$13,828.75 ",11/15/2016
"AFC INTERNATIONAL, INC.",OUTSIDE SERVICES,"$1,117 ",2/2/2016
"AFC INTERNATIONAL, INC.",MATERIALS - NON-INVENTORY,"$4,016 ",2/29/2016
"AFC INTERNATIONAL, INC.",OUTSIDE SERVICES,$725 ,3/22/2016
"AFC INTERNATIONAL, INC.",MATERIALS - NON-INVENTORY,"$1,017 ",3/28/2016
"AFC INTERNATIONAL, INC.",MATERIALS - NON-INVENTORY,$126.31 ,4/12/2016
"AFC INTERNATIONAL, INC.",MATERIALS - NON-INVENTORY,$99.80 ,7/26/2016
"AFC INTERNATIONAL, INC.",OUTSIDE SERVICES,$450 ,8/11/2016
"AFC INTERNATIONAL, INC.",MATERIALS - NON-INVENTORY,$210.04 ,9/19/2016
"AFC INTERNATIONAL, INC.",OUTSIDE SERVICES,$825 ,12/13/2016
AFFILIATED CONTROL EQUIPMENT CO INC,MATERIALS - NON-INVENTORY,$560 ,1/12/2016
AFFILIATED CONTROL EQUIPMENT CO INC,MISCELLANEOUS OTHER EXPENSE,$44.28 ,1/12/2016
AFFIRM AGENCY,MISCELLANEOUS OTHER EXPENSE,"$44,600.45 ",1/25/2016
AFFIRM AGENCY,MISCELLANEOUS OTHER EXPENSE,$576.67 ,2/25/2016
AFFIRM AGENCY,MISCELLANEOUS OTHER EXPENSE,$652.50 ,3/31/2016
AFFIRM AGENCY,MISCELLANEOUS OTHER EXPENSE,$262.50 ,4/7/2016
AFFIRM AGENCY,MISCELLANEOUS OTHER EXPENSE,"$11,054.15 ",4/25/2016
AFRICAN AMERICAN CONTRACTORS ASSOC.,MISCELLANEOUS OTHER EXPENSE,$300 ,2/2/2016
AFRICAN AMERICAN CONTRACTORS ASSOC.,MISCELLANEOUS OTHER EXPENSE,"$1,000 ",6/6/2016
AGSCO CORP.,MATERIALS - INVENTORY,"$3,852.80 ",2/2/2016
AGSCO CORP.,MATERIALS & ASSETS - CAPITAL,"$8,604 ",2/9/2016
AGSCO CORP.,MATERIALS - INVENTORY,"$4,480 ",7/19/2016
AGSCO CORP.,MATERIALS - NON-INVENTORY,"$5,130 ",12/27/2016
AGUSTIN C. RAMIREZ,"EMP EXPENSE REIMB, LOCAL",$15.66 ,2/23/2016
AHEAD OF OUR TIME PUBLISHING,MISCELLANEOUS OTHER EXPENSE,$500 ,1/13/2016
AICPA RENEWAL PROCESSING,MISCELLANEOUS OTHER EXPENSE,$255 ,6/30/2016
AICPA RENEWAL PROCESSING,MISCELLANEOUS OTHER EXPENSE,$255 ,7/11/2016
"AIRCRAFT & COMMERCIAL ENTERPRISES,",MATERIALS - CAPITAL,"$1,908 ",7/19/2016
"AIRCRAFT & COMMERCIAL ENTERPRISES,",MATERIALS - NON-INVENTORY,"$6,482.50 ",7/28/2016
"AIRCRAFT & COMMERCIAL ENTERPRISES,",MATERIALS - NON-INVENTORY,"$8,620.94 ",9/12/2016
"AIRCRAFT & COMMERCIAL ENTERPRISES,",MATERIALS - NON-INVENTORY,"$6,083 ",11/14/2016
"AIRGAS USA, LLC",MATERIALS - NON-INVENTORY,$272 ,6/13/2016
"AIRGAS USA, LLC",MISCELLANEOUS OTHER EXPENSE,$19 ,6/13/2016
"AKA COMP SOLUTIONS, INC.",MATERIALS & ASSETS - CAPITAL,"$277,500 ",12/20/2016
ALAN RATLIFF,"EMP EXPENSE REIMB, OUT OF TOWN","$1,865.87 ",6/21/2016
ALAN RATLIFF,"EMP EXPENSE REIMB, OUT OF TOWN",$756.50 ,8/10/2016
ALAN RATLIFF,"EMP EXPENSE REIMB, OUT OF TOWN","$1,766.32 ",9/28/2016
ALAN T. HALL II,"EMP EXPENSE REIMB, LOCAL",$115 ,1/5/2016
ALAN T. HALL II,"EMP EXPENSE REIMB, LOCAL",$204.70 ,2/2/2016
ALAN T. HALL II,"EMP EXPENSE REIMB, LOCAL",$56.16 ,2/24/2016
ALAN T. HALL II,"EMP EXPENSE REIMB, LOCAL",$97.20 ,5/9/2016
ALAN T. HALL II,"EMP EXPENSE REIMB, LOCAL",$10.80 ,5/31/2016
ALAN T. HALL II,"EMP EXPENSE REIMB, LOCAL",$99.36 ,8/1/2016
ALAN T. HALL II,"EMP EXPENSE REIMB, LOCAL",$45.36 ,9/1/2016
ALAN T. HALL II,"EMP EXPENSE REIMB, LOCAL",$16.20 ,9/15/2016
ALAN T. HALL II,"EMP EXPENSE REIMB, LOCAL",$99.39 ,11/22/2016
ALBINO CONTRERAS,"EMP EXPENSE REIMB, LOCAL",$22 ,5/3/2016
"ALCOHOL & DRUG TESTING SERVICES,LLC",MISCELLANEOUS OTHER EXPENSE,"$6,209.24 ",1/11/2016
"ALCOHOL & DRUG TESTING SERVICES,LLC",MISCELLANEOUS OTHER EXPENSE,"$19,083 ",2/8/2016
"ALCOHOL & DRUG TESTING SERVICES,LLC",MISCELLANEOUS OTHER EXPENSE,"$5,210.50 ",3/1/2016
"ALCOHOL & DRUG TESTING SERVICES,LLC",MISCELLANEOUS OTHER EXPENSE,"$7,009.50 ",3/2/2016
"ALCOHOL & DRUG TESTING SERVICES,LLC",MISCELLANEOUS OTHER EXPENSE,"$21,988 ",3/30/2016
"ALCOHOL & DRUG TESTING SERVICES,LLC",MISCELLANEOUS OTHER EXPENSE,"$5,016.50 ",5/16/2016
"ALCOHOL & DRUG TESTING SERVICES,LLC",MISCELLANEOUS OTHER EXPENSE,"$13,541.50 ",5/24/2016
"ALCOHOL & DRUG TESTING SERVICES,LLC",MISCELLANEOUS OTHER EXPENSE,"$4,341 ",6/14/2016
"ALCOHOL & DRUG TESTING SERVICES,LLC",MISCELLANEOUS OTHER EXPENSE,"$3,767 ",7/6/2016
"ALCOHOL & DRUG TESTING SERVICES,LLC",MISCELLANEOUS OTHER EXPENSE,"$13,035 ",8/2/2016
"ALCOHOL & DRUG TESTING SERVICES,LLC",MISCELLANEOUS OTHER EXPENSE,"$4,250.50 ",8/31/2016
"ALCOHOL & DRUG TESTING SERVICES,LLC",MISCELLANEOUS OTHER EXPENSE,"$8,072.50 ",9/8/2016
"ALCOHOL & DRUG TESTING SERVICES,LLC",MISCELLANEOUS OTHER EXPENSE,"$3,977.50 ",10/4/2016
"ALCOHOL & DRUG TESTING SERVICES,LLC",MISCELLANEOUS OTHER EXPENSE,"$7,290 ",10/19/2016
"ALCOHOL & DRUG TESTING SERVICES,LLC",MISCELLANEOUS OTHER EXPENSE,"$8,614.50 ",11/22/2016
"ALCOHOL & DRUG TESTING SERVICES,LLC",MISCELLANEOUS OTHER EXPENSE,"$3,731.50 ",12/12/2016
"ALCOHOL & DRUG TESTING SERVICES,LLC",MISCELLANEOUS OTHER EXPENSE,"$4,165 ",12/27/2016
ALDON CO.,MISCELLANEOUS OTHER EXPENSE,"$3,000 ",4/18/2016
ALEJANDRO REYES,"EMP EXPENSE REIMB, OUT OF TOWN","$2,150 ",4/11/2016
ALEKSANDR SIEVSKY,"EMP EXPENSE REIMB, LOCAL",$191.16 ,2/24/2016
ALEKSANDR SIEVSKY,"EMP EXPENSE REIMB, LOCAL",$191.16 ,3/24/2016
ALEKSANDR SIEVSKY,"EMP EXPENSE REIMB, LOCAL",$184.36 ,3/31/2016
ALEXANDRY VITALIS,"EMP EXPENSE REIMB, LOCAL",$21 ,9/8/2016
ALEXIS KARAS,"EMP EXPENSE REIMB, OUT OF TOWN","$1,166.81 ",7/26/2016
ALFONSO BECERRA,"EMP EXPENSE REIMB, LOCAL",$103.50 ,1/25/2016
ALFONSO BECERRA,"EMP EXPENSE REIMB, LOCAL",$32.40 ,12/28/2016
ALFONSO OCHOA,"EMP EXPENSE REIMB, LOCAL",$565 ,2/17/2016
ALFONSO OCHOA,"EMP EXPENSE REIMB, LOCAL",$565 ,2/23/2016
ALFONSO OCHOA,"EMP EXPENSE REIMB, LOCAL",$565 ,3/7/2016
ALFONSO OCHOA,"EMP EXPENSE REIMB, LOCAL",$565 ,3/23/2016
ALFONSO OCHOA,"EMP EXPENSE REIMB, LOCAL",$621 ,3/31/2016
ALFONSO OCHOA,"EMP EXPENSE REIMB, LOCAL",$621.50 ,4/20/2016
ALFONSO OCHOA,"EMP EXPENSE REIMB, LOCAL",$113 ,5/9/2016
ALFONSO OCHOA,"EMP EXPENSE REIMB, LOCAL",$226 ,6/30/2016
ALFONSO OCHOA,"EMP EXPENSE REIMB, LOCAL",$113 ,9/6/2016
ALFONSO OCHOA,"EMP EXPENSE REIMB, LOCAL",$113 ,10/24/2016
ALFONSO OCHOA,"EMP EXPENSE REIMB, LOCAL",$56.50 ,11/7/2016
ALFRED BENESCH & CO.,CONSTRUCTION,"$452,720.29 ",1/25/2016
ALFRED BENESCH & CO.,ENGINEERING & DESIGN,"$452,720.29 ",1/25/2016
ALFRED BENESCH & CO.,ENG. MANAGEMENT & INSPECTIONS,"$136,614.48 ",1/28/2016
ALFRED BENESCH & CO.,ENG. MANAGEMENT & INSPECTIONS,"$308,140.40 ",2/16/2016
ALFRED BENESCH & CO.,CONSTRUCTION,"$189,110.53 ",3/2/2016
ALFRED BENESCH & CO.,ENGINEERING & DESIGN,"$189,110.53 ",3/2/2016
ALFRED BENESCH & CO.,ENG. MANAGEMENT & INSPECTIONS,"$43,380.65 ",3/28/2016
ALFRED BENESCH & CO.,ENG. MANAGEMENT & INSPECTIONS,"$99,385.21 ",4/11/2016
ALFRED BENESCH & CO.,ENG. MANAGEMENT & INSPECTIONS,"$104,902.85 ",4/25/2016
ALFRED BENESCH & CO.,CONSTRUCTION,"$177,547.76 ",5/12/2016
ALFRED BENESCH & CO.,ENGINEERING & DESIGN,"$177,547.77 ",5/12/2016
ALFRED BENESCH & CO.,ENG. MANAGEMENT & INSPECTIONS,"$94,772.03 ",5/23/2016
ALFRED BENESCH & CO.,ENG. MANAGEMENT & INSPECTIONS,"$84,090.09 ",6/13/2016
ALFRED BENESCH & CO.,CONSTRUCTION,"$200,298.74 ",6/20/2016
ALFRED BENESCH & CO.,ENGINEERING & DESIGN,"$200,298.74 ",6/20/2016
ALFRED BENESCH & CO.,CONSTRUCTION,"$224,283.96 ",7/11/2016
ALFRED BENESCH & CO.,ENGINEERING & DESIGN,"$224,283.95 ",7/11/2016
ALFRED BENESCH & CO.,ENG. MANAGEMENT & INSPECTIONS,"$61,152.11 ",7/14/2016
ALFRED BENESCH & CO.,CONSTRUCTION,"$338,272.92 ",8/16/2016
ALFRED BENESCH & CO.,ENGINEERING & DESIGN,"$338,272.92 ",8/16/2016
ALFRED BENESCH & CO.,MISCELLANEOUS OTHER EXPENSE,"$14,203.73 ",8/23/2016
ALFRED BENESCH & CO.,ENG. MANAGEMENT & INSPECTIONS,"$180,805.11 ",9/1/2016
ALFRED BENESCH & CO.,ENG. MANAGEMENT & INSPECTIONS,"$33,409.83 ",9/19/2016
ALFRED BENESCH & CO.,ENG. MANAGEMENT & INSPECTIONS,"$7,062.33 ",10/31/2016
ALFRED BENESCH & CO.,ENG. MANAGEMENT & INSPECTIONS,"$30,229.35 ",11/7/2016
ALFRED BENESCH & CO.,ENG. MANAGEMENT & INSPECTIONS,"$11,083.97 ",12/14/2016
ALICIA HADLEY,"EMP EXPENSE REIMB, LOCAL",$330.55 ,4/18/2016
ALICIA HADLEY,"EMP EXPENSE REIMB, LOCAL",$432.40 ,5/17/2016
ALICIA HADLEY,"EMP EXPENSE REIMB, LOCAL",$374.24 ,9/12/2016
ALICIA HADLEY,"EMP EXPENSE REIMB, LOCAL",$916.04 ,10/20/2016
ALICIA HADLEY,"EMP EXPENSE REIMB, LOCAL",$135.95 ,11/7/2016
ALICIA HADLEY,"EMP EXPENSE REIMB, LOCAL",$294.24 ,11/28/2016
"ALIGN ELEVATION, LLC",OUTSIDE SERVICES,"$7,111.52 ",1/7/2016
"ALIGN ELEVATION, LLC",OUTSIDE SERVICES,$759.20 ,1/11/2016
"ALIGN ELEVATION, LLC",OUTSIDE SERVICES,"$3,132.45 ",1/11/2016
"ALIGN ELEVATION, LLC",OUTSIDE SERVICES,"$2,331.72 ",1/12/2016
"ALIGN ELEVATION, LLC",OUTSIDE SERVICES,$96 ,1/13/2016
"ALIGN ELEVATION, LLC",OUTSIDE SERVICES,$432 ,1/13/2016
"ALIGN ELEVATION, LLC",OUTSIDE SERVICES,"$18,740 ",1/25/2016
"ALIGN ELEVATION, LLC",OUTSIDE SERVICES,"$3,878.54 ",2/8/2016
"ALIGN ELEVATION, LLC",OUTSIDE SERVICES,"$5,751.61 ",2/16/2016
"ALIGN ELEVATION, LLC",OUTSIDE SERVICES,"$2,088.48 ",2/18/2016
"ALIGN ELEVATION, LLC",OUTSIDE SERVICES,$332.80 ,2/18/2016
"ALIGN ELEVATION, LLC",OUTSIDE SERVICES,"$6,442.64 ",2/29/2016
"ALIGN ELEVATION, LLC",OUTSIDE SERVICES,"$5,318.83 ",3/29/2016
"ALIGN ELEVATION, LLC",OUTSIDE SERVICES,"$2,222.82 ",4/4/2016
"ALIGN ELEVATION, LLC",OUTSIDE SERVICES,"$7,185.51 ",4/20/2016
"ALIGN ELEVATION, LLC",OUTSIDE SERVICES,"$5,240.52 ",4/21/2016
"ALIGN ELEVATION, LLC",OUTSIDE SERVICES,"$7,526.85 ",4/26/2016
"ALIGN ELEVATION, LLC",OUTSIDE SERVICES,$403.20 ,5/2/2016
"ALIGN ELEVATION, LLC",OUTSIDE SERVICES,"$8,916.68 ",5/9/2016
"ALIGN ELEVATION, LLC",OUTSIDE SERVICES,"$2,604.85 ",5/10/2016
"ALIGN ELEVATION, LLC",OUTSIDE SERVICES,"$11,213.13 ",5/31/2016
"ALIGN ELEVATION, LLC",OUTSIDE SERVICES,"$1,898.78 ",6/6/2016
"ALIGN ELEVATION, LLC",OUTSIDE SERVICES,$713.40 ,6/28/2016
"ALIGN ELEVATION, LLC",OUTSIDE SERVICES,$96 ,6/28/2016
"ALIGN ELEVATION, LLC",OUTSIDE SERVICES,"$6,313.28 ",6/30/2016
"ALIGN ELEVATION, LLC",OUTSIDE SERVICES,"$4,652.56 ",7/5/2016
"ALIGN ELEVATION, LLC",OUTSIDE SERVICES,"$8,080.64 ",8/2/2016
"ALIGN ELEVATION, LLC",OUTSIDE SERVICES,"$2,177.56 ",8/9/2016
"ALIGN ELEVATION, LLC",OUTSIDE SERVICES,"$5,497 ",8/16/2016
"ALIGN ELEVATION, LLC",OUTSIDE SERVICES,$96 ,8/29/2016
"ALIGN ELEVATION, LLC",OUTSIDE SERVICES,"$10,946.68 ",8/31/2016
"ALIGN ELEVATION, LLC",OUTSIDE SERVICES,"$1,691.28 ",9/1/2016
"ALIGN ELEVATION, LLC",OUTSIDE SERVICES,$432 ,9/6/2016
"ALIGN ELEVATION, LLC",OUTSIDE SERVICES,$98 ,9/8/2016
"ALIGN ELEVATION, LLC",OUTSIDE SERVICES,"$10,206.37 ",9/26/2016
"ALIGN ELEVATION, LLC",OUTSIDE SERVICES,"$14,351.34 ",10/31/2016
"ALIGN ELEVATION, LLC",OUTSIDE SERVICES,"$12,320.02 ",11/7/2016
"ALIGN ELEVATION, LLC",OUTSIDE SERVICES,"$53,478.10 ",11/21/2016
"ALIGN ELEVATION, LLC",OUTSIDE SERVICES,"$6,881.24 ",11/21/2016
"ALIGN ELEVATION, LLC",OUTSIDE SERVICES,"$2,207.17 ",12/8/2016
"ALIGN ELEVATION, LLC",OUTSIDE SERVICES,"$15,687.02 ",12/19/2016
ALL AMERICAN POLY CORP.,MATERIALS - INVENTORY,$469.68 ,1/6/2016
ALL AMERICAN POLY CORP.,MATERIALS - INVENTORY,$815.04 ,1/7/2016
ALL AMERICAN POLY CORP.,MATERIALS - INVENTORY,"$1,174.20 ",1/19/2016
ALL AMERICAN POLY CORP.,MATERIALS - INVENTORY,"$2,006.14 ",1/20/2016
ALL AMERICAN POLY CORP.,MATERIALS - INVENTORY,"$13,680.84 ",1/25/2016
ALL AMERICAN POLY CORP.,MATERIALS - INVENTORY,"$11,077.45 ",2/16/2016
ALL AMERICAN POLY CORP.,MATERIALS - INVENTORY,"$5,242.32 ",2/25/2016
ALL AMERICAN POLY CORP.,MATERIALS - INVENTORY,"$14,129.94 ",2/29/2016
ALL AMERICAN POLY CORP.,MATERIALS - INVENTORY,"$4,854 ",3/1/2016
ALL AMERICAN POLY CORP.,MATERIALS - INVENTORY,$102.36 ,3/16/2016
ALL AMERICAN POLY CORP.,MATERIALS - INVENTORY,$978.50 ,4/12/2016
ALL AMERICAN POLY CORP.,MATERIALS - INVENTORY,"$3,308.42 ",5/2/2016
ALL COVERED,PROFESSIONAL SERVICES,"$5,950 ",10/4/2016
ALL COVERED,PROFESSIONAL SERVICES,"$5,950 ",12/27/2016
ALLAN BAKER INC DBA KORRECT OPTICAL,MISCELLANEOUS OTHER EXPENSE,"$6,475 ",1/6/2016
ALLAN BAKER INC DBA KORRECT OPTICAL,MISCELLANEOUS OTHER EXPENSE,"$3,172 ",2/22/2016
ALLAN BAKER INC DBA KORRECT OPTICAL,MISCELLANEOUS OTHER EXPENSE,"$2,527 ",5/11/2016
ALLAN BAKER INC DBA KORRECT OPTICAL,MISCELLANEOUS OTHER EXPENSE,$520 ,6/6/2016
ALLAN BAKER INC DBA KORRECT OPTICAL,MISCELLANEOUS OTHER EXPENSE,$249 ,8/11/2016
ALLAN BAKER INC DBA KORRECT OPTICAL,MISCELLANEOUS OTHER EXPENSE,"$2,725 ",8/12/2016
ALLAN BAKER INC DBA KORRECT OPTICAL,MISCELLANEOUS OTHER EXPENSE,$586 ,9/15/2016
ALLAN BAKER INC DBA KORRECT OPTICAL,MISCELLANEOUS OTHER EXPENSE,"$1,482 ",9/26/2016
ALLAN BAKER INC DBA KORRECT OPTICAL,MISCELLANEOUS OTHER EXPENSE,"$2,703 ",11/1/2016
ALLAN BAKER INC DBA KORRECT OPTICAL,MISCELLANEOUS OTHER EXPENSE,$146 ,12/1/2016
ALLAN PEREZ,"EMP EXPENSE REIMB, LOCAL",$344.90 ,3/2/2016
ALLAN PEREZ,"EMP EXPENSE REIMB, LOCAL",$276.48 ,4/28/2016
ALLEN M. DEBRAAL,"EMP EXPENSE REIMB, LOCAL",$7 ,1/25/2016
ALLEN M. DEBRAAL,"EMP EXPENSE REIMB, LOCAL",$16 ,2/24/2016
ALLEN M. DEBRAAL,"EMP EXPENSE REIMB, OUT OF TOWN",$305.50 ,6/15/2016
ALLEN M. DEBRAAL,"EMP EXPENSE REIMB, OUT OF TOWN",$268.50 ,7/7/2016
ALLEN M. DEBRAAL,METRA SPONSORED EVENT,$63 ,8/23/2016
ALLEN M. DEBRAAL,"EMP EXPENSE REIMB, LOCAL",$11.25 ,8/25/2016
ALLEN REICH,"EMP EXPENSE REIMB, LOCAL",$57.67 ,9/28/2016
ALLIANCE OF HAZARDOUS MATERIALS,PROFESSIONAL SERVICES,$105 ,1/6/2016
ALLIANCE OF HAZARDOUS MATERIALS,PROFESSIONAL SERVICES,$25 ,10/4/2016
ALLIANCE OF HAZARDOUS MATERIALS,PROFESSIONAL SERVICES,$125 ,11/9/2016
ALLIED CLEANING SERV****0004602108,MISCELLANEOUS OTHER EXPENSE,"$5,836.92 ",1/27/2016
ALLIED ELECTRONICS INC.,MATERIALS - NON-INVENTORY,$191.80 ,1/27/2016
ALLIED ELECTRONICS INC.,MATERIALS - NON-INVENTORY,$617.99 ,2/9/2016
ALLIED ELECTRONICS INC.,MATERIALS & ASSETS - CAPITAL,"$6,587.90 ",2/9/2016
ALLIED ELECTRONICS INC.,MATERIALS - INVENTORY,$201.25 ,3/1/2016
ALLIED ELECTRONICS INC.,MATERIALS - INVENTORY,$128.66 ,3/22/2016
ALLIED ELECTRONICS INC.,MATERIALS - NON-INVENTORY,$181.98 ,3/22/2016
ALLIED ELECTRONICS INC.,MATERIALS - NON-INVENTORY,$139.04 ,4/21/2016
ALLIED ELECTRONICS INC.,MATERIALS & ASSETS - CAPITAL,$399.84 ,5/3/2016
ALLIED ELECTRONICS INC.,MATERIALS - NON-INVENTORY,$220 ,5/24/2016
ALLIED ELECTRONICS INC.,MATERIALS & ASSETS - CAPITAL,$678.16 ,5/31/2016
ALLIED ELECTRONICS INC.,MATERIALS - INVENTORY,$167 ,6/27/2016
ALLIED ELECTRONICS INC.,MATERIALS & ASSETS - CAPITAL,"$1,666 ",8/22/2016
ALLIED ELECTRONICS INC.,MATERIALS - INVENTORY,$254.72 ,8/30/2016
ALLIED ELECTRONICS INC.,MATERIALS & ASSETS - CAPITAL,"$5,408.97 ",8/31/2016
ALLIED ELECTRONICS INC.,MATERIALS & ASSETS - CAPITAL,"$1,029.60 ",9/13/2016
ALLIED ELECTRONICS INC.,MATERIALS & ASSETS - CAPITAL,"$1,788.93 ",11/8/2016
ALLOY SLING CHAIN INDUSTRIES,OUTSIDE SERVICES,$399.88 ,1/12/2016
ALLOY SLING CHAIN INDUSTRIES,OUTSIDE SERVICES,$429.87 ,2/18/2016
ALLOY SLING CHAIN INDUSTRIES,OUTSIDE SERVICES,$567 ,3/30/2016
ALLOY SLING CHAIN INDUSTRIES,OUTSIDE SERVICES,$69.98 ,5/3/2016
ALLOY SLING CHAIN INDUSTRIES,OUTSIDE SERVICES,$419.86 ,5/16/2016
ALLOY SLING CHAIN INDUSTRIES,OUTSIDE SERVICES,$279.96 ,7/26/2016
ALLOY SLING CHAIN INDUSTRIES,OUTSIDE SERVICES,$69.98 ,10/12/2016
"ALLPEST EXTERMINATING CO., INC.",OUTSIDE SERVICES,$660 ,8/1/2016
"ALLPEST EXTERMINATING CO., INC.",OUTSIDE SERVICES,$330 ,8/22/2016
"ALLPEST EXTERMINATING CO., INC.",OUTSIDE SERVICES,$275 ,8/23/2016
ALMA CERVANTES,METRA SPONSORED EVENT,$51.75 ,8/16/2016
"ALSTOM SIGNALING OPERATION, LLC",MATERIALS - INVENTORY,"$54,412 ",1/20/2016
"ALSTOM SIGNALING OPERATION, LLC",MATERIALS - INVENTORY,$860.12 ,1/26/2016
"ALSTOM SIGNALING OPERATION, LLC",MATERIALS - INVENTORY,"$36,315.06 ",2/3/2016
"ALSTOM SIGNALING OPERATION, LLC",MATERIALS - INVENTORY,"$2,236.14 ",2/10/2016
"ALSTOM SIGNALING OPERATION, LLC",OUTSIDE SERVICES,"$2,175 ",3/8/2016
"ALSTOM SIGNALING OPERATION, LLC",MATERIALS - NON-INVENTORY,"$1,056 ",3/17/2016
"ALSTOM SIGNALING OPERATION, LLC",MATERIALS - INVENTORY,"$1,086 ",3/28/2016
"ALSTOM SIGNALING OPERATION, LLC",MATERIALS - CAPITAL,"$33,092.44 ",3/28/2016
"ALSTOM SIGNALING OPERATION, LLC",MATERIALS - NON-INVENTORY,"$2,156.55 ",3/28/2016
"ALSTOM SIGNALING OPERATION, LLC",OUTSIDE SERVICES,"$1,860 ",3/28/2016
"ALSTOM SIGNALING OPERATION, LLC",MATERIALS & ASSETS - CAPITAL,"$217,140.48 ",3/30/2016
"ALSTOM SIGNALING OPERATION, LLC",MATERIALS & ASSETS - CAPITAL,"$4,338.76 ",4/5/2016
"ALSTOM SIGNALING OPERATION, LLC",MATERIALS & ASSETS - CAPITAL,"$83,102.44 ",4/6/2016
"ALSTOM SIGNALING OPERATION, LLC",MATERIALS & ASSETS - CAPITAL,"$13,016.28 ",4/11/2016
"ALSTOM SIGNALING OPERATION, LLC",MATERIALS - INVENTORY,"$2,542.50 ",4/14/2016
"ALSTOM SIGNALING OPERATION, LLC",OUTSIDE SERVICES,$145 ,4/19/2016
"ALSTOM SIGNALING OPERATION, LLC",OUTSIDE SERVICES,$145 ,4/19/2016
"ALSTOM SIGNALING OPERATION, LLC",OUTSIDE SERVICES,"$1,365 ",4/26/2016
"ALSTOM SIGNALING OPERATION, LLC",OUTSIDE SERVICES,$765 ,5/2/2016
"ALSTOM SIGNALING OPERATION, LLC",OUTSIDE SERVICES,"$2,065 ",5/11/2016
"ALSTOM SIGNALING OPERATION, LLC",MATERIALS - INVENTORY,"$2,318.71 ",5/12/2016
"ALSTOM SIGNALING OPERATION, LLC",OUTSIDE SERVICES,$540 ,5/12/2016
"ALSTOM SIGNALING OPERATION, LLC",OUTSIDE SERVICES,$620 ,5/12/2016
"ALSTOM SIGNALING OPERATION, LLC",OUTSIDE SERVICES,$380 ,5/16/2016
"ALSTOM SIGNALING OPERATION, LLC",OUTSIDE SERVICES,$890 ,5/16/2016
"ALSTOM SIGNALING OPERATION, LLC",OUTSIDE SERVICES,$375 ,5/18/2016
"ALSTOM SIGNALING OPERATION, LLC",OUTSIDE SERVICES,$270 ,5/23/2016
"ALSTOM SIGNALING OPERATION, LLC",MATERIALS & ASSETS - CAPITAL,"$603,531.64 ",5/26/2016
"ALSTOM SIGNALING OPERATION, LLC",OUTSIDE SERVICES,$695 ,6/1/2016
"ALSTOM SIGNALING OPERATION, LLC",OUTSIDE SERVICES,$840 ,6/1/2016
"ALSTOM SIGNALING OPERATION, LLC",OUTSIDE SERVICES,$270 ,6/2/2016
"ALSTOM SIGNALING OPERATION, LLC",OUTSIDE SERVICES,$210 ,6/16/2016
"ALSTOM SIGNALING OPERATION, LLC",CONSTRUCTION,"$406,118 ",6/21/2016
"ALSTOM SIGNALING OPERATION, LLC",OUTSIDE SERVICES,$185 ,6/22/2016
"ALSTOM SIGNALING OPERATION, LLC",OUTSIDE SERVICES,$540 ,6/22/2016
"ALSTOM SIGNALING OPERATION, LLC",MATERIALS & ASSETS - CAPITAL,"$65,081.40 ",6/30/2016
"ALSTOM SIGNALING OPERATION, LLC",MATERIALS & ASSETS - CAPITAL,"$431,414.48 ",7/11/2016
"ALSTOM SIGNALING OPERATION, LLC",MATERIALS & ASSETS - CAPITAL,"$4,560.76 ",7/18/2016
"ALSTOM SIGNALING OPERATION, LLC",MATERIALS & ASSETS - CAPITAL,"$188,564.68 ",7/25/2016
"ALSTOM SIGNALING OPERATION, LLC",MATERIALS & ASSETS - CAPITAL,"$17,355.04 ",8/1/2016
"ALSTOM SIGNALING OPERATION, LLC",MATERIALS & ASSETS - CAPITAL,"$75,312.92 ",8/15/2016
"ALSTOM SIGNALING OPERATION, LLC",MATERIALS - INVENTORY,$345 ,9/6/2016
"ALSTOM SIGNALING OPERATION, LLC",OUTSIDE SERVICES,$465 ,9/12/2016
"ALSTOM SIGNALING OPERATION, LLC",MATERIALS & ASSETS - CAPITAL,"$41,604 ",9/19/2016
"ALSTOM SIGNALING OPERATION, LLC",OUTSIDE SERVICES,"$5,460 ",9/21/2016
"ALSTOM SIGNALING OPERATION, LLC",MATERIALS & ASSETS - CAPITAL,"$30,371.32 ",9/22/2016
"ALSTOM SIGNALING OPERATION, LLC",CONSTRUCTION,"$121,838 ",9/22/2016
"ALSTOM SIGNALING OPERATION, LLC",MATERIALS - INVENTORY,$423.06 ,9/26/2016
"ALSTOM SIGNALING OPERATION, LLC",MATERIALS & ASSETS - CAPITAL,"$34,710.08 ",10/3/2016
"ALSTOM SIGNALING OPERATION, LLC",OUTSIDE SERVICES,$550 ,10/5/2016
"ALSTOM SIGNALING OPERATION, LLC",OUTSIDE SERVICES,"$1,260 ",10/6/2016
"ALSTOM SIGNALING OPERATION, LLC",MATERIALS & ASSETS - CAPITAL,"$68,380 ",10/17/2016
"ALSTOM SIGNALING OPERATION, LLC",OUTSIDE SERVICES,$353 ,10/19/2016
"ALSTOM SIGNALING OPERATION, LLC",OUTSIDE SERVICES,$353 ,10/19/2016
"ALSTOM SIGNALING OPERATION, LLC",MATERIALS & ASSETS - CAPITAL,"$114,361.76 ",10/24/2016
"ALSTOM SIGNALING OPERATION, LLC",MATERIALS & ASSETS - CAPITAL,"$13,460.28 ",10/25/2016
"ALSTOM SIGNALING OPERATION, LLC",MATERIALS & ASSETS - CAPITAL,"$85,766.44 ",10/31/2016
"ALSTOM SIGNALING OPERATION, LLC",MATERIALS - INVENTORY,"$1,863.45 ",11/1/2016
"ALSTOM SIGNALING OPERATION, LLC",OUTSIDE SERVICES,"$1,315 ",11/10/2016
"ALSTOM SIGNALING OPERATION, LLC",OUTSIDE SERVICES,$353 ,11/17/2016
"ALSTOM SIGNALING OPERATION, LLC",MATERIALS - INVENTORY,"$5,386.14 ",12/6/2016
"ALSTOM SIGNALING OPERATION, LLC",CONSTRUCTION,"$1,011,241 ",12/8/2016
"ALSTOM SIGNALING OPERATION, LLC",CONSTRUCTION,"$1,443,756.01 ",12/15/2016
"ALSTOM SIGNALING, INC.",CONSTRUCTION,"$77,500 ",1/19/2016
"ALSTOM SIGNALING, INC.",CONSTRUCTION,"$77,500 ",1/19/2016
"ALSTOM SIGNALING, INC.",MATERIALS - INVENTORY,"$7,802.84 ",1/25/2016
"ALSTOM SIGNALING, INC.",MATERIALS - INVENTORY,"$1,576.46 ",2/8/2016
"ALSTOM SIGNALING, INC.",OUTSIDE SERVICES,"$2,100 ",2/8/2016
"ALSTOM SIGNALING, INC.",MATERIALS - INVENTORY,"$55,425.72 ",2/9/2016
"ALSTOM SIGNALING, INC.",CONSTRUCTION,"$37,500 ",2/16/2016
"ALSTOM SIGNALING, INC.",CONSTRUCTION,"$37,500 ",2/16/2016
"ALSTOM SIGNALING, INC.",CONSTRUCTION,"$7,500 ",2/25/2016
"ALSTOM SIGNALING, INC.",CONSTRUCTION,"$7,500 ",2/25/2016
"ALSTOM SIGNALING, INC.",OUTSIDE SERVICES,"$1,250 ",3/1/2016
"ALSTOM SIGNALING, INC.",MATERIALS - INVENTORY,"$27,687.79 ",3/14/2016
"ALSTOM SIGNALING, INC.",MATERIALS - NON-INVENTORY,"$2,600 ",3/15/2016
"ALSTOM SIGNALING, INC.",MATERIALS - INVENTORY,"$15,528.26 ",4/11/2016
"ALSTOM SIGNALING, INC.",CONSTRUCTION,"$152,410.40 ",4/11/2016
"ALSTOM SIGNALING, INC.",MATERIALS - INVENTORY,"$18,945.60 ",4/12/2016
"ALSTOM SIGNALING, INC.",MATERIALS - INVENTORY,"$6,826.50 ",4/28/2016
"ALSTOM SIGNALING, INC.",MATERIALS - INVENTORY,"$5,789.70 ",5/3/2016
"ALSTOM SIGNALING, INC.",OUTSIDE SERVICES,"$1,150 ",5/12/2016
"ALSTOM SIGNALING, INC.",MATERIALS - INVENTORY,"$5,313.55 ",5/16/2016
"ALSTOM SIGNALING, INC.",MATERIALS - INVENTORY,"$13,617.65 ",5/23/2016
"ALSTOM SIGNALING, INC.",MATERIALS - INVENTORY,"$9,134.52 ",5/31/2016
"ALSTOM SIGNALING, INC.",MATERIALS - INVENTORY,"$4,963.55 ",6/6/2016
"ALSTOM SIGNALING, INC.",OUTSIDE SERVICES,"$1,075 ",6/7/2016
"ALSTOM SIGNALING, INC.",MATERIALS - INVENTORY,"$4,963.55 ",6/23/2016
"ALSTOM SIGNALING, INC.",MATERIALS & ASSETS - CAPITAL,"$434,480.42 ",7/11/2016
"ALSTOM SIGNALING, INC.",MATERIALS - INVENTORY,"$15,603.07 ",7/19/2016
"ALSTOM SIGNALING, INC.",MATERIALS - INVENTORY,"$17,410.59 ",7/28/2016
"ALSTOM SIGNALING, INC.",CONSTRUCTION,"$137,500 ",8/4/2016
"ALSTOM SIGNALING, INC.",CONSTRUCTION,"$137,500 ",8/4/2016
"ALSTOM SIGNALING, INC.",OUTSIDE SERVICES - CAPITAL,"$10,000 ",8/11/2016
"ALSTOM SIGNALING, INC.",OUTSIDE SERVICES,$995.87 ,8/11/2016
"ALSTOM SIGNALING, INC.",MATERIALS - INVENTORY,"$17,154.14 ",8/30/2016
"ALSTOM SIGNALING, INC.",MATERIALS - INVENTORY,"$5,141.32 ",10/4/2016
"ALSTOM SIGNALING, INC.",OUTSIDE SERVICES - CAPITAL,"$62,463 ",10/19/2016
"ALSTOM SIGNALING, INC.",MATERIALS - INVENTORY,"$71,786.94 ",11/14/2016
"ALSTOM SIGNALING, INC.",MATERIALS - INVENTORY,"$15,190.44 ",11/17/2016
"ALSTOM SIGNALING, INC.",MATERIALS - INVENTORY,"$14,483.42 ",11/22/2016
"ALSTOM SIGNALING, INC.",MATERIALS - INVENTORY,"$1,924.74 ",12/8/2016
"ALSTOM SIGNALING, INC.",MATERIALS - INVENTORY,"$4,963.55 ",12/15/2016
"ALSTOM SIGNALING, INC.",MATERIALS - INVENTORY,"$22,113.03 ",12/19/2016
"ALSTOM TRANSPORTATION, INC.",MATERIALS - INVENTORY,"$40,820 ",1/25/2016
"ALSTOM TRANSPORTATION, INC.",MATERIALS - INVENTORY,"$46,320 ",2/2/2016
"ALSTOM TRANSPORTATION, INC.",MATERIALS - INVENTORY,"$46,320 ",2/18/2016
"ALSTOM TRANSPORTATION, INC.",MATERIALS - INVENTORY,"$392,500 ",3/15/2016
"ALSTOM TRANSPORTATION, INC.",MATERIALS - INVENTORY,"$225,300 ",4/12/2016
"ALSTOM TRANSPORTATION, INC.",MATERIALS - INVENTORY,"$122,460 ",5/3/2016
"ALSTOM TRANSPORTATION, INC.",MATERIALS - INVENTORY,"$40,820 ",5/17/2016
"ALSTOM TRANSPORTATION, INC.",MATERIALS - INVENTORY,"$40,820 ",5/31/2016
"ALSTOM TRANSPORTATION, INC.",MATERIALS - INVENTORY,"$40,820 ",6/14/2016
"ALSTOM TRANSPORTATION, INC.",MATERIALS - INVENTORY,"$81,640 ",7/19/2016
"ALSTOM TRANSPORTATION, INC.",MATERIALS - INVENTORY,"$81,640 ",8/25/2016
"ALSTOM TRANSPORTATION, INC.",MATERIALS - INVENTORY,"$40,820 ",8/29/2016
"ALSTOM TRANSPORTATION, INC.",MATERIALS - INVENTORY,"$81,640 ",10/3/2016
"ALSTOM TRANSPORTATION, INC.",MATERIALS - INVENTORY,"$40,820 ",10/27/2016
"ALSTOM TRANSPORTATION, INC.",MATERIALS - INVENTORY,"$81,640 ",11/8/2016
"ALSTOM TRANSPORTATION, INC.",MATERIALS - INVENTORY,"$81,640 ",11/14/2016
"ALSTOM TRANSPORTATION, INC.",MATERIALS - INVENTORY,"$40,820 ",11/15/2016
"ALSTOM TRANSPORTATION, INC.",MATERIALS - INVENTORY,"$40,820 ",12/8/2016
"ALSTOM TRANSPORTATION, INC.",MATERIALS - INVENTORY,$785 ,12/12/2016
"ALSTOM TRANSPORTATION, INC.",MATERIALS - INVENTORY,"$40,820 ",12/15/2016
"ALSTOM TRANSPORTATION, INC.",MATERIALS - INVENTORY,"$81,640 ",12/27/2016
"ALTERNATE POWER, INC.",OUTSIDE SERVICES,$810.90 ,1/27/2016
"ALTERNATE POWER, INC.",MATERIALS - NON-INVENTORY,"$1,940.58 ",2/4/2016
"ALTERNATE POWER, INC.",OUTSIDE SERVICES,"$1,009.70 ",2/4/2016
"ALTERNATE POWER, INC.",OUTSIDE SERVICES,"$1,781.04 ",2/9/2016
"ALTERNATE POWER, INC.",OUTSIDE SERVICES,$532.59 ,3/1/2016
"ALTERNATE POWER, INC.",OUTSIDE SERVICES,"$4,332.62 ",3/1/2016
"ALTERNATE POWER, INC.",MATERIALS - NON-INVENTORY,"$35,102 ",3/15/2016
"ALTERNATE POWER, INC.",OUTSIDE SERVICES,"$4,551 ",3/15/2016
"ALTERNATE POWER, INC.",OUTSIDE SERVICES,$891.95 ,3/22/2016
"ALTERNATE POWER, INC.",OUTSIDE SERVICES,"$2,111.28 ",5/3/2016
"ALTERNATE POWER, INC.",OUTSIDE SERVICES,"$3,259.44 ",5/24/2016
"ALTERNATE POWER, INC.",MATERIALS - NON-INVENTORY,"$4,380.69 ",5/31/2016
"ALTERNATE POWER, INC.",OUTSIDE SERVICES,"$12,045.75 ",7/25/2016
"ALTERNATE POWER, INC.",MATERIALS - NON-INVENTORY,$343.39 ,8/2/2016
"ALTERNATE POWER, INC.",OUTSIDE SERVICES,"$1,547.28 ",8/11/2016
"ALTERNATE POWER, INC.",OUTSIDE SERVICES,"$2,325.90 ",10/3/2016
"ALTERNATE POWER, INC.",OUTSIDE SERVICES,"$1,531.02 ",10/6/2016
"ALTERNATE POWER, INC.",OUTSIDE SERVICES,"$3,693.26 ",10/6/2016
"ALVAREZ, INC.",OUTSIDE SERVICES,"$1,274 ",1/14/2016
"ALVAREZ, INC.",OUTSIDE SERVICES,"$4,770 ",1/14/2016
"ALVAREZ, INC.",OUTSIDE SERVICES,"$4,770 ",5/26/2016
"ALVAREZ, INC.",OUTSIDE SERVICES,"$4,770 ",6/27/2016
"ALVAREZ, INC.",OUTSIDE SERVICES,"$9,540 ",9/1/2016
"ALVAREZ, INC.",OUTSIDE SERVICES,"$4,770 ",10/6/2016
"ALVAREZ, INC.",OUTSIDE SERVICES,"$4,770 ",10/25/2016
"ALVAREZ, INC.",OUTSIDE SERVICES,"$4,770 ",12/8/2016
"ALVAREZ, INC.",OUTSIDE SERVICES,"$4,770 ",12/27/2016
ALYSIA  PREININGER,"EMP EXPENSE REIMB, OUT OF TOWN",$351.78 ,1/6/2016
ALYSIA  PREININGER,"EMP EXPENSE REIMB, OUT OF TOWN",$317.61 ,2/16/2016
ALYSIA  PREININGER,"EMP EXPENSE REIMB, OUT OF TOWN",$404.54 ,4/14/2016
ALYSIA  PREININGER,"EMP EXPENSE REIMB, OUT OF TOWN",$431.77 ,5/12/2016
ALYSSA M. BATTAGLIA,"EMP EXPENSE REIMB, OUT OF TOWN",$422.51 ,5/5/2016
ALYSSA M. BATTAGLIA,"EMP EXPENSE REIMB, OUT OF TOWN","$1,053.64 ",7/25/2016
ALYSSA M. BATTAGLIA,"EMP EXPENSE REIMB, OUT OF TOWN",$251.92 ,10/3/2016
ALYSSA M. BATTAGLIA,"EMP EXPENSE REIMB, OUT OF TOWN",$392.31 ,10/20/2016
AMALGAMATED BANK,OUTSIDE SERVICES,"$4,910 ",6/13/2016
"AMALGAMATED SERVICES, INC.",OUTSIDE SERVICES,"$1,861.79 ",1/12/2016
"AMALGAMATED SERVICES, INC.",OUTSIDE SERVICES,"$7,909.96 ",1/27/2016
"AMALGAMATED SERVICES, INC.",OUTSIDE SERVICES,"$1,474 ",2/3/2016
"AMALGAMATED SERVICES, INC.",OUTSIDE SERVICES,"$8,304.34 ",4/5/2016
"AMALGAMATED SERVICES, INC.",OUTSIDE SERVICES,"$7,715.17 ",4/25/2016
"AMALGAMATED SERVICES, INC.",OUTSIDE SERVICES,"$5,526.56 ",6/7/2016
"AMALGAMATED SERVICES, INC.",OUTSIDE SERVICES,$824 ,6/14/2016
"AMALGAMATED SERVICES, INC.",OUTSIDE SERVICES,$824 ,6/27/2016
"AMALGAMATED SERVICES, INC.",OUTSIDE SERVICES,"$6,103.09 ",7/19/2016
"AMALGAMATED SERVICES, INC.",OUTSIDE SERVICES,$997.10 ,8/11/2016
"AMALGAMATED SERVICES, INC.",OUTSIDE SERVICES,"$2,835.51 ",9/8/2016
"AMALGAMATED SERVICES, INC.",OUTSIDE SERVICES,"$7,167.42 ",10/4/2016
"AMALGAMATED SERVICES, INC.",OUTSIDE SERVICES,"$8,342 ",10/19/2016
"AMALGAMATED SERVICES, INC.",MATERIALS - NON-INVENTORY,$652.42 ,10/25/2016
"AMALGAMATED SERVICES, INC.",OUTSIDE SERVICES,"$2,070 ",10/25/2016
"AMALGAMATED SERVICES, INC.",OUTSIDE SERVICES,"$5,490.50 ",11/1/2016
"AMALGAMATED SERVICES, INC.",MATERIALS - NON-INVENTORY,$502.83 ,11/7/2016
"AMALGAMATED SERVICES, INC.",OUTSIDE SERVICES,"$4,416 ",11/7/2016
"AMALGAMATED SERVICES, INC.",OUTSIDE SERVICES,"$1,549.84 ",11/17/2016
"AMALGAMATED SERVICES, INC.",OUTSIDE SERVICES,"$2,817.30 ",12/8/2016
"AMALGAMATED SERVICES, INC.",OUTSIDE SERVICES,"$1,399.88 ",12/15/2016
"AMALGAMATED SERVICES, INC.",OUTSIDE SERVICES,"$19,558.41 ",12/27/2016
"AMALGAMATED SERVICES, INC.",OUTSIDE SERVICES,"$2,922.65 ",12/28/2016
"AMD, INC.",MATERIALS - NON-INVENTORY,"$11,301.25 ",2/4/2016
"AMERICAN ASSN. FOR ACCESS,EQUITY",PROFESSIONAL SERVICES,$450 ,4/28/2016
AMERICAN ASSN.FOR ACCESS,MISCELLANEOUS OTHER EXPENSE,$475 ,10/27/2016
AMERICAN ASSN.OF RAILROAD SUPERINT.,MISCELLANEOUS OTHER EXPENSE,$75 ,1/13/2016
"AMERICAN CALIBRATION, INC.",OUTSIDE SERVICES,$53.25 ,1/6/2016
"AMERICAN CALIBRATION, INC.",OUTSIDE SERVICES,$858 ,1/6/2016
"AMERICAN CALIBRATION, INC.",OUTSIDE SERVICES,$32.70 ,1/25/2016
"AMERICAN CALIBRATION, INC.",OUTSIDE SERVICES,"$1,272 ",1/25/2016
"AMERICAN CALIBRATION, INC.",OUTSIDE SERVICES,$66 ,1/27/2016
"AMERICAN CALIBRATION, INC.",OUTSIDE SERVICES,$330 ,1/27/2016
"AMERICAN CALIBRATION, INC.",OUTSIDE SERVICES,$466.50 ,2/3/2016
"AMERICAN CALIBRATION, INC.",OUTSIDE SERVICES,$358.70 ,2/3/2016
"AMERICAN CALIBRATION, INC.",OUTSIDE SERVICES,$340 ,2/18/2016
"AMERICAN CALIBRATION, INC.",OUTSIDE SERVICES,$66 ,2/18/2016
"AMERICAN CALIBRATION, INC.",OUTSIDE SERVICES,$317.90 ,2/18/2016
"AMERICAN CALIBRATION, INC.",MATERIALS - NON-INVENTORY,$502 ,3/7/2016
"AMERICAN CALIBRATION, INC.",OUTSIDE SERVICES,$66 ,3/30/2016
"AMERICAN CALIBRATION, INC.",OUTSIDE SERVICES,$454.75 ,4/27/2016
"AMERICAN CALIBRATION, INC.",OUTSIDE SERVICES,"$4,381.37 ",4/28/2016
"AMERICAN CALIBRATION, INC.",OUTSIDE SERVICES,$604.55 ,5/16/2016
"AMERICAN CALIBRATION, INC.",OUTSIDE SERVICES,"$1,460 ",5/16/2016
"AMERICAN CALIBRATION, INC.",OUTSIDE SERVICES,$528 ,5/24/2016
"AMERICAN CALIBRATION, INC.",MATERIALS - NON-INVENTORY,"$10,173.45 ",6/14/2016
"AMERICAN CALIBRATION, INC.",OUTSIDE SERVICES,$941.25 ,6/14/2016
"AMERICAN CALIBRATION, INC.",OUTSIDE SERVICES,$99 ,6/27/2016
"AMERICAN CALIBRATION, INC.",OUTSIDE SERVICES,$99 ,6/27/2016
"AMERICAN CALIBRATION, INC.",OUTSIDE SERVICES,$198 ,6/27/2016
"AMERICAN CALIBRATION, INC.",OUTSIDE SERVICES,$317.60 ,7/28/2016
"AMERICAN CALIBRATION, INC.",OUTSIDE SERVICES,$990.25 ,7/28/2016
"AMERICAN CALIBRATION, INC.",OUTSIDE SERVICES,$86.30 ,7/28/2016
"AMERICAN CALIBRATION, INC.",OUTSIDE SERVICES,$66 ,7/28/2016
"AMERICAN CALIBRATION, INC.",MATERIALS - NON-INVENTORY,$396 ,7/28/2016
"AMERICAN CALIBRATION, INC.",OUTSIDE SERVICES,$66 ,8/11/2016
"AMERICAN CALIBRATION, INC.",OUTSIDE SERVICES,"$1,084.57 ",8/12/2016
"AMERICAN CALIBRATION, INC.",MATERIALS - NON-INVENTORY,$594 ,8/29/2016
"AMERICAN CALIBRATION, INC.",OUTSIDE SERVICES,$228 ,9/8/2016
"AMERICAN CALIBRATION, INC.",OUTSIDE SERVICES,"$2,082.85 ",9/8/2016
"AMERICAN CALIBRATION, INC.",MATERIALS - NON-INVENTORY,"$1,565.73 ",9/8/2016
"AMERICAN CALIBRATION, INC.",OUTSIDE SERVICES,"$4,657.80 ",9/19/2016
"AMERICAN CALIBRATION, INC.",OUTSIDE SERVICES,$99 ,9/19/2016
"AMERICAN CALIBRATION, INC.",MATERIALS - NON-INVENTORY,$355.73 ,10/13/2016
"AMERICAN CALIBRATION, INC.",OUTSIDE SERVICES,$654 ,10/13/2016
"AMERICAN CALIBRATION, INC.",MATERIALS - NON-INVENTORY,$38.15 ,10/13/2016
"AMERICAN CALIBRATION, INC.",OUTSIDE SERVICES,$66 ,10/13/2016
"AMERICAN CALIBRATION, INC.",OUTSIDE SERVICES,$528 ,10/13/2016
"AMERICAN CALIBRATION, INC.",MATERIALS - NON-INVENTORY,"$1,195.50 ",10/13/2016
"AMERICAN CALIBRATION, INC.",OUTSIDE SERVICES,$66 ,10/25/2016
"AMERICAN CALIBRATION, INC.",OUTSIDE SERVICES,$181 ,11/1/2016
"AMERICAN CALIBRATION, INC.",OUTSIDE SERVICES,"$3,721.81 ",11/15/2016
"AMERICAN CALIBRATION, INC.",OUTSIDE SERVICES,$268.50 ,11/22/2016
"AMERICAN CALIBRATION, INC.",OUTSIDE SERVICES,$132 ,11/22/2016
"AMERICAN CALIBRATION, INC.",MATERIALS - NON-INVENTORY,$444.45 ,11/22/2016
"AMERICAN CALIBRATION, INC.",OUTSIDE SERVICES,"$1,013.90 ",11/22/2016
"AMERICAN CALIBRATION, INC.",OUTSIDE SERVICES,$256.50 ,11/22/2016
"AMERICAN CALIBRATION, INC.",OUTSIDE SERVICES,"$1,056 ",12/8/2016
"AMERICAN CALIBRATION, INC.",MATERIALS - NON-INVENTORY,"$1,120.80 ",12/8/2016
"AMERICAN CALIBRATION, INC.",OUTSIDE SERVICES,$462 ,12/8/2016
"AMERICAN CALIBRATION, INC.",OUTSIDE SERVICES,$914.50 ,12/15/2016
"AMERICAN CALIBRATION, INC.",OUTSIDE SERVICES,$132 ,12/15/2016
"AMERICAN CALIBRATION, INC.",OUTSIDE SERVICES,$152.60 ,12/15/2016
"AMERICAN CALIBRATION, INC.",OUTSIDE SERVICES,$103.55 ,12/15/2016
"AMERICAN CALIBRATION, INC.",OUTSIDE SERVICES,$587.45 ,12/15/2016
AMERICAN CONTRACT COMPLIANCE ASSOC,MISCELLANEOUS OTHER EXPENSE,$300 ,1/14/2016
AMERICAN CONTRACT COMPLIANCE ASSOC,MISCELLANEOUS OTHER EXPENSE,$100 ,1/19/2016
AMERICAN COUNCIL OF ENGINEERING,MISCELLANEOUS OTHER EXPENSE,$295 ,4/7/2016
AMERICAN PLANNING ASSN.,MISCELLANEOUS OTHER EXPENSE,$613 ,3/9/2016
AMERICAN PLANNING ASSN.,MISCELLANEOUS OTHER EXPENSE,$638 ,8/31/2016
AMERICAN PUBLIC TRANSPORTATION ASS,PROFESSIONAL SERVICES,$850 ,2/17/2016
AMERICAN PUBLIC TRANSPORTATION ASS,PROFESSIONAL SERVICES,$50 ,3/3/2016
AMERICAN PUBLIC TRANSPORTATION ASS,PROFESSIONAL SERVICES,$795 ,4/5/2016
AMERICAN PUBLIC TRANSPORTATION ASS,PROFESSIONAL SERVICES,$825 ,4/18/2016
AMERICAN PUBLIC TRANSPORTATION ASS,PROFESSIONAL SERVICES,$825 ,4/19/2016
AMERICAN PUBLIC TRANSPORTATION ASS,MISCELLANEOUS OTHER EXPENSE,$100 ,4/25/2016
AMERICAN PUBLIC TRANSPORTATION ASS,PROFESSIONAL SERVICES,$825 ,5/5/2016
AMERICAN PUBLIC TRANSPORTATION ASS,PROFESSIONAL SERVICES,$875 ,5/17/2016
AMERICAN PUBLIC TRANSPORTATION ASS,PROFESSIONAL SERVICES,$850 ,5/26/2016
AMERICAN PUBLIC TRANSPORTATION ASS,MISCELLANEOUS OTHER EXPENSE,$850 ,7/25/2016
AMERICAN PUBLIC TRANSPORTATION ASS,PROFESSIONAL SERVICES,$850 ,7/25/2016
AMERICAN PUBLIC TRANSPORTATION ASS,PROFESSIONAL SERVICES,$850 ,8/3/2016
AMERICAN PUBLIC TRANSPORTATION ASS,MISCELLANEOUS OTHER EXPENSE,$900 ,9/7/2016
AMERICAN PUBLIC TRANSPORTATION ASS,PROFESSIONAL SERVICES,"$1,200 ",11/21/2016
AMERICAN PUBLIC TRANSPORTATION ASSN,PROFESSIONAL SERVICES,$850 ,1/26/2016
AMERICAN PUBLIC TRANSPORTATION ASSN,PROFESSIONAL SERVICES,$850 ,1/27/2016
"AMERICAN RECYCLING & DISPOSAL, INC.",MATERIALS - CAPITAL,"$48,112.13 ",9/12/2016
"AMERICAN RECYCLING & DISPOSAL, INC.",OUTSIDE SERVICES,"$45,631.07 ",9/12/2016
"AMERICAN RECYCLING & DISPOSAL, INC.",MATERIALS - NON-INVENTORY,$809.25 ,9/12/2016
"AMERICAN RECYCLING & DISPOSAL, INC.",MATERIALS - CAPITAL,"$24,449.14 ",9/20/2016
"AMERICAN RECYCLING & DISPOSAL, INC.",OUTSIDE SERVICES - CAPITAL,"$7,739.14 ",9/20/2016
"AMERICAN RECYCLING & DISPOSAL, INC.",OUTSIDE SERVICES - CAPITAL,"$125,032.51 ",11/14/2016
"AMERICAN RECYCLING & DISPOSAL, INC.",MATERIALS - CAPITAL,"$3,808.91 ",12/13/2016
"AMERICAN RECYCLING & DISPOSAL, INC.",OUTSIDE SERVICES - CAPITAL,"$18,495.89 ",12/13/2016
"AMERICAN RECYCLING & DISPOSAL, INC.",OUTSIDE SERVICES - CAPITAL,"$3,350.35 ",12/19/2016
AMERICAN RED CROSS,PROFESSIONAL SERVICES,$800 ,3/30/2016
AMERICAN RED CROSS,PROFESSIONAL SERVICES,$560 ,4/12/2016
AMERICAN RED CROSS,MISCELLANEOUS OTHER EXPENSE,$800 ,5/16/2016
AMERICAN SOCIETY CIVIL ENGINEERS,PROFESSIONAL SERVICES,$429 ,7/25/2016
AMERICAN SOCIETY OF MECHANICAL ENG.,MISCELLANEOUS OTHER EXPENSE,$151 ,8/29/2016
AMERICAN SOLUTIONS FOR BUSINESS,OUTSIDE SERVICES,"$5,199 ",1/12/2016
AMERICAN SOLUTIONS FOR BUSINESS,OUTSIDE SERVICES,$937.16 ,1/14/2016
AMERICAN SOLUTIONS FOR BUSINESS,OUTSIDE SERVICES,$762.60 ,1/19/2016
AMERICAN SOLUTIONS FOR BUSINESS,OUTSIDE SERVICES,"$49,813 ",1/20/2016
AMERICAN SOLUTIONS FOR BUSINESS,OUTSIDE SERVICES,"$19,440 ",1/27/2016
AMERICAN SOLUTIONS FOR BUSINESS,OUTSIDE SERVICES,"$42,881 ",3/14/2016
AMERICAN SOLUTIONS FOR BUSINESS,OUTSIDE SERVICES,"$19,063 ",5/2/2016
AMERICAN SOLUTIONS FOR BUSINESS,OUTSIDE SERVICES,"$2,599.50 ",7/5/2016
AMERICAN SOLUTIONS FOR BUSINESS,OUTSIDE SERVICES,"$19,929.50 ",7/26/2016
AMERICAN SOLUTIONS FOR BUSINESS,OUTSIDE SERVICES,"$35,098.80 ",9/8/2016
AMERICAN SOLUTIONS FOR BUSINESS,OUTSIDE SERVICES,"$19,929.50 ",10/3/2016
AMERICAN SOLUTIONS FOR BUSINESS,OUTSIDE SERVICES,"$31,419.40 ",10/25/2016
AMERICAN WELDING & GAS,OUTSIDE SERVICES,$352 ,6/7/2016
AMERIGAS,OUTSIDE SERVICES,$414.69 ,1/7/2016
AMERIGAS,MATERIALS - NON-INVENTORY,$209.72 ,1/7/2016
AMERIGAS,MATERIALS - NON-INVENTORY,"$2,625.57 ",1/7/2016
AMERIGAS,MATERIALS - NON-INVENTORY,$59.29 ,2/2/2016
AMERIGAS,MATERIALS - NON-INVENTORY,"$1,280.12 ",2/2/2016
AMERIGAS,MATERIALS - NON-INVENTORY,$99.94 ,2/3/2016
AMERIGAS,MATERIALS - NON-INVENTORY,$447.44 ,2/8/2016
AMERIGAS,OUTSIDE SERVICES,$65.91 ,2/16/2016
AMERIGAS,MATERIALS - NON-INVENTORY,"$1,552.03 ",2/16/2016
AMERIGAS,MATERIALS - NON-INVENTORY,$507.68 ,2/17/2016
AMERIGAS,MATERIALS - NON-INVENTORY,$969.27 ,2/22/2016
AMERIGAS,MATERIALS - NON-INVENTORY,$86.40 ,3/1/2016
AMERIGAS,MATERIALS - NON-INVENTORY,$234.78 ,3/1/2016
AMERIGAS,OUTSIDE SERVICES,$12.44 ,3/14/2016
AMERIGAS,MATERIALS - NON-INVENTORY,"$4,578.19 ",3/14/2016
AMERIGAS,MATERIALS - NON-INVENTORY,$745.58 ,3/21/2016
AMERIGAS,OUTSIDE SERVICES,$65.36 ,3/22/2016
AMERIGAS,MATERIALS - NON-INVENTORY,$790.35 ,3/29/2016
AMERIGAS,MATERIALS - NON-INVENTORY,$116.60 ,3/30/2016
AMERIGAS,MATERIALS - NON-INVENTORY,$286.50 ,4/4/2016
AMERIGAS,MATERIALS - NON-INVENTORY,$796 ,4/21/2016
AMERIGAS,MATERIALS - NON-INVENTORY,$226.25 ,4/27/2016
AMERIGAS,MATERIALS - NON-INVENTORY,$228.70 ,4/27/2016
AMERIGAS,OUTSIDE SERVICES,$208.02 ,5/3/2016
AMERIGAS,MATERIALS - NON-INVENTORY,$727.99 ,5/16/2016
AMERIGAS,MATERIALS - NON-INVENTORY,$292.23 ,5/17/2016
AMERIGAS,MATERIALS - NON-INVENTORY,$193.72 ,5/24/2016
AMERIGAS,MATERIALS - NON-INVENTORY,$420.81 ,6/27/2016
AMERIGAS,MATERIALS - NON-INVENTORY,$220.39 ,7/26/2016
AMERIGAS,OUTSIDE SERVICES,$84.42 ,8/2/2016
AMERIGAS,MATERIALS - NON-INVENTORY,$145.08 ,8/23/2016
AMERIGAS,MATERIALS - NON-INVENTORY,$151.84 ,10/6/2016
AMERIGAS,MATERIALS - NON-INVENTORY,$68.63 ,10/25/2016
AMERIGAS,MATERIALS - NON-INVENTORY,$183.63 ,11/14/2016
AMERIGAS,MATERIALS - NON-INVENTORY,"$1,167.64 ",11/15/2016
AMERIGAS,MATERIALS - NON-INVENTORY,$204.02 ,11/21/2016
"AMSTED RAIL CO., INC.",MATERIALS - INVENTORY,"$74,360 ",8/22/2016
ANALYTIC SYSTEMS,OUTSIDE SERVICES,"$9,180 ",2/2/2016
ANALYTIC SYSTEMS,OUTSIDE SERVICES,"$1,375.10 ",2/3/2016
ANALYTIC SYSTEMS,OUTSIDE SERVICES,"$1,450 ",2/9/2016
ANALYTIC SYSTEMS,OUTSIDE SERVICES,"$2,380 ",3/1/2016
ANALYTIC SYSTEMS,OUTSIDE SERVICES,"$2,720 ",3/30/2016
ANALYTIC SYSTEMS,OUTSIDE SERVICES,"$6,460 ",4/12/2016
ANALYTIC SYSTEMS,OUTSIDE SERVICES,$571.12 ,7/6/2016
ANALYTIC SYSTEMS,OUTSIDE SERVICES,$280 ,7/6/2016
ANALYTIC SYSTEMS,OUTSIDE SERVICES,$840 ,7/6/2016
ANALYTIC SYSTEMS,MATERIALS & ASSETS - CAPITAL,"$135,036 ",7/6/2016
ANALYTIC SYSTEMS,OUTSIDE SERVICES,"$2,310.06 ",9/19/2016
ANALYTIC SYSTEMS,MATERIALS & ASSETS - CAPITAL,"$41,940 ",12/15/2016
"ANALYTIC SYSTEMS WARE (1993), LTD.",OUTSIDE SERVICES,"$3,879.70 ",6/9/2016
"ANALYTIC SYSTEMS WARE (1993), LTD.",OUTSIDE SERVICES,"$2,773.79 ",6/9/2016
"ANALYTIC SYSTEMS WARE (1993), LTD.",OUTSIDE SERVICES,"$4,760 ",11/15/2016
"ANALYTIC SYSTEMS WARE (1993), LTD.",OUTSIDE SERVICES,$400 ,12/8/2016
ANCHOR BRAKE SHOE CO.,MATERIALS - INVENTORY,"$23,716.44 ",1/12/2016
ANCHOR BRAKE SHOE CO.,MATERIALS - INVENTORY,"$10,396.98 ",1/19/2016
ANCHOR BRAKE SHOE CO.,MATERIALS - INVENTORY,"$20,520.72 ",1/25/2016
ANCHOR BRAKE SHOE CO.,MATERIALS - INVENTORY,"$100,619.64 ",3/15/2016
ANCHOR BRAKE SHOE CO.,MATERIALS - INVENTORY,"$19,027.80 ",3/28/2016
ANCHOR BRAKE SHOE CO.,MATERIALS - INVENTORY,"$2,785.86 ",4/11/2016
ANCHOR BRAKE SHOE CO.,MATERIALS - INVENTORY,"$28,541.70 ",4/18/2016
ANCHOR BRAKE SHOE CO.,MATERIALS - INVENTORY,"$24,300 ",4/28/2016
ANCHOR BRAKE SHOE CO.,MATERIALS - INVENTORY,"$16,715.16 ",5/9/2016
ANCHOR BRAKE SHOE CO.,MATERIALS - INVENTORY,"$6,591.42 ",5/10/2016
ANCHOR BRAKE SHOE CO.,MATERIALS - INVENTORY,"$2,785.86 ",5/23/2016
ANCHOR BRAKE SHOE CO.,MATERIALS - INVENTORY,"$23,997.60 ",6/16/2016
ANCHOR BRAKE SHOE CO.,MATERIALS - INVENTORY,"$2,785.86 ",6/27/2016
ANCHOR BRAKE SHOE CO.,MATERIALS - INVENTORY,"$46,712.16 ",7/26/2016
ANCHOR BRAKE SHOE CO.,MATERIALS - INVENTORY,"$45,140.04 ",8/29/2016
ANCHOR BRAKE SHOE CO.,MATERIALS - INVENTORY,"$53,013.96 ",9/15/2016
ANCHOR BRAKE SHOE CO.,MATERIALS - INVENTORY,"$12,357.18 ",9/19/2016
ANCHOR BRAKE SHOE CO.,MATERIALS - INVENTORY,"$11,998.80 ",10/4/2016
ANCHOR BRAKE SHOE CO.,MATERIALS - INVENTORY,"$13,929.30 ",10/10/2016
ANCHOR BRAKE SHOE CO.,MATERIALS - INVENTORY,"$79,434 ",11/14/2016
ANCHOR BRAKE SHOE CO.,MATERIALS - INVENTORY,"$8,357.58 ",11/15/2016
ANCHOR BRAKE SHOE CO.,MATERIALS - INVENTORY,"$8,773.38 ",11/28/2016
ANCHOR BRAKE SHOE CO.,MATERIALS - INVENTORY,"$11,998.80 ",12/5/2016
ANCHOR BRAKE SHOE CO.,MATERIALS - INVENTORY,"$27,997.20 ",12/15/2016
ANCHOR BRAKE SHOE CO.,MATERIALS - INVENTORY,"$9,999 ",12/19/2016
ANCHOR BRAKE SHOE CO.,MATERIALS - INVENTORY,"$36,298.80 ",12/27/2016
"ANCHOR MECHANICAL, INC.",CONSTRUCTION,"$76,265.28 ",6/21/2016
"ANCHOR MECHANICAL, INC.",CONSTRUCTION,"$12,000 ",9/1/2016
ANDERSON LOCK CO.,MATERIALS - INVENTORY,"$1,196.64 ",1/25/2016
ANDERSON LOCK CO.,MATERIALS - NON-INVENTORY,"$1,857 ",2/8/2016
ANDERSON LOCK CO.,OUTSIDE SERVICES,$620 ,2/8/2016
ANDERSON LOCK CO.,MATERIALS - NON-INVENTORY,$263.50 ,2/8/2016
ANDERSON LOCK CO.,MATERIALS - INVENTORY,"$3,490.20 ",3/22/2016
ANDERSON LOCK CO.,MATERIALS - NON-INVENTORY,"$1,032.60 ",3/22/2016
ANDERSON LOCK CO.,MISCELLANEOUS OTHER EXPENSE,$52.40 ,3/22/2016
ANDERSON LOCK CO.,MATERIALS - INVENTORY,$747.90 ,3/28/2016
ANDERSON LOCK CO.,OUTSIDE SERVICES,$420 ,4/28/2016
ANDERSON LOCK CO.,MATERIALS - INVENTORY,"$1,495.80 ",5/9/2016
ANDERSON LOCK CO.,MATERIALS - CAPITAL,"$2,427.50 ",7/26/2016
ANDERSON LOCK CO.,MATERIALS - NON-INVENTORY,"$3,282.82 ",7/26/2016
ANDERSON LOCK CO.,MATERIALS - NON-INVENTORY,$421.60 ,8/29/2016
ANDERSON LOCK CO.,MATERIALS - INVENTORY,$976.50 ,9/20/2016
ANDERSON LOCK CO.,MATERIALS - INVENTORY,$411.90 ,11/15/2016
ANDRE HUNT,"EMP EXPENSE REIMB, OUT OF TOWN","$1,104.44 ",5/9/2016
ANDRE O. MOORE,"EMP EXPENSE REIMB, LOCAL",$170.20 ,1/25/2016
ANDRE O. MOORE,"EMP EXPENSE REIMB, LOCAL",$239.76 ,2/23/2016
ANDRE O. MOORE,"EMP EXPENSE REIMB, LOCAL",$119.88 ,3/24/2016
ANDRE O. MOORE,"EMP EXPENSE REIMB, LOCAL",$119.88 ,4/27/2016
ANDRE O. MOORE,"EMP EXPENSE REIMB, LOCAL",$159.84 ,6/6/2016
ANDRE O. MOORE,"EMP EXPENSE REIMB, LOCAL",$119.88 ,6/30/2016
ANDRE O. MOORE,"EMP EXPENSE REIMB, LOCAL",$159.84 ,7/19/2016
ANDRE O. MOORE,"EMP EXPENSE REIMB, LOCAL",$102.60 ,8/22/2016
ANDRE O. MOORE,"EMP EXPENSE REIMB, LOCAL",$102.60 ,9/28/2016
ANDRE O. MOORE,"EMP EXPENSE REIMB, LOCAL",$119.88 ,10/31/2016
ANDRE O. MOORE,"EMP EXPENSE REIMB, LOCAL",$199.80 ,12/1/2016
ANDRE O. MOORE,"EMP EXPENSE REIMB, LOCAL",$199.80 ,12/21/2016
ANDRE PAGE,"EMP EXPENSE REIMB, LOCAL",$170.20 ,1/25/2016
ANDRE R. FELICIANO,"EMP EXPENSE REIMB, LOCAL",$241.50 ,2/3/2016
ANDRE R. FELICIANO,"EMP EXPENSE REIMB, LOCAL",$69.12 ,2/24/2016
ANDRE R. FELICIANO,"EMP EXPENSE REIMB, LOCAL",$43.20 ,5/3/2016
ANDRE R. FELICIANO,"EMP EXPENSE REIMB, LOCAL",$34.56 ,5/31/2016
ANDRE R. FELICIANO,"EMP EXPENSE REIMB, LOCAL",$34.56 ,7/7/2016
ANDRE R. FELICIANO,"EMP EXPENSE REIMB, LOCAL",$69.12 ,7/19/2016
ANDRE R. FELICIANO,"EMP EXPENSE REIMB, LOCAL",$34.56 ,9/1/2016
ANDRE R. FELICIANO,"EMP EXPENSE REIMB, LOCAL",$112.32 ,11/8/2016
ANDREA CLARK,"EMP EXPENSE REIMB, LOCAL",$302.40 ,4/20/2016
ANDREA CLARK,"EMP EXPENSE REIMB, LOCAL",$177.12 ,5/9/2016
ANDREA CLARK,"EMP EXPENSE REIMB, LOCAL",$193.32 ,6/6/2016
ANDREA CLARK,"EMP EXPENSE REIMB, LOCAL",$222.48 ,7/12/2016
ANDREA CLARK,"EMP EXPENSE REIMB, LOCAL",$373.68 ,8/4/2016
ANDREA CLARK,"EMP EXPENSE REIMB, LOCAL",$61.56 ,9/13/2016
ANDREA J BROWN,"EMP EXPENSE REIMB, LOCAL",$119.88 ,2/17/2016
ANDREA J BROWN,"EMP EXPENSE REIMB, LOCAL",$159.84 ,4/5/2016
ANDREA J BROWN,"EMP EXPENSE REIMB, LOCAL",$159.84 ,4/21/2016
ANDREA J BROWN,"EMP EXPENSE REIMB, LOCAL",$159.84 ,5/25/2016
ANDREA J BROWN,"EMP EXPENSE REIMB, LOCAL",$125.28 ,6/20/2016
ANDREA J BROWN,"EMP EXPENSE REIMB, LOCAL",$90.72 ,7/25/2016
ANDREA J BROWN,"EMP EXPENSE REIMB, LOCAL",$90.72 ,8/16/2016
ANDREA J BROWN,"EMP EXPENSE REIMB, LOCAL",$68.04 ,10/20/2016
ANDREA J BROWN,"EMP EXPENSE REIMB, LOCAL",$68.04 ,10/31/2016
ANDREA J BROWN,"EMP EXPENSE REIMB, LOCAL",$113.40 ,11/21/2016
ANDREA J BROWN,"EMP EXPENSE REIMB, LOCAL",$90.72 ,12/28/2016
ANDREA LOGAN,"EMP EXPENSE REIMB, LOCAL",$223.34 ,3/1/2016
ANDREW BRASHLER,"EMP EXPENSE REIMB, LOCAL",$24.31 ,1/25/2016
ANDREW BRASHLER,"EMP EXPENSE REIMB, LOCAL",$10.07 ,2/17/2016
ANDREW BRASHLER,"EMP EXPENSE REIMB, LOCAL",$10.84 ,3/3/2016
ANDREW BRASHLER,"EMP EXPENSE REIMB, LOCAL",$55.69 ,4/27/2016
ANDREW BRASHLER,"EMP EXPENSE REIMB, LOCAL",$26.38 ,8/16/2016
ANDREW BRASHLER,"EMP EXPENSE REIMB, LOCAL",$31.25 ,9/15/2016
ANDREW BRASHLER,"EMP EXPENSE REIMB, LOCAL",$20.57 ,9/26/2016
ANDREW D. GARIBAY,"EMP EXPENSE REIMB, LOCAL",$34.96 ,2/3/2016
ANDREW L. TAYLOR,"EMP EXPENSE REIMB, LOCAL",$254.23 ,3/2/2016
ANDREW VENABLE,"EMP EXPENSE REIMB, LOCAL",$82.78 ,10/3/2016
ANGEL VALDES,"EMP EXPENSE REIMB, LOCAL",$22 ,3/7/2016
ANGELIA D. SIMPKINS,"EMP EXPENSE REIMB, LOCAL",$23.98 ,7/6/2016
ANITA ORTEGA,"EMP EXPENSE REIMB, LOCAL",$95.04 ,10/24/2016
ANITA ORTEGA,"EMP EXPENSE REIMB, LOCAL",$210.60 ,12/5/2016
ANITA ORTEGA,"EMP EXPENSE REIMB, LOCAL",$62.64 ,12/27/2016
"ANIXTER, INC.",MATERIALS - NON-INVENTORY,"$6,047.86 ",1/14/2016
"ANIXTER, INC.",MATERIALS - CAPITAL,"$2,093.32 ",1/19/2016
"ANIXTER, INC.",MATERIALS - NON-INVENTORY,$400 ,2/3/2016
"ANIXTER, INC.",MATERIALS - NON-INVENTORY,"$2,308 ",2/3/2016
"ANIXTER, INC.",MATERIALS - NON-INVENTORY,"$5,448.40 ",2/9/2016
"ANIXTER, INC.",MATERIALS - CAPITAL,"$27,184.59 ",3/7/2016
"ANIXTER, INC.",MATERIALS - NON-INVENTORY,$522.90 ,3/7/2016
"ANIXTER, INC.",MATERIALS - CAPITAL,"$3,838.50 ",3/22/2016
"ANIXTER, INC.",MATERIALS - NON-INVENTORY,"$14,152.03 ",3/22/2016
"ANIXTER, INC.",MATERIALS - CAPITAL,"$4,079.90 ",3/28/2016
"ANIXTER, INC.",MATERIALS - CAPITAL,"$1,380 ",4/11/2016
"ANIXTER, INC.",MATERIALS - NON-INVENTORY,"$2,507.54 ",4/11/2016
"ANIXTER, INC.",MATERIALS - NON-INVENTORY,"$6,649.90 ",4/21/2016
"ANIXTER, INC.",MATERIALS - NON-INVENTORY,"$2,774.70 ",5/12/2016
"ANIXTER, INC.",MATERIALS - NON-INVENTORY,"$2,540.04 ",5/16/2016
"ANIXTER, INC.",MATERIALS - NON-INVENTORY,"$4,718.28 ",5/17/2016
"ANIXTER, INC.",MATERIALS - CAPITAL,"$28,282 ",5/19/2016
"ANIXTER, INC.",MATERIALS - CAPITAL,$515.10 ,6/20/2016
"ANIXTER, INC.",MATERIALS - CAPITAL,"$15,067.88 ",6/27/2016
"ANIXTER, INC.",MATERIALS - NON-INVENTORY,"$2,095.16 ",6/27/2016
"ANIXTER, INC.",MATERIALS - NON-INVENTORY,"$1,879.18 ",6/29/2016
"ANIXTER, INC.",MATERIALS & ASSETS - CAPITAL,"$13,231.70 ",7/5/2016
"ANIXTER, INC.",MATERIALS - NON-INVENTORY,"$2,692.06 ",7/6/2016
"ANIXTER, INC.",MATERIALS - NON-INVENTORY,"$1,347.98 ",9/8/2016
"ANIXTER, INC.",MATERIALS - NON-INVENTORY,$449 ,9/12/2016
"ANIXTER, INC.",MATERIALS - CAPITAL,$389.22 ,9/19/2016
"ANIXTER, INC.",MATERIALS - NON-INVENTORY,"$1,402.42 ",9/19/2016
"ANIXTER, INC.",MATERIALS - NON-INVENTORY,$819 ,10/13/2016
"ANIXTER, INC.",MATERIALS - CAPITAL,"$18,714.41 ",11/14/2016
"ANIXTER, INC.",MATERIALS & ASSETS - CAPITAL,"$1,676.36 ",12/8/2016
"ANIXTER, INC.",MATERIALS & ASSETS - CAPITAL,$151 ,12/12/2016
"ANIXTER, INC.",MATERIALS - NON-INVENTORY,"$1,633.29 ",12/13/2016
"ANIXTER, INC.",MATERIALS - CAPITAL,"$5,264.83 ",12/15/2016
"ANIXTER, INC.",MATERIALS - NON-INVENTORY,"$17,936.98 ",12/15/2016
"ANIXTER, INC.",MATERIALS - NON-INVENTORY,$745.50 ,12/19/2016
ANN HAMMO,METRA SPONSORED EVENT,$51.75 ,9/1/2016
"ANSALDO STS USA, INC.",OUTSIDE SERVICES,"$4,191 ",3/30/2016
"ANSALDO STS USA, INC.",MATERIALS - INVENTORY,"$1,395 ",10/25/2016
"ANSALDO STS USA, INC.",MATERIALS - NON-INVENTORY,$237.50 ,11/28/2016
ANTHONY ADAMS,"EMP EXPENSE REIMB, LOCAL",$42.55 ,1/25/2016
ANTHONY ADAMS,"EMP EXPENSE REIMB, LOCAL",$39.96 ,2/17/2016
ANTHONY ADAMS,"EMP EXPENSE REIMB, LOCAL",$94.79 ,8/1/2016
ANTHONY ADAMS,"EMP EXPENSE REIMB, LOCAL",$159.84 ,8/23/2016
ANTHONY ADAMS,"EMP EXPENSE REIMB, LOCAL",$159.84 ,9/29/2016
ANTHONY ADAMS,"EMP EXPENSE REIMB, LOCAL",$159.84 ,12/5/2016
ANTHONY D. BRUCE,"EMP EXPENSE REIMB, LOCAL",$110.40 ,1/25/2016
ANTHONY D. BRUCE,"EMP EXPENSE REIMB, LOCAL",$165.24 ,2/17/2016
ANTHONY D. BRUCE,"EMP EXPENSE REIMB, LOCAL",$100.44 ,4/21/2016
ANTHONY D. BRUCE,"EMP EXPENSE REIMB, LOCAL",$44.28 ,7/25/2016
ANTHONY D. BRUCE,"EMP EXPENSE REIMB, LOCAL",$104.76 ,9/15/2016
ANTHONY D. BRUCE,"EMP EXPENSE REIMB, LOCAL",$44.28 ,11/21/2016
ANTHONY E. JONES,"EMP EXPENSE REIMB, LOCAL",$139.15 ,1/5/2016
ANTHONY E. JONES,"EMP EXPENSE REIMB, LOCAL",$120.75 ,2/2/2016
ANTHONY E. JONES,"EMP EXPENSE REIMB, LOCAL",$79.92 ,2/24/2016
ANTHONY E. JONES,"EMP EXPENSE REIMB, LOCAL",$39.96 ,3/24/2016
ANTHONY E. JONES,"EMP EXPENSE REIMB, LOCAL",$78.84 ,4/20/2016
ANTHONY E. JONES,"EMP EXPENSE REIMB, LOCAL",$170.64 ,6/14/2016
ANTHONY E. JONES,"EMP EXPENSE REIMB, LOCAL",$79.92 ,7/20/2016
ANTHONY E. JONES,TUITION REIMBURSEMENT,$375 ,8/22/2016
ANTHONY E. JONES,"EMP EXPENSE REIMB, LOCAL",$39.96 ,8/31/2016
ANTHONY E. JONES,"EMP EXPENSE REIMB, LOCAL",$68.04 ,11/1/2016
ANTHONY E. JONES,"EMP EXPENSE REIMB, LOCAL",$22.68 ,12/5/2016
ANTHONY FALLICO,"EMP EXPENSE REIMB, LOCAL",$48 ,5/31/2016
ANTHONY FALLICO,"EMP EXPENSE REIMB, LOCAL",$16 ,6/27/2016
ANTHONY K. YOUNG,"EMP EXPENSE REIMB, LOCAL",$159.84 ,3/24/2016
ANTHONY K. YOUNG,"EMP EXPENSE REIMB, LOCAL",$79.92 ,4/20/2016
ANTHONY K. YOUNG,"EMP EXPENSE REIMB, LOCAL",$199.80 ,6/6/2016
ANTHONY K. YOUNG,"EMP EXPENSE REIMB, LOCAL",$62.64 ,7/12/2016
ANTHONY K. YOUNG,"EMP EXPENSE REIMB, LOCAL",$68.04 ,7/25/2016
ANTHONY K. YOUNG,"EMP EXPENSE REIMB, LOCAL",$68.04 ,9/28/2016
ANTHONY K. YOUNG,"EMP EXPENSE REIMB, LOCAL",$68.04 ,11/2/2016
ANTHONY K. YOUNG,"EMP EXPENSE REIMB, LOCAL",$68.04 ,11/10/2016
ANTHONY K. YOUNG,"EMP EXPENSE REIMB, LOCAL",$113.40 ,12/1/2016
ANTHONY L. BROWN,"EMP EXPENSE REIMB, LOCAL",$159.84 ,8/16/2016
ANTHONY L. BROWN,"EMP EXPENSE REIMB, LOCAL",$39.96 ,9/28/2016
ANTHONY OGNIBENE,METRA SPONSORED EVENT,$51.75 ,8/9/2016
ANTHONY SCHAEFLEIN,"EMP EXPENSE REIMB, LOCAL",$29.21 ,3/24/2016
ANTHONY SCHAEFLEIN,"EMP EXPENSE REIMB, LOCAL",$199.07 ,4/25/2016
ANTHONY SCHAEFLEIN,"EMP EXPENSE REIMB, LOCAL",$132.75 ,6/13/2016
ANTHONY SCHAEFLEIN,"EMP EXPENSE REIMB, LOCAL",$119.58 ,7/6/2016
ANTHONY SCHAEFLEIN,"EMP EXPENSE REIMB, LOCAL",$138.46 ,8/4/2016
ANTHONY SCHAEFLEIN,"EMP EXPENSE REIMB, LOCAL",$322.38 ,12/5/2016
ANTOINE HAYNES,"EMP EXPENSE REIMB, LOCAL",$221.40 ,9/15/2016
ANTOINE HAYNES,"EMP EXPENSE REIMB, LOCAL",$182.52 ,10/3/2016
ANTOINE HAYNES,"EMP EXPENSE REIMB, LOCAL",$81 ,10/20/2016
ANTOINE HAYNES,"EMP EXPENSE REIMB, LOCAL",$104.76 ,11/22/2016
ANTOINE L. LOWERY,"EMP EXPENSE REIMB, LOCAL",$22.68 ,3/31/2016
ANTWAN J. POTTS,"EMP EXPENSE REIMB, LOCAL",$39.96 ,6/28/2016
ANTWAN J. POTTS,"EMP EXPENSE REIMB, LOCAL",$79.92 ,9/8/2016
"AON RISK SERVICES, INC. OF MARYLAND",PROFESSIONAL SERVICES,"$14,000 ",10/12/2016
AP BOOKS,OUTSIDE SERVICES,$105.30 ,6/13/2016
APA-ILL CHAPTER C/O NIU CENTER,PROFESSIONAL SERVICES,"$1,750 ",8/15/2016
"APPERSON, INC",MATERIALS - NON-INVENTORY,$36 ,11/15/2016
"APPERSON, INC",MISCELLANEOUS OTHER EXPENSE,$16.29 ,11/15/2016
APPLICATIONS SOFTWARE TECH. CORP.,OUTSIDE SERVICES,"$103,056.73 ",1/27/2016
APPLICATIONS SOFTWARE TECH. CORP.,MATERIALS & ASSETS - CAPITAL,"$44,400 ",6/9/2016
APPLICATIONS SOFTWARE TECH. CORP.,MATERIALS & ASSETS - CAPITAL,"$90,400 ",12/19/2016
APPLIED INDUSTRIAL TECHNOLOGIES,MATERIALS - INVENTORY,"$2,105.22 ",3/16/2016
APPLIED INDUSTRIAL TECHNOLOGIES,MATERIALS - INVENTORY,$725.10 ,8/30/2016
APPLIED POWER SYSTEMS,MATERIALS & ASSETS - CAPITAL,"$78,880 ",1/11/2016
APPLIED POWER SYSTEMS,MATERIALS & ASSETS - CAPITAL,"$78,880 ",4/11/2016
AQUA COOLERS,RENTAL EXPENSE,"$1,665 ",12/8/2016
AQUA COOLERS,RENTAL EXPENSE,$855 ,12/28/2016
AQUA ILLINOIS,UTILITIES,$55.48 ,1/13/2016
AQUA ILLINOIS,UTILITIES,$53.31 ,2/8/2016
AQUA ILLINOIS,UTILITIES,$52.59 ,3/9/2016
AQUA ILLINOIS,UTILITIES,$52.22 ,4/11/2016
AQUA ILLINOIS,UTILITIES,$52.59 ,5/16/2016
AQUA ILLINOIS,UTILITIES,$52.22 ,6/9/2016
AQUA ILLINOIS,UTILITIES,$53.67 ,7/21/2016
AQUA ILLINOIS,UTILITIES,$106.26 ,8/8/2016
AQUA ILLINOIS,UTILITIES,$0.17 ,9/14/2016
AQUA ILLINOIS,UTILITIES,$54.95 ,10/13/2016
AQUA ILLINOIS,UTILITIES,$52.36 ,11/14/2016
AQUA ILLINOIS,UTILITIES,$54.20 ,12/13/2016
ARC DOCUMENT SOLUTIONS LLC,MATERIALS - NON-INVENTORY,$979.24 ,7/28/2016
ARC DOCUMENT SOLUTIONS LLC,MATERIALS - NON-INVENTORY,"$1,936.80 ",10/24/2016
ARC DOCUMENT SOLUTIONS LLC,OUTSIDE SERVICES,$195 ,12/8/2016
ARC DOCUMENT SOLUTIONS LLC,MATERIALS - NON-INVENTORY,"$1,329.56 ",12/8/2016
"ARCADIS US, INC.",ENG. MANAGEMENT & INSPECTIONS,$862.93 ,1/19/2016
AREMA,MISCELLANEOUS OTHER EXPENSE,"$2,262 ",3/28/2016
AREMA,MISCELLANEOUS OTHER EXPENSE,$55 ,7/14/2016
AREMA,MISCELLANEOUS OTHER EXPENSE,$740 ,7/14/2016
AREMA,PROFESSIONAL SERVICES,"$2,550 ",8/23/2016
AREMA,MISCELLANEOUS OTHER EXPENSE,"$2,075 ",10/12/2016
AREMA,MISCELLANEOUS OTHER EXPENSE,"$1,914 ",11/16/2016
AREMA,MISCELLANEOUS OTHER EXPENSE,$174 ,12/19/2016
ARGUS-HAZCO,MATERIALS - NON-INVENTORY,$299 ,2/3/2016
ARGUS-HAZCO,MISCELLANEOUS OTHER EXPENSE,$15 ,2/18/2016
ARLINGTON GLASS & MIRROR,OUTSIDE SERVICES,"$5,815 ",12/19/2016
ARLINGTON PARK RACECOURSE LLC,RENTAL EXPENSE,"$18,249 ",1/25/2016
ARLINGTON PARK RACECOURSE LLC,RENTAL EXPENSE,"$18,249 ",2/22/2016
ARLINGTON PARK RACECOURSE LLC,RENTAL EXPENSE,"$18,249 ",3/22/2016
ARLINGTON PARK RACECOURSE LLC,RENTAL EXPENSE,"$18,249 ",4/25/2016
ARLINGTON PARK RACECOURSE LLC,RENTAL EXPENSE,"$18,249 ",5/23/2016
ARLINGTON PARK RACECOURSE LLC,RENTAL EXPENSE,"$18,249 ",6/22/2016
ARLINGTON PARK RACECOURSE LLC,RENTAL EXPENSE,"$18,249 ",7/25/2016
ARLINGTON PARK RACECOURSE LLC,RENTAL EXPENSE,"$18,249 ",8/22/2016
ARLINGTON PARK RACECOURSE LLC,RENTAL EXPENSE,"$18,249 ",9/22/2016
ARLINGTON PARK RACECOURSE LLC,RENTAL EXPENSE,"$18,249 ",10/24/2016
ARLINGTON PARK RACECOURSE LLC,RENTAL EXPENSE,"$18,249 ",11/22/2016
ARLINGTON PARK RACECOURSE LLC,RENTAL EXPENSE,"$19,843.76 ",12/27/2016
ARLINGTON RESOURCES,MISCELLANEOUS OTHER EXPENSE,"$4,181 ",12/19/2016
ARLINGTON RESOURCES,MISCELLANEOUS OTHER EXPENSE,$132 ,12/28/2016
ARMA,PROFESSIONAL SERVICES,$135 ,4/25/2016
ARNOLD MAXEY,"EMP EXPENSE REIMB, LOCAL",$90.72 ,9/28/2016
ARNOLD MAXEY,"EMP EXPENSE REIMB, LOCAL",$355.16 ,11/28/2016
ARNOLD MAXEY,"EMP EXPENSE REIMB, LOCAL",$255.96 ,12/5/2016
ARNOLD MAXEY,"EMP EXPENSE REIMB, LOCAL",$397.52 ,12/21/2016
ARTHUR E. ALEXANDER,"EMP EXPENSE REIMB, LOCAL",$159.84 ,3/31/2016
ARTHUR E. ALEXANDER,"EMP EXPENSE REIMB, LOCAL",$119.88 ,5/25/2016
ARTHUR E. ALEXANDER,"EMP EXPENSE REIMB, LOCAL",$39.96 ,6/20/2016
ARTHUR E. ALEXANDER,"EMP EXPENSE REIMB, LOCAL",$39.96 ,9/15/2016
ARTHUR E. ALEXANDER,"EMP EXPENSE REIMB, LOCAL",$39.96 ,12/5/2016
ARTHUR E. ALEXANDER,"EMP EXPENSE REIMB, LOCAL",$119.88 ,12/28/2016
ARTURO J MOTA,"EMP EXPENSE REIMB, LOCAL",$45.68 ,10/24/2016
ARTURO J MOTA,"EMP EXPENSE REIMB, LOCAL",$68.09 ,11/28/2016
ARTURO J MOTA,"EMP EXPENSE REIMB, LOCAL",$196.56 ,12/27/2016
ARUN K SAXENA,"EMP EXPENSE REIMB, LOCAL",$45.97 ,1/25/2016
ARUN K SAXENA,"EMP EXPENSE REIMB, LOCAL",$54.60 ,3/7/2016
ARUN K SAXENA,"EMP EXPENSE REIMB, LOCAL",$32.63 ,5/19/2016
"ASAS/TYSOL, INC.",MATERIALS - INVENTORY,"$3,240 ",3/22/2016
"ASAS/TYSOL, INC.",MATERIALS - INVENTORY,"$3,240 ",5/19/2016
"ASAS/TYSOL, INC.",MATERIALS - INVENTORY,"$3,240 ",7/26/2016
"ASAS/TYSOL, INC.",MATERIALS - INVENTORY,"$3,240 ",10/24/2016
"ASAS/TYSOL, INC.",MATERIALS - INVENTORY,"$3,240 ",11/15/2016
ASCENDO RESOURCES LLC,MATERIALS & ASSETS - CAPITAL,"$11,200 ",12/12/2016
ASCENDO RESOURCES LLC,MATERIALS & ASSETS - CAPITAL,"$3,600 ",12/15/2016
"ASG TECHNOLOGIES GROUP, INC.",PROFESSIONAL SERVICES,"$16,243.50 ",12/13/2016
ASPLUNDH TREE EXPERT CO. (RR DIV.),OUTSIDE SERVICES - CAPITAL,"$4,411.40 ",1/25/2016
ASPLUNDH TREE EXPERT CO. (RR DIV.),OUTSIDE SERVICES,"$126,300.71 ",1/25/2016
ASPLUNDH TREE EXPERT CO. (RR DIV.),OUTSIDE SERVICES,"$6,241.60 ",1/26/2016
ASPLUNDH TREE EXPERT CO. (RR DIV.),OUTSIDE SERVICES,"$5,393.71 ",1/27/2016
ASPLUNDH TREE EXPERT CO. (RR DIV.),OUTSIDE SERVICES,"$65,929.40 ",5/5/2016
ASPLUNDH TREE EXPERT CO. (RR DIV.),OUTSIDE SERVICES,"$7,321.44 ",5/9/2016
ASPLUNDH TREE EXPERT CO. (RR DIV.),OUTSIDE SERVICES,"$3,660.72 ",7/26/2016
ASPLUNDH TREE EXPERT CO. (RR DIV.),OUTSIDE SERVICES,"$44,353.20 ",8/30/2016
ASPLUNDH TREE EXPERT CO. (RR DIV.),OUTSIDE SERVICES,"$19,907.52 ",9/8/2016
ASPLUNDH TREE EXPERT CO. (RR DIV.),OUTSIDE SERVICES - CAPITAL,"$14,749.02 ",12/20/2016
ASPLUNDH TREE EXPERT CO. (RR DIV.),OUTSIDE SERVICES,"$429,893.76 ",12/20/2016
ASPLUNDH TREE EXPERT CO. (RR DIV.),OUTSIDE SERVICES,"$7,541.28 ",12/27/2016
ASSN. FOR TALENT DEVELOPMENT,MISCELLANEOUS OTHER EXPENSE,$229 ,5/31/2016
ASSN. OF AMERICAN RAILROADS,MISCELLANEOUS OTHER EXPENSE,"$4,481 ",1/26/2016
ASSN. OF AMERICAN RAILROADS,MISCELLANEOUS OTHER EXPENSE,"$4,481 ",2/4/2016
ASSN. OF AMERICAN RAILROADS,MISCELLANEOUS OTHER EXPENSE,"$4,481 ",3/2/2016
ASSN. OF AMERICAN RAILROADS,OUTSIDE SERVICES,"$11,607.14 ",3/14/2016
ASSN. OF AMERICAN RAILROADS,OUTSIDE SERVICES,"$11,607.14 ",4/5/2016
ASSN. OF AMERICAN RAILROADS,MISCELLANEOUS OTHER EXPENSE,"$4,481 ",4/18/2016
ASSN. OF AMERICAN RAILROADS,MISCELLANEOUS OTHER EXPENSE,"$4,481 ",5/2/2016
ASSN. OF AMERICAN RAILROADS,MISCELLANEOUS OTHER EXPENSE,"$4,481 ",5/25/2016
ASSN. OF AMERICAN RAILROADS,OUTSIDE SERVICES,"$11,607.14 ",6/27/2016
ASSN. OF AMERICAN RAILROADS,MISCELLANEOUS OTHER EXPENSE,"$4,481 ",8/4/2016
ASSN. OF AMERICAN RAILROADS,OUTSIDE SERVICES,"$11,607.14 ",8/4/2016
ASSN. OF AMERICAN RAILROADS,MISCELLANEOUS OTHER EXPENSE,"$4,481 ",9/1/2016
ASSN. OF AMERICAN RAILROADS,MISCELLANEOUS OTHER EXPENSE,"$8,962 ",10/12/2016
ASSN. OF AMERICAN RAILROADS,MISCELLANEOUS OTHER EXPENSE,"$4,481 ",11/7/2016
ASSN. OF AMERICAN RAILROADS,MISCELLANEOUS OTHER EXPENSE,"$4,481 ",12/5/2016
ASSN. OF AMERICAN RAILROADS,OUTSIDE SERVICES,"$11,607.14 ",12/14/2016
ASSOCIATION FOR TALENT DEVELOPMENT,MISCELLANEOUS OTHER EXPENSE,$229 ,3/28/2016
AT & T,UTILITIES,"$7,407.36 ",1/12/2016
AT & T,UTILITIES,$613.38 ,1/12/2016
AT & T,UTILITIES,$555.80 ,1/12/2016
AT & T,UTILITIES,$42.57 ,1/12/2016
AT & T,UTILITIES,$51.40 ,1/19/2016
AT & T,UTILITIES,$613.38 ,2/3/2016
AT & T,UTILITIES,"$1,022.54 ",2/3/2016
AT & T,UTILITIES,$65.90 ,2/3/2016
AT & T,UTILITIES,$555.80 ,2/3/2016
AT & T,UTILITIES,"$14,018.13 ",2/3/2016
AT & T,UTILITIES,"$24,997.04 ",2/3/2016
AT & T,UTILITIES,$613.38 ,2/4/2016
AT & T,UTILITIES,$540.02 ,2/16/2016
AT & T,UTILITIES,"$28,167.79 ",2/16/2016
AT & T,UTILITIES,$555.80 ,2/29/2016
AT & T,UTILITIES,$613.38 ,2/29/2016
AT & T,UTILITIES,"$14,018.13 ",2/29/2016
AT & T,UTILITIES,$613.38 ,3/9/2016
AT & T,UTILITIES,$74.90 ,3/9/2016
AT & T,UTILITIES,$543.60 ,3/24/2016
AT & T,UTILITIES,$613.38 ,3/24/2016
AT & T,UTILITIES,"$14,018.13 ",3/24/2016
AT & T,UTILITIES,$65.90 ,3/31/2016
AT & T,UTILITIES,$555.80 ,3/31/2016
AT & T,UTILITIES,$613.38 ,4/4/2016
AT & T,UTILITIES,$613.38 ,4/21/2016
AT & T,UTILITIES,$540.02 ,4/21/2016
AT & T,UTILITIES,"$14,018.13 ",4/21/2016
AT & T,UTILITIES,"$6,721.96 ",5/4/2016
AT & T,UTILITIES,$613.38 ,5/4/2016
AT & T,UTILITIES,$65.90 ,5/4/2016
AT & T,UTILITIES,$540.02 ,5/23/2016
AT & T,UTILITIES,$613.38 ,5/23/2016
AT & T,UTILITIES,"$14,018.13 ",5/23/2016
AT & T,UTILITIES,"$6,981.59 ",5/31/2016
AT & T,UTILITIES,$65.90 ,5/31/2016
AT & T,UTILITIES,$613.38 ,6/15/2016
AT & T,UTILITIES,"$5,594.68 ",7/5/2016
AT & T,UTILITIES,$620.80 ,7/5/2016
AT & T,UTILITIES,"$14,277.15 ",7/5/2016
AT & T,UTILITIES,$65.90 ,7/5/2016
AT & T,UTILITIES,$620.80 ,7/14/2016
AT & T,UTILITIES,$620.80 ,7/19/2016
AT & T,UTILITIES,$540.02 ,7/19/2016
AT & T,UTILITIES,"$14,277.15 ",7/19/2016
AT & T,UTILITIES,$540.02 ,7/26/2016
AT & T,UTILITIES,"$9,550.61 ",7/26/2016
AT & T,UTILITIES,$620.80 ,8/10/2016
AT & T,UTILITIES,$65.90 ,8/10/2016
AT & T,UTILITIES,$547.58 ,8/18/2016
AT & T,UTILITIES,$620.80 ,8/29/2016
AT & T,UTILITIES,"$14,277.15 ",8/29/2016
AT & T,UTILITIES,"$8,974.70 ",8/31/2016
AT & T,UTILITIES,$65.90 ,8/31/2016
AT & T,UTILITIES,$620.80 ,9/8/2016
AT & T,UTILITIES,$540.02 ,9/27/2016
AT & T,UTILITIES,$620.80 ,9/27/2016
AT & T,UTILITIES,"$14,277.15 ",9/27/2016
AT & T,UTILITIES,"$8,974.70 ",10/3/2016
AT & T,UTILITIES,$74.90 ,10/3/2016
AT & T,UTILITIES,$620.80 ,10/5/2016
AT & T,UTILITIES,"$8,974.70 ",10/25/2016
AT & T,UTILITIES,$620.80 ,10/25/2016
AT & T,UTILITIES,$540.02 ,10/25/2016
AT & T,UTILITIES,"$14,277.15 ",10/25/2016
AT & T,UTILITIES,$65.90 ,11/7/2016
AT & T,UTILITIES,$620.80 ,11/8/2016
AT & T,UTILITIES,$540.02 ,11/21/2016
AT & T,UTILITIES,$620.80 ,11/21/2016
AT & T,UTILITIES,"$14,277.15 ",11/21/2016
AT & T,UTILITIES,"$4,706.54 ",11/30/2016
AT & T,UTILITIES,"$4,427.46 ",11/30/2016
AT & T,UTILITIES,$65.90 ,11/30/2016
AT & T,UTILITIES,$620.80 ,12/12/2016
AT & T,UTILITIES,$540.02 ,12/27/2016
AT & T MOBILITY,UTILITIES,$720 ,1/12/2016
AT & T MOBILITY,UTILITIES,$191.45 ,2/3/2016
AT & T MOBILITY,UTILITIES,$720 ,2/4/2016
AT & T MOBILITY,UTILITIES,$190.80 ,2/29/2016
AT & T MOBILITY,UTILITIES,$994 ,3/9/2016
AT & T MOBILITY,UTILITIES,$191.23 ,3/31/2016
AT & T MOBILITY,UTILITIES,"$1,204 ",3/31/2016
AT & T MOBILITY,UTILITIES,$190.76 ,5/4/2016
AT & T MOBILITY,UTILITIES,$191.41 ,5/23/2016
AT & T MOBILITY,UTILITIES,$196.87 ,7/6/2016
AT & T MOBILITY,UTILITIES,$196.95 ,7/26/2016
AT & T MOBILITY,UTILITIES,$197.16 ,8/29/2016
AT & T MOBILITY,UTILITIES,$196.95 ,10/3/2016
AT & T MOBILITY,UTILITIES,$197.07 ,10/25/2016
AT & T MOBILITY,UTILITIES,$231.86 ,11/21/2016
AT&T,UTILITIES,"$1,191.54 ",1/12/2016
AT&T,UTILITIES,"$1,215.21 ",2/16/2016
AT&T,UTILITIES,"$1,339.17 ",2/18/2016
AT&T,UTILITIES,"$1,277.11 ",3/24/2016
AT&T,UTILITIES,"$29,098.24 ",4/12/2016
AT&T,UTILITIES,"$1,387.89 ",4/21/2016
AT&T,UTILITIES,"$30,166.07 ",4/21/2016
AT&T,UTILITIES,"$37,501.60 ",5/12/2016
AT&T,UTILITIES,"$1,428.90 ",5/23/2016
AT&T,UTILITIES,"$30,941.41 ",6/16/2016
AT&T,UTILITIES,"$1,512.43 ",7/5/2016
AT&T,UTILITIES,"$1,529.23 ",7/19/2016
AT&T,UTILITIES,"$34,533.49 ",7/21/2016
AT&T,UTILITIES,"$42,288.21 ",8/17/2016
AT&T,UTILITIES,"$1,413.16 ",8/18/2016
AT&T,UTILITIES,"$1,514.21 ",9/20/2016
AT&T,UTILITIES,"$36,885.84 ",9/21/2016
AT&T,UTILITIES,"$44,239.07 ",10/12/2016
AT&T,UTILITIES,"$1,484.18 ",10/19/2016
AT&T,UTILITIES,"$37,022.25 ",11/8/2016
AT&T,UTILITIES,"$1,364.98 ",11/15/2016
AT&T,UTILITIES,"$36,985.88 ",12/12/2016
AT&T,UTILITIES,"$1,283.91 ",12/27/2016
AT&T MOBILITY - CC,UTILITIES,"$1,440 ",5/9/2016
AT&T MOBILITY - CC,UTILITIES,"$1,440 ",6/2/2016
AT&T MOBILITY - CC,UTILITIES,"$1,444 ",7/5/2016
AT&T MOBILITY - CC,UTILITIES,"$1,560 ",8/10/2016
AT&T MOBILITY - CC,UTILITIES,"$2,960 ",9/14/2016
AT&T MOBILITY - CC,UTILITIES,"$2,940 ",10/5/2016
AT&T MOBILITY - CC,MATERIALS - NON-INVENTORY,"$4,009.89 ",11/8/2016
AT&T MOBILITY - CC,MATERIALS - NON-INVENTORY,$27.45 ,11/8/2016
AT&T MOBILITY - CC,MATERIALS - NON-INVENTORY,$25.59 ,11/8/2016
AT&T MOBILITY - CC,UTILITIES,"$2,940 ",11/10/2016
AT&T MOBILITY - CC,MATERIALS - NON-INVENTORY,$67.45 ,12/6/2016
AT&T MOBILITY - CC,UTILITIES,"$3,428 ",12/6/2016
ATLANTIC TRACK & TURNOUT CO.,MATERIALS - INVENTORY,"$167,547 ",1/14/2016
ATLANTIC TRACK & TURNOUT CO.,MATERIALS - INVENTORY,"$167,547 ",2/2/2016
ATLANTIC TRACK & TURNOUT CO.,MATERIALS - INVENTORY,"$323,050 ",4/25/2016
ATLANTIC TRACK & TURNOUT CO.,MATERIALS - INVENTORY,"$113,149.44 ",5/12/2016
ATLANTIC TRACK & TURNOUT CO.,MATERIALS - INVENTORY,"$75,294.92 ",6/20/2016
ATLANTIC TRACK & TURNOUT CO.,MATERIALS - INVENTORY,"$47,825.60 ",6/27/2016
ATLANTIC TRACK & TURNOUT CO.,MATERIALS - INVENTORY,"$30,780 ",9/8/2016
ATLANTIC TRACK & TURNOUT CO.,MATERIALS - INVENTORY,"$56,574.72 ",9/19/2016
ATLANTIC TRACK & TURNOUT CO.,MATERIALS - INVENTORY,"$43,092 ",11/14/2016
ATLAS & ASSOC.,MATERIALS & ASSETS - CAPITAL,"$8,058 ",4/27/2016
ATLAS & ASSOC.,MATERIALS & ASSETS - CAPITAL,"$1,264 ",5/19/2016
ATLAS & ASSOC.,MATERIALS & ASSETS - CAPITAL,$158 ,7/26/2016
ATLAS/FIRST ACCESS,OUTSIDE SERVICES,"$1,445 ",1/6/2016
ATLAS/FIRST ACCESS,OUTSIDE SERVICES,"$1,052.09 ",3/2/2016
ATLAS/FIRST ACCESS,OUTSIDE SERVICES,$197.70 ,3/22/2016
ATLAS/FIRST ACCESS,OUTSIDE SERVICES,$822.75 ,4/12/2016
ATLAS/FIRST ACCESS,OUTSIDE SERVICES,$130.50 ,4/25/2016
ATLAS/FIRST ACCESS,OUTSIDE SERVICES,$665.96 ,5/12/2016
ATLAS/FIRST ACCESS,OUTSIDE SERVICES,$298.14 ,5/26/2016
ATLAS/FIRST ACCESS,OUTSIDE SERVICES,"$5,075.96 ",5/26/2016
ATLAS/FIRST ACCESS,OUTSIDE SERVICES,$810 ,5/31/2016
ATLAS/FIRST ACCESS,OUTSIDE SERVICES,"$3,270.66 ",6/7/2016
ATLAS/FIRST ACCESS,OUTSIDE SERVICES,"$3,121.45 ",7/28/2016
ATLAS/FIRST ACCESS,OUTSIDE SERVICES,"$7,485 ",8/22/2016
ATLAS/FIRST ACCESS,OUTSIDE SERVICES,"$2,432.97 ",8/30/2016
ATLAS/FIRST ACCESS,OUTSIDE SERVICES,$90 ,10/6/2016
ATLAS/FIRST ACCESS,MATERIALS & ASSETS - CAPITAL,"$109,511 ",11/22/2016
ATLAS/FIRST ACCESS,OUTSIDE SERVICES,"$1,445 ",12/8/2016
ATOMIC TRANSMISSIONS,OUTSIDE SERVICES,$850 ,3/30/2016
ATOMIC TRANSMISSIONS,OUTSIDE SERVICES,"$2,065 ",12/27/2016
ATTORNEY REGISTRATION &,MISCELLANEOUS OTHER EXPENSE,"$3,201 ",11/9/2016
ATTORNEY REGISTRATION &,MISCELLANEOUS OTHER EXPENSE,$385 ,11/14/2016
ATTORNEY REGISTRATION &,MISCELLANEOUS OTHER EXPENSE,$385 ,11/14/2016
ATTORNEY REGISTRATION &,MISCELLANEOUS OTHER EXPENSE,$385 ,11/14/2016
ATTORNEY REGISTRATION &,MISCELLANEOUS OTHER EXPENSE,$385 ,11/14/2016
ATTORNEY REGISTRATION &,MISCELLANEOUS OTHER EXPENSE,$385 ,11/14/2016
ATTORNEY REGISTRATION &,MISCELLANEOUS OTHER EXPENSE,$385 ,11/14/2016
ATTORNEY REGISTRATION &,MISCELLANEOUS OTHER EXPENSE,$385 ,11/14/2016
ATTORNEY REGISTRATION &,MISCELLANEOUS OTHER EXPENSE,$385 ,11/14/2016
ATTORNEY REGISTRATION &,MISCELLANEOUS OTHER EXPENSE,$121 ,11/14/2016
ATTORNEY REGISTRATION &,MISCELLANEOUS OTHER EXPENSE,$121 ,11/14/2016
ATTORNEY REGISTRATION &,MISCELLANEOUS OTHER EXPENSE,$385 ,11/14/2016
ATTORNEY REGISTRATION &,MISCELLANEOUS OTHER EXPENSE,$385 ,11/14/2016
ATTORNEY REGISTRATION &,MISCELLANEOUS OTHER EXPENSE,$385 ,11/14/2016
ATTORNEY REGISTRATION &,MISCELLANEOUS OTHER EXPENSE,$385 ,11/14/2016
ATTORNEY REGISTRATION &,MISCELLANEOUS OTHER EXPENSE,$385 ,11/14/2016
ATTORNEY REGISTRATION &,MISCELLANEOUS OTHER EXPENSE,$385 ,11/14/2016
ATTORNEY REGISTRATION &,MISCELLANEOUS OTHER EXPENSE,$385 ,11/14/2016
ATTORNEY REGISTRATION &,MISCELLANEOUS OTHER EXPENSE,$385 ,11/16/2016
AUBURN METROLOGY LAB (AML),OUTSIDE SERVICES,$552.09 ,1/6/2016
AUBURN METROLOGY LAB (AML),OUTSIDE SERVICES,"$3,400 ",10/4/2016
AUBURN METROLOGY LAB (AML),OUTSIDE SERVICES,$232.36 ,11/15/2016
"AUTO TRUCK GROUP, LLC",MISCELLANEOUS OTHER EXPENSE,"$3,588.68 ",8/25/2016
AUTOMATED RAILROAD MNTCE. SYSTEMS,MATERIALS & ASSETS - CAPITAL,"$18,334.40 ",4/6/2016
AUTOMATED RAILROAD MNTCE. SYSTEMS,MATERIALS & ASSETS - CAPITAL,"$9,167.20 ",4/14/2016
AUTOMATED RAILROAD MNTCE. SYSTEMS,MATERIALS & ASSETS - CAPITAL,"$64,709.40 ",4/27/2016
AUTOMATED RAILROAD MNTCE. SYSTEMS,MATERIALS & ASSETS - CAPITAL,"$79,204.80 ",6/9/2016
AUTOMATED RAILROAD MNTCE. SYSTEMS,MATERIALS & ASSETS - CAPITAL,"$22,918 ",6/13/2016
AUTOMATED RAILROAD MNTCE. SYSTEMS,MATERIALS & ASSETS - CAPITAL,"$14,495.40 ",7/11/2016
AUTOMATED RAILROAD MNTCE. SYSTEMS,MATERIALS & ASSETS - CAPITAL,"$27,501.60 ",7/18/2016
AUTOMATED RAILROAD MNTCE. SYSTEMS,MATERIALS & ASSETS - CAPITAL,"$43,486.20 ",7/28/2016
AUTOMATED RAILROAD MNTCE. SYSTEMS,MATERIALS & ASSETS - CAPITAL,"$34,586.65 ",8/29/2016
AUTOMATED RAILROAD MNTCE. SYSTEMS,MATERIALS & ASSETS - CAPITAL,"$20,835.85 ",8/30/2016
AUTOMATED RAILROAD MNTCE. SYSTEMS,MATERIALS & ASSETS - CAPITAL,"$14,882.75 ",12/5/2016
AVERSON R. CHANDLER,"EMP EXPENSE REIMB, LOCAL",$142.35 ,6/29/2016
AVERSON R. CHANDLER,"EMP EXPENSE REIMB, LOCAL",$183.03 ,7/27/2016
AVERSON R. CHANDLER,"EMP EXPENSE REIMB, LOCAL",$183.03 ,8/16/2016
AVERSON R. CHANDLER,"EMP EXPENSE REIMB, LOCAL",$101.68 ,9/26/2016
AVERSON R. CHANDLER,"EMP EXPENSE REIMB, LOCAL",$142.35 ,10/24/2016
AVERSON R. CHANDLER,"EMP EXPENSE REIMB, LOCAL",$181.05 ,12/7/2016
AVERSON R. CHANDLER,"EMP EXPENSE REIMB, LOCAL",$386.39 ,12/8/2016
AZURA INVESTIGATIONS LLC,MISCELLANEOUS OTHER EXPENSE,"$2,342.50 ",4/21/2016
AZURA INVESTIGATIONS LLC,MISCELLANEOUS OTHER EXPENSE,"$1,563.50 ",5/3/2016
AZURA INVESTIGATIONS LLC,MISCELLANEOUS OTHER EXPENSE,"$1,777 ",5/31/2016
AZURA INVESTIGATIONS LLC,MISCELLANEOUS OTHER EXPENSE,"$2,276 ",7/19/2016
AZURA INVESTIGATIONS LLC,MISCELLANEOUS OTHER EXPENSE,"$2,070.50 ",7/26/2016
AZURA INVESTIGATIONS LLC,MISCELLANEOUS OTHER EXPENSE,$263.50 ,9/8/2016
AZURA INVESTIGATIONS LLC,MISCELLANEOUS OTHER EXPENSE,"$1,159 ",9/26/2016
AZURA INVESTIGATIONS LLC,MISCELLANEOUS OTHER EXPENSE,"$1,503.50 ",11/22/2016
BACH-SIMPSON,OUTSIDE SERVICES,$395 ,1/11/2016
BACH-SIMPSON,OUTSIDE SERVICES,"$1,120 ",1/11/2016
BACH-SIMPSON,MATERIALS - INVENTORY,"$46,365 ",2/4/2016
BACH-SIMPSON,OUTSIDE SERVICES,"$4,095 ",2/4/2016
BACH-SIMPSON,OUTSIDE SERVICES,$750 ,2/4/2016
BACH-SIMPSON,OUTSIDE SERVICES,"$1,125 ",2/4/2016
BACH-SIMPSON,MATERIALS - INVENTORY,"$14,732 ",2/8/2016
BACH-SIMPSON,MATERIALS - INVENTORY,"$1,100 ",2/10/2016
BACH-SIMPSON,MATERIALS - INVENTORY,"$2,779 ",2/11/2016
BACH-SIMPSON,MATERIALS - INVENTORY,"$4,153 ",2/16/2016
BACH-SIMPSON,OUTSIDE SERVICES,$945 ,2/18/2016
BACH-SIMPSON,OUTSIDE SERVICES,$825 ,2/18/2016
BACH-SIMPSON,OUTSIDE SERVICES,$345 ,3/1/2016
BACH-SIMPSON,OUTSIDE SERVICES,"$3,400 ",3/1/2016
BACH-SIMPSON,MATERIALS - INVENTORY,"$6,339 ",3/16/2016
BACH-SIMPSON,MATERIALS - INVENTORY,"$19,289 ",3/21/2016
BACH-SIMPSON,MATERIALS - INVENTORY,$995 ,3/28/2016
BACH-SIMPSON,MATERIALS - INVENTORY,"$3,490 ",3/30/2016
BACH-SIMPSON,OUTSIDE SERVICES,"$1,020 ",3/30/2016
BACH-SIMPSON,OUTSIDE SERVICES,"$3,485 ",3/30/2016
BACH-SIMPSON,MATERIALS - INVENTORY,"$1,390 ",4/5/2016
BACH-SIMPSON,MATERIALS - INVENTORY,"$1,100 ",4/12/2016
BACH-SIMPSON,MATERIALS - INVENTORY,"$62,965 ",4/25/2016
BACH-SIMPSON,OUTSIDE SERVICES,"$4,939 ",4/28/2016
BACH-SIMPSON,OUTSIDE SERVICES,"$2,995 ",4/28/2016
BACH-SIMPSON,OUTSIDE SERVICES,$945 ,4/28/2016
BACH-SIMPSON,OUTSIDE SERVICES,"$2,995 ",5/3/2016
BACH-SIMPSON,OUTSIDE SERVICES,$495 ,5/3/2016
BACH-SIMPSON,OUTSIDE SERVICES,$350 ,5/3/2016
BACH-SIMPSON,MATERIALS - INVENTORY,$495 ,5/9/2016
BACH-SIMPSON,OUTSIDE SERVICES,$595 ,5/16/2016
BACH-SIMPSON,OUTSIDE SERVICES,$595 ,5/16/2016
BACH-SIMPSON,MATERIALS - INVENTORY,"$8,995 ",5/23/2016
BACH-SIMPSON,MATERIALS - INVENTORY,"$2,598 ",6/13/2016
BACH-SIMPSON,OUTSIDE SERVICES,$595 ,6/20/2016
BACH-SIMPSON,MATERIALS - INVENTORY,"$7,080 ",6/27/2016
BACH-SIMPSON,OUTSIDE SERVICES,$995 ,7/6/2016
BACH-SIMPSON,OUTSIDE SERVICES,"$1,290 ",7/6/2016
BACH-SIMPSON,OUTSIDE SERVICES,$395 ,7/6/2016
BACH-SIMPSON,MATERIALS & ASSETS - CAPITAL,"$36,000 ",7/14/2016
BACH-SIMPSON,MATERIALS - INVENTORY,$555 ,7/19/2016
BACH-SIMPSON,MATERIALS - NON-INVENTORY,"$1,240 ",7/25/2016
BACH-SIMPSON,OUTSIDE SERVICES,$695 ,7/25/2016
BACH-SIMPSON,MATERIALS - INVENTORY,"$1,795 ",7/28/2016
BACH-SIMPSON,MATERIALS & ASSETS - CAPITAL,"$188,895 ",8/1/2016
BACH-SIMPSON,MATERIALS - INVENTORY,"$2,995 ",8/11/2016
BACH-SIMPSON,MATERIALS - INVENTORY,"$1,795 ",8/22/2016
BACH-SIMPSON,OUTSIDE SERVICES,"$2,145 ",8/22/2016
BACH-SIMPSON,OUTSIDE SERVICES,$595 ,8/22/2016
BACH-SIMPSON,OUTSIDE SERVICES,"$1,495 ",8/22/2016
BACH-SIMPSON,MATERIALS - INVENTORY,"$6,296 ",8/23/2016
BACH-SIMPSON,MATERIALS - NON-INVENTORY,$395 ,8/29/2016
BACH-SIMPSON,MATERIALS & ASSETS - CAPITAL,"$8,995 ",8/30/2016
BACH-SIMPSON,MATERIALS & ASSETS - CAPITAL,"$3,500 ",9/1/2016
BACH-SIMPSON,OUTSIDE SERVICES,"$2,380 ",9/20/2016
BACH-SIMPSON,MATERIALS - INVENTORY,"$8,077 ",10/4/2016
BACH-SIMPSON,OUTSIDE SERVICES,"$1,585 ",10/4/2016
BACH-SIMPSON,OUTSIDE SERVICES,"$1,050 ",10/19/2016
BACH-SIMPSON,MATERIALS - INVENTORY,"$3,448 ",11/14/2016
BACH-SIMPSON,MATERIALS - INVENTORY,"$1,100 ",11/15/2016
BACH-SIMPSON,OUTSIDE SERVICES,"$1,785 ",11/15/2016
BACH-SIMPSON,OUTSIDE SERVICES,$300 ,11/15/2016
BACH-SIMPSON,MATERIALS - INVENTORY,"$11,455 ",11/22/2016
BACH-SIMPSON,MATERIALS - INVENTORY,"$2,598 ",12/8/2016
"BALLAST TOOLS, INC.",MATERIALS - INVENTORY,"$10,966 ",1/6/2016
"BALLAST TOOLS, INC.",MATERIALS - INVENTORY,"$2,104 ",2/16/2016
"BALLAST TOOLS, INC.",MATERIALS - INVENTORY,$678 ,2/22/2016
"BALLAST TOOLS, INC.",MATERIALS - INVENTORY,"$4,358 ",3/21/2016
"BALLAST TOOLS, INC.",MATERIALS - INVENTORY,"$14,218 ",4/11/2016
"BALLAST TOOLS, INC.",MATERIALS - INVENTORY,"$4,538 ",4/28/2016
"BALLAST TOOLS, INC.",MATERIALS - INVENTORY,"$2,630 ",5/10/2016
"BALLAST TOOLS, INC.",MATERIALS - INVENTORY,"$5,450 ",6/20/2016
"BALLAST TOOLS, INC.",MATERIALS - INVENTORY,"$1,578 ",7/19/2016
"BALLAST TOOLS, INC.",MATERIALS - INVENTORY,"$4,734 ",8/23/2016
"BALLAST TOOLS, INC.",MATERIALS - INVENTORY,"$1,264 ",10/25/2016
"BALLAST TOOLS, INC.",MATERIALS - INVENTORY,"$3,834 ",11/14/2016
BARBARA A. HERODES,"EMP EXPENSE REIMB, LOCAL",$83.29 ,7/12/2016
BARBARA J. BUHAI,"EMP EXPENSE REIMB, LOCAL",$10 ,4/12/2016
BARBARA J. BUHAI,"EMP EXPENSE REIMB, LOCAL",$12.25 ,4/27/2016
BARBARA J. BUHAI,"EMP EXPENSE REIMB, LOCAL",$15 ,6/13/2016
BARBARA J. BUHAI,"EMP EXPENSE REIMB, LOCAL",$33.25 ,8/1/2016
BARBER SPRING CO.,MATERIALS - INVENTORY,"$2,080.28 ",1/6/2016
BARBER SPRING CO.,MATERIALS - INVENTORY,$674.42 ,2/11/2016
BARBER SPRING CO.,MATERIALS - INVENTORY,$337.21 ,3/16/2016
BARBER SPRING CO.,MATERIALS - INVENTORY,$674.42 ,4/11/2016
BARBER SPRING CO.,MATERIALS - INVENTORY,"$2,329.43 ",5/3/2016
BARBER SPRING CO.,MATERIALS - INVENTORY,"$1,847.66 ",5/9/2016
BARBER SPRING CO.,MATERIALS - INVENTORY,$337.21 ,5/16/2016
BARBER SPRING CO.,MATERIALS - INVENTORY,"$1,637.71 ",5/24/2016
BARBER SPRING CO.,MATERIALS - INVENTORY,"$2,080.28 ",6/13/2016
BARBER SPRING CO.,MATERIALS - INVENTORY,"$3,003.85 ",7/19/2016
BARBER SPRING CO.,MATERIALS - INVENTORY,"$1,615.81 ",8/23/2016
BARBER SPRING CO.,MATERIALS - INVENTORY,"$1,243.48 ",10/25/2016
BARBER SPRING CO.,MATERIALS - INVENTORY,"$2,080.28 ",11/14/2016
"BARCODES, INC.",MATERIALS & ASSETS - CAPITAL,"$11,436 ",10/6/2016
BARNES & NOBLE,MISCELLANEOUS OTHER EXPENSE,$19.20 ,8/1/2016
BARNES DISTRIBUTION,MATERIALS - NON-INVENTORY,$379.96 ,4/26/2016
BARRINGTON POLICE DEPT.,PROFESSIONAL SERVICES,$127 ,10/24/2016
BARRY  ABBOTT,"EMP EXPENSE REIMB, LOCAL",$36.72 ,10/20/2016
"BBA PROJECT, INC.",MATERIALS - INVENTORY,"$6,711 ",1/6/2016
"BBA PROJECT, INC.",MATERIALS - INVENTORY,"$3,348 ",1/7/2016
"BBA PROJECT, INC.",MISCELLANEOUS OTHER EXPENSE,$30 ,1/7/2016
"BBA PROJECT, INC.",MATERIALS & ASSETS - CAPITAL,"$13,944 ",1/19/2016
"BBA PROJECT, INC.",MATERIALS - INVENTORY,"$2,682.12 ",2/11/2016
"BBA PROJECT, INC.",MATERIALS - INVENTORY,"$6,386 ",3/30/2016
"BBA PROJECT, INC.",MATERIALS & ASSETS - CAPITAL,"$5,614 ",3/30/2016
"BBA PROJECT, INC.",MATERIALS - INVENTORY,"$1,277.20 ",4/18/2016
"BBA PROJECT, INC.",MATERIALS & ASSETS - CAPITAL,"$63,320 ",4/18/2016
"BBA PROJECT, INC.",MATERIALS & ASSETS - CAPITAL,"$28,392 ",6/6/2016
"BBA PROJECT, INC.",MATERIALS - INVENTORY,"$3,164.16 ",6/13/2016
"BBA PROJECT, INC.",MATERIALS & ASSETS - CAPITAL,$486 ,6/21/2016
"BBA PROJECT, INC.",MATERIALS & ASSETS - CAPITAL,"$53,606 ",6/27/2016
"BBA PROJECT, INC.",MATERIALS & ASSETS - CAPITAL,"$38,495 ",8/1/2016
"BBA PROJECT, INC.",MATERIALS - INVENTORY,"$2,356.32 ",8/23/2016
"BBA PROJECT, INC.",MATERIALS & ASSETS - CAPITAL,"$29,454 ",9/1/2016
"BBA PROJECT, INC.",MATERIALS & ASSETS - CAPITAL,"$99,598 ",9/26/2016
"BBA PROJECT, INC.",MATERIALS - INVENTORY,"$23,964.74 ",10/12/2016
"BBA PROJECT, INC.",MATERIALS - INVENTORY,"$3,180 ",10/19/2016
"BBA PROJECT, INC.",MATERIALS - INVENTORY,"$2,511 ",11/15/2016
"BBA PROJECT, INC.",MATERIALS & ASSETS - CAPITAL,"$81,191.60 ",11/22/2016
"BBA PROJECT, INC.",MATERIALS & ASSETS - CAPITAL,"$22,764 ",11/28/2016
"BBA PROJECT, INC.",MATERIALS & ASSETS - CAPITAL,"$182,782.75 ",12/15/2016
BEBON OFFICE MACHINES CO.,OUTSIDE SERVICES,$120 ,5/9/2016
BEBON OFFICE MACHINES CO.,OUTSIDE SERVICES,$395 ,11/15/2016
BEBON OFFICE MACHINES CO.,OUTSIDE SERVICES,$170 ,11/28/2016
"BEITLER MILLENNIUM STATION, LLC",OUTSIDE SERVICES,"$64,009.17 ",2/9/2016
"BEITLER MILLENNIUM STATION, LLC",OUTSIDE SERVICES,"$27,727.62 ",5/16/2016
BELLWOOD ELECTRIC MOTORS INC.,OUTSIDE SERVICES,"$9,370 ",1/6/2016
BELLWOOD ELECTRIC MOTORS INC.,OUTSIDE SERVICES,"$4,500 ",1/6/2016
BELLWOOD ELECTRIC MOTORS INC.,OUTSIDE SERVICES,"$18,900 ",1/11/2016
BELLWOOD ELECTRIC MOTORS INC.,MATERIALS - NON-INVENTORY,"$4,600 ",2/18/2016
BELLWOOD ELECTRIC MOTORS INC.,OUTSIDE SERVICES,"$9,040 ",2/18/2016
BELLWOOD ELECTRIC MOTORS INC.,OUTSIDE SERVICES,"$28,000 ",2/18/2016
BELLWOOD ELECTRIC MOTORS INC.,MATERIALS - NON-INVENTORY,"$1,870 ",2/18/2016
BELLWOOD ELECTRIC MOTORS INC.,OUTSIDE SERVICES,"$18,900 ",2/18/2016
BELLWOOD ELECTRIC MOTORS INC.,OUTSIDE SERVICES,"$4,400 ",3/1/2016
BELLWOOD ELECTRIC MOTORS INC.,MATERIALS & ASSETS - CAPITAL,"$3,200 ",3/10/2016
BELLWOOD ELECTRIC MOTORS INC.,MATERIALS - NON-INVENTORY,"$25,380 ",3/21/2016
BELLWOOD ELECTRIC MOTORS INC.,OUTSIDE SERVICES,"$13,300 ",3/21/2016
BELLWOOD ELECTRIC MOTORS INC.,MATERIALS - NON-INVENTORY,"$1,780 ",3/21/2016
BELLWOOD ELECTRIC MOTORS INC.,MATERIALS & ASSETS - CAPITAL,"$3,200 ",3/29/2016
BELLWOOD ELECTRIC MOTORS INC.,MATERIALS - NON-INVENTORY,"$4,600 ",4/21/2016
BELLWOOD ELECTRIC MOTORS INC.,OUTSIDE SERVICES,"$2,470 ",4/25/2016
BELLWOOD ELECTRIC MOTORS INC.,OUTSIDE SERVICES,"$4,400 ",4/28/2016
BELLWOOD ELECTRIC MOTORS INC.,OUTSIDE SERVICES,"$4,400 ",4/28/2016
BELLWOOD ELECTRIC MOTORS INC.,OUTSIDE SERVICES,"$4,500 ",5/16/2016
BELLWOOD ELECTRIC MOTORS INC.,OUTSIDE SERVICES,"$12,900 ",5/19/2016
BELLWOOD ELECTRIC MOTORS INC.,MATERIALS & ASSETS - CAPITAL,"$3,200 ",5/26/2016
BELLWOOD ELECTRIC MOTORS INC.,OUTSIDE SERVICES,"$18,900 ",6/7/2016
BELLWOOD ELECTRIC MOTORS INC.,OUTSIDE SERVICES,"$10,780 ",6/27/2016
BELLWOOD ELECTRIC MOTORS INC.,MATERIALS - NON-INVENTORY,"$4,300 ",6/27/2016
BELLWOOD ELECTRIC MOTORS INC.,OUTSIDE SERVICES,"$6,560 ",8/2/2016
BELLWOOD ELECTRIC MOTORS INC.,MATERIALS & ASSETS - CAPITAL,"$3,200 ",8/8/2016
BELLWOOD ELECTRIC MOTORS INC.,OUTSIDE SERVICES,"$4,500 ",8/11/2016
BELLWOOD ELECTRIC MOTORS INC.,OUTSIDE SERVICES,"$27,600 ",8/11/2016
BELLWOOD ELECTRIC MOTORS INC.,OUTSIDE SERVICES,"$8,600 ",8/11/2016
BELLWOOD ELECTRIC MOTORS INC.,OUTSIDE SERVICES,"$13,280 ",8/22/2016
BELLWOOD ELECTRIC MOTORS INC.,OUTSIDE SERVICES,"$29,460 ",8/22/2016
BELLWOOD ELECTRIC MOTORS INC.,OUTSIDE SERVICES,"$1,780 ",9/19/2016
BELLWOOD ELECTRIC MOTORS INC.,OUTSIDE SERVICES,"$4,400 ",9/19/2016
BELLWOOD ELECTRIC MOTORS INC.,OUTSIDE SERVICES,"$4,400 ",9/20/2016
BELLWOOD ELECTRIC MOTORS INC.,OUTSIDE SERVICES,"$4,400 ",9/20/2016
BELLWOOD ELECTRIC MOTORS INC.,OUTSIDE SERVICES,"$18,900 ",10/19/2016
BELLWOOD ELECTRIC MOTORS INC.,MATERIALS & ASSETS - CAPITAL,"$3,500 ",10/19/2016
BELLWOOD ELECTRIC MOTORS INC.,MATERIALS - NON-INVENTORY,$590 ,10/25/2016
BELLWOOD ELECTRIC MOTORS INC.,OUTSIDE SERVICES,"$27,680 ",10/25/2016
BELLWOOD ELECTRIC MOTORS INC.,OUTSIDE SERVICES,"$1,780 ",10/25/2016
BELLWOOD ELECTRIC MOTORS INC.,OUTSIDE SERVICES,"$5,700 ",11/14/2016
BELLWOOD ELECTRIC MOTORS INC.,OUTSIDE SERVICES,"$11,700 ",11/22/2016
BELLWOOD ELECTRIC MOTORS INC.,MATERIALS & ASSETS - CAPITAL,"$3,200 ",12/5/2016
BELLWOOD ELECTRIC MOTORS INC.,OUTSIDE SERVICES,"$4,500 ",12/27/2016
BELT RAILWAY CO. OF CHICAGO,MATERIALS - NON-INVENTORY,$250 ,9/20/2016
"BENJAMIN ROBLES, III","EMP EXPENSE REIMB, LOCAL",$56.16 ,3/31/2016
BENNET MOULTON,"EMP EXPENSE REIMB, LOCAL",$163.72 ,7/20/2016
"BENSINGER, DUPONT & ASSOC.",PROFESSIONAL SERVICES,"$4,970 ",1/19/2016
"BENSINGER, DUPONT & ASSOC.",PROFESSIONAL SERVICES,"$4,970 ",1/25/2016
"BENSINGER, DUPONT & ASSOC.",PROFESSIONAL SERVICES,"$4,970 ",2/18/2016
"BENSINGER, DUPONT & ASSOC.",PROFESSIONAL SERVICES,"$4,970 ",3/14/2016
"BENSINGER, DUPONT & ASSOC.",PROFESSIONAL SERVICES,"$14,910 ",5/24/2016
"BENSINGER, DUPONT & ASSOC.",PROFESSIONAL SERVICES,"$4,970 ",7/25/2016
"BENSINGER, DUPONT & ASSOC.",PROFESSIONAL SERVICES,"$4,970 ",9/19/2016
"BENSINGER, DUPONT & ASSOC.",PROFESSIONAL SERVICES,"$4,970 ",12/19/2016
"BENTLEY SYSTEMS, INC.",PROFESSIONAL SERVICES,"$115,060.72 ",3/22/2016
BERNARD POWELL,"EMP EXPENSE REIMB, LOCAL",$169.50 ,7/11/2016
BERNARD POWELL,"EMP EXPENSE REIMB, LOCAL",$56.50 ,8/4/2016
BERNARD POWELL,"EMP EXPENSE REIMB, LOCAL",$226 ,9/6/2016
BERNARD POWELL,"EMP EXPENSE REIMB, LOCAL",$169.50 ,9/29/2016
BERNARD POWELL,"EMP EXPENSE REIMB, LOCAL",$56.50 ,10/3/2016
BERNARD POWELL,"EMP EXPENSE REIMB, LOCAL",$56.50 ,10/24/2016
"BERTS CAR WASH, INC.",OUTSIDE SERVICES,"$1,684.50 ",1/25/2016
"BERTS CAR WASH, INC.",OUTSIDE SERVICES,$566.50 ,3/1/2016
"BERTS CAR WASH, INC.",OUTSIDE SERVICES,$723 ,5/3/2016
"BERTS CAR WASH, INC.",OUTSIDE SERVICES,$750.50 ,5/5/2016
"BERTS CAR WASH, INC.",OUTSIDE SERVICES,$533.50 ,5/26/2016
"BERTS CAR WASH, INC.",OUTSIDE SERVICES,$493 ,7/26/2016
"BERTS CAR WASH, INC.",OUTSIDE SERVICES,"$1,580 ",8/12/2016
"BERTS CAR WASH, INC.",OUTSIDE SERVICES,$573 ,10/12/2016
"BERTS CAR WASH, INC.",OUTSIDE SERVICES,$815 ,11/28/2016
BEVERLY DOUGLAS,"EMP EXPENSE REIMB, LOCAL",$187.68 ,1/4/2016
BEVERLY DOUGLAS,"EMP EXPENSE REIMB, LOCAL",$152.26 ,1/25/2016
BEVERLY DOUGLAS,"EMP EXPENSE REIMB, LOCAL",$121.82 ,2/24/2016
BIAGIO'S CATERING,MISCELLANEOUS OTHER EXPENSE,"$1,412.25 ",2/3/2016
BIAGIO'S CATERING,MISCELLANEOUS OTHER EXPENSE,"$4,392.35 ",9/6/2016
BIAGIO'S CATERING,MISCELLANEOUS OTHER EXPENSE,"$6,739.50 ",9/6/2016
BIAGIO'S CATERING,MISCELLANEOUS OTHER EXPENSE,"$4,760.70 ",9/8/2016
BLACK INDUSTRIAL SUPPLY CORP.,MATERIALS & ASSETS - CAPITAL,"$1,255.45 ",6/27/2016
BLACK INDUSTRIAL SUPPLY CORP.,MATERIALS - NON-INVENTORY,"$4,993 ",9/8/2016
BLR,PROFESSIONAL SERVICES,$219 ,6/30/2016
BLUE ISLAND FIRE DEPT,OUTSIDE SERVICES,$100 ,10/20/2016
"BLUE PRINT SHOPPE, INC.",ENGINEERING & DESIGN,$165.30 ,1/19/2016
"BLUE PRINT SHOPPE, INC.",ENGINEERING & DESIGN,$5 ,1/28/2016
"BLUE PRINT SHOPPE, INC.",ENGINEERING & DESIGN,$39 ,2/4/2016
"BLUE PRINT SHOPPE, INC.",ENGINEERING & DESIGN,$250.15 ,2/11/2016
"BLUE PRINT SHOPPE, INC.",ENGINEERING & DESIGN,"$1,880 ",2/16/2016
"BLUE PRINT SHOPPE, INC.",ENGINEERING & DESIGN,$294.17 ,3/21/2016
"BLUE PRINT SHOPPE, INC.",ENGINEERING & DESIGN,$22.62 ,3/29/2016
"BLUE PRINT SHOPPE, INC.",ENGINEERING & DESIGN,$222.42 ,3/30/2016
"BLUE PRINT SHOPPE, INC.",ENGINEERING & DESIGN,$885.20 ,4/25/2016
"BLUE PRINT SHOPPE, INC.",ENGINEERING & DESIGN,$604.32 ,4/27/2016
"BLUE PRINT SHOPPE, INC.",ENGINEERING & DESIGN,$950.25 ,5/19/2016
"BLUE PRINT SHOPPE, INC.",ENGINEERING & DESIGN,$418.03 ,6/6/2016
"BLUE PRINT SHOPPE, INC.",ENGINEERING & DESIGN,$240.28 ,8/17/2016
"BLUE PRINT SHOPPE, INC.",ENGINEERING & DESIGN,$117.36 ,9/12/2016
"BLUE PRINT SHOPPE, INC.",ENGINEERING & DESIGN,$142.20 ,10/17/2016
"BLUE PRINT SHOPPE, INC.",ENGINEERING & DESIGN,$268.65 ,10/24/2016
"BLUE PRINT SHOPPE, INC.",ENGINEERING & DESIGN,$318.45 ,10/26/2016
"BLUE PRINT SHOPPE, INC.",ENGINEERING & DESIGN,$9.32 ,10/31/2016
"BLUE PRINT SHOPPE, INC.",MATERIALS - NON-INVENTORY,$400 ,12/8/2016
"BLUE PRINT SHOPPE, INC.",ENGINEERING & DESIGN,$25.50 ,12/13/2016
BNSF RAILWAY CO.,MATERIALS & ASSETS - CAPITAL,"$165,623.08 ",2/16/2016
BNSF RAILWAY CO.,CONSTRUCTION,"$50,608.88 ",2/16/2016
BNSF RAILWAY CO.,CONSTRUCTION,"$6,049.11 ",2/16/2016
BNSF RAILWAY CO.,MATERIALS & ASSETS - CAPITAL,"$33,723.67 ",2/16/2016
BNSF RAILWAY CO.,CONSTRUCTION,"$32,468.36 ",2/16/2016
BNSF RAILWAY CO.,CONSTRUCTION,"$61,260.62 ",2/18/2016
BNSF RAILWAY CO.,MATERIALS & ASSETS - CAPITAL,"$1,711.72 ",2/18/2016
BNSF RAILWAY CO.,CONSTRUCTION,"$1,723.17 ",2/18/2016
BNSF RAILWAY CO.,CONSTRUCTION,"$16,156.44 ",2/23/2016
BNSF RAILWAY CO.,CONSTRUCTION,"$13,312 ",2/29/2016
BNSF RAILWAY CO.,CONSTRUCTION,"$17,116.74 ",3/7/2016
BNSF RAILWAY CO.,CONSTRUCTION,"$206,323.27 ",3/7/2016
BNSF RAILWAY CO.,MATERIALS & ASSETS - CAPITAL,"$14,337.26 ",3/7/2016
BNSF RAILWAY CO.,CONSTRUCTION,"$250,950.72 ",3/7/2016
BNSF RAILWAY CO.,CONSTRUCTION,"$69,242.45 ",3/17/2016
BNSF RAILWAY CO.,CONSTRUCTION,"$6,620.56 ",4/7/2016
BNSF RAILWAY CO.,CONSTRUCTION,"$150,705.90 ",4/7/2016
BNSF RAILWAY CO.,MATERIALS & ASSETS - CAPITAL,"$23,820.61 ",4/7/2016
BNSF RAILWAY CO.,CONSTRUCTION,"$160,406.43 ",4/7/2016
BNSF RAILWAY CO.,MATERIALS & ASSETS - CAPITAL,"$28,820.80 ",4/11/2016
BNSF RAILWAY CO.,CONSTRUCTION,"$47,954.85 ",4/11/2016
BNSF RAILWAY CO.,MATERIALS & ASSETS - CAPITAL,"$137,276.68 ",5/2/2016
BNSF RAILWAY CO.,CONSTRUCTION,"$176,980.37 ",5/2/2016
BNSF RAILWAY CO.,CONSTRUCTION,$315.18 ,5/2/2016
BNSF RAILWAY CO.,MATERIALS & ASSETS - CAPITAL,"$7,045.48 ",5/2/2016
BNSF RAILWAY CO.,CONSTRUCTION,"$173,662.78 ",5/2/2016
BNSF RAILWAY CO.,ENGINEERING & DESIGN,"$22,242.29 ",5/2/2016
BNSF RAILWAY CO.,MATERIALS & ASSETS - CAPITAL,"$9,811 ",5/3/2016
BNSF RAILWAY CO.,CONSTRUCTION,$111.87 ,5/3/2016
BNSF RAILWAY CO.,MATERIALS & ASSETS - CAPITAL,"$26,359.68 ",5/9/2016
BNSF RAILWAY CO.,ENGINEERING & DESIGN,"$7,180.65 ",5/9/2016
BNSF RAILWAY CO.,MATERIALS & ASSETS - CAPITAL,"$23,490.57 ",5/19/2016
BNSF RAILWAY CO.,CONSTRUCTION,$121.11 ,5/19/2016
BNSF RAILWAY CO.,MATERIALS & ASSETS - CAPITAL,"$33,929.91 ",5/25/2016
BNSF RAILWAY CO.,CONSTRUCTION,"$160,479.54 ",5/25/2016
BNSF RAILWAY CO.,CONSTRUCTION,"$19,210.55 ",5/25/2016
BNSF RAILWAY CO.,MATERIALS & ASSETS - CAPITAL,"$38,652.90 ",6/1/2016
BNSF RAILWAY CO.,CONSTRUCTION,"$20,015.06 ",6/1/2016
BNSF RAILWAY CO.,ENGINEERING & DESIGN,"$22,712.99 ",6/1/2016
BNSF RAILWAY CO.,MATERIALS & ASSETS - CAPITAL,"$539,839.65 ",7/5/2016
BNSF RAILWAY CO.,CONSTRUCTION,"$150,318.74 ",7/5/2016
BNSF RAILWAY CO.,MATERIALS & ASSETS - CAPITAL,"$16,030.99 ",7/5/2016
BNSF RAILWAY CO.,CONSTRUCTION,$302.82 ,7/5/2016
BNSF RAILWAY CO.,ENGINEERING & DESIGN,"$2,165.11 ",7/5/2016
BNSF RAILWAY CO.,MATERIALS & ASSETS - CAPITAL,"$160,599.99 ",7/7/2016
BNSF RAILWAY CO.,CONSTRUCTION,"$130,168.59 ",7/7/2016
BNSF RAILWAY CO.,MATERIALS & ASSETS - CAPITAL,"$29,561.35 ",7/7/2016
BNSF RAILWAY CO.,CONSTRUCTION,$39.96 ,7/7/2016
BNSF RAILWAY CO.,ENGINEERING & DESIGN,"$5,187.78 ",7/7/2016
BNSF RAILWAY CO.,CONSTRUCTION,$111.87 ,7/11/2016
BNSF RAILWAY CO.,MATERIALS & ASSETS - CAPITAL,$623.70 ,7/12/2016
BNSF RAILWAY CO.,CONSTRUCTION,"$69,121.23 ",7/12/2016
BNSF RAILWAY CO.,MATERIALS & ASSETS - CAPITAL,"$71,149.57 ",7/18/2016
BNSF RAILWAY CO.,CONSTRUCTION,$224.14 ,7/18/2016
BNSF RAILWAY CO.,MATERIALS & ASSETS - CAPITAL,"$44,001.75 ",8/1/2016
BNSF RAILWAY CO.,CONSTRUCTION,"$364,134.49 ",8/1/2016
BNSF RAILWAY CO.,CONSTRUCTION,"$29,174.52 ",8/1/2016
BNSF RAILWAY CO.,MATERIALS & ASSETS - CAPITAL,"$198,594.20 ",8/2/2016
BNSF RAILWAY CO.,CONSTRUCTION,"$7,631.66 ",8/2/2016
BNSF RAILWAY CO.,MATERIALS & ASSETS - CAPITAL,"$7,224.83 ",8/2/2016
BNSF RAILWAY CO.,CONSTRUCTION,"$30,573.78 ",8/2/2016
BNSF RAILWAY CO.,CONSTRUCTION,$279.67 ,8/16/2016
BNSF RAILWAY CO.,ENGINEERING & DESIGN,"$4,610.47 ",8/16/2016
BNSF RAILWAY CO.,MATERIALS & ASSETS - CAPITAL,"$11,017.28 ",8/29/2016
BNSF RAILWAY CO.,CONSTRUCTION,"$135,864.57 ",8/29/2016
BNSF RAILWAY CO.,CONSTRUCTION,"$55,034.55 ",8/29/2016
BNSF RAILWAY CO.,MATERIALS & ASSETS - CAPITAL,"$104,335.27 ",9/7/2016
BNSF RAILWAY CO.,CONSTRUCTION,"$331,750.75 ",9/7/2016
BNSF RAILWAY CO.,MATERIALS & ASSETS - CAPITAL,"$33,352.42 ",9/12/2016
BNSF RAILWAY CO.,CONSTRUCTION,$168.08 ,9/12/2016
BNSF RAILWAY CO.,MATERIALS & ASSETS - CAPITAL,"$26,140.53 ",9/12/2016
BNSF RAILWAY CO.,CONSTRUCTION,$121.11 ,9/12/2016
BNSF RAILWAY CO.,CONSTRUCTION,"$8,998.63 ",9/13/2016
BNSF RAILWAY CO.,MISCELLANEOUS OTHER EXPENSE,"$50,915.87 ",9/19/2016
BNSF RAILWAY CO.,CONSTRUCTION,$181.67 ,9/19/2016
BNSF RAILWAY CO.,CONSTRUCTION,"$3,724.67 ",9/26/2016
BNSF RAILWAY CO.,CONSTRUCTION,"$38,490.30 ",9/26/2016
BNSF RAILWAY CO.,MATERIALS & ASSETS - CAPITAL,"$5,999.10 ",9/26/2016
BNSF RAILWAY CO.,MATERIALS & ASSETS - CAPITAL,"$119,590.88 ",10/3/2016
BNSF RAILWAY CO.,CONSTRUCTION,"$130,902.26 ",10/3/2016
BNSF RAILWAY CO.,MATERIALS & ASSETS - CAPITAL,"$181,022.06 ",10/4/2016
BNSF RAILWAY CO.,CONSTRUCTION,"$242,615.36 ",10/4/2016
BNSF RAILWAY CO.,MATERIALS & ASSETS - CAPITAL,"$4,062.77 ",10/4/2016
BNSF RAILWAY CO.,CONSTRUCTION,"$1,431.76 ",10/4/2016
BNSF RAILWAY CO.,MATERIALS & ASSETS - CAPITAL,"$1,690.53 ",10/6/2016
BNSF RAILWAY CO.,CONSTRUCTION,"$85,186.40 ",10/6/2016
BNSF RAILWAY CO.,MATERIALS & ASSETS - CAPITAL,"$21,773.83 ",10/10/2016
BNSF RAILWAY CO.,MATERIALS & ASSETS - CAPITAL,"$16,893.75 ",10/10/2016
BNSF RAILWAY CO.,CONSTRUCTION,$227.11 ,10/10/2016
BNSF RAILWAY CO.,MATERIALS & ASSETS - CAPITAL,"$56,122.25 ",10/10/2016
BNSF RAILWAY CO.,ENGINEERING & DESIGN,"$6,674.71 ",10/10/2016
BNSF RAILWAY CO.,CONSTRUCTION,"$35,188.45 ",10/31/2016
BNSF RAILWAY CO.,MATERIALS & ASSETS - CAPITAL,$406.67 ,11/1/2016
BNSF RAILWAY CO.,CONSTRUCTION,"$11,728.51 ",11/1/2016
BNSF RAILWAY CO.,MATERIALS & ASSETS - CAPITAL,"$13,360.62 ",11/10/2016
BNSF RAILWAY CO.,CONSTRUCTION,"$373,592.38 ",11/10/2016
BNSF RAILWAY CO.,MATERIALS & ASSETS - CAPITAL,"$15,814.67 ",11/10/2016
BNSF RAILWAY CO.,CONSTRUCTION,"$12,950.95 ",11/10/2016
BNSF RAILWAY CO.,ENGINEERING & DESIGN,"$8,168.77 ",11/10/2016
BNSF RAILWAY CO.,ENGINEERING & DESIGN,"$18,510.92 ",11/21/2016
BNSF RAILWAY CO.,MATERIALS & ASSETS - CAPITAL,"$49,553.84 ",12/5/2016
BNSF RAILWAY CO.,CONSTRUCTION,"$400,035.10 ",12/5/2016
BNSF RAILWAY CO.,CONSTRUCTION,"$38,305.77 ",12/5/2016
BNSF RAILWAY CO.,MATERIALS & ASSETS - CAPITAL,"$19,573.95 ",12/5/2016
BNSF RAILWAY CO.,CONSTRUCTION,"$42,307.58 ",12/5/2016
BNSF RAILWAY CO.,ENGINEERING & DESIGN,"$13,428.39 ",12/5/2016
BNSF RAILWAY CO.,CONSTRUCTION,"$12,332.64 ",12/12/2016
BNSF RAILWAY CO.,CONSTRUCTION,"$12,300.22 ",12/12/2016
BNSF RAILWAY CO.,ENGINEERING & DESIGN,"$6,400.03 ",12/12/2016
BOARD OF CERTIFIED SAFETY,PROFESSIONAL SERVICES,$350 ,5/2/2016
BOARD OF CERTIFIED SAFETY PROFESSIO,PROFESSIONAL SERVICES,$350 ,5/16/2016
BOARD OF CERTIFIED SAFETY PROFESSIO,PROFESSIONAL SERVICES,$95 ,11/28/2016
BOMA/CHICAGO,OUTSIDE SERVICES,$60 ,10/10/2016
BOMA/CHICAGO,MISCELLANEOUS OTHER EXPENSE,"$2,489 ",12/28/2016
"BOWEN EHS, LLC",PROFESSIONAL SERVICES,$395 ,1/14/2016
"BOWMAN, BARRETT & ASSOC.",ENG. MANAGEMENT & INSPECTIONS,"$37,347.03 ",3/15/2016
"BOWMAN, BARRETT & ASSOC.",ENGINEERING & DESIGN,"$14,922.32 ",7/11/2016
"BOWMAN, BARRETT & ASSOC.",MISCELLANEOUS OTHER EXPENSE,$599.88 ,8/23/2016
"BOWMAN, BARRETT & ASSOC.",ENG. MANAGEMENT & INSPECTIONS,"$57,546.73 ",9/19/2016
"BOWMAN, BARRETT & ASSOC.",ENG. MANAGEMENT & INSPECTIONS,"$189,740.09 ",9/20/2016
"BOWMAN, BARRETT & ASSOC.",ENG. MANAGEMENT & INSPECTIONS,"$51,818.08 ",11/9/2016
"BOWMAN, BARRETT & ASSOC.",ENG. MANAGEMENT & INSPECTIONS,"$8,358.54 ",12/15/2016
"BRABAZON PUMPE CO., LTD.",OUTSIDE SERVICES,$613.84 ,1/7/2016
"BRABAZON PUMPE CO., LTD.",MATERIALS - INVENTORY,"$18,165 ",1/25/2016
"BRABAZON PUMPE CO., LTD.",OUTSIDE SERVICES,"$1,994.83 ",1/25/2016
"BRABAZON PUMPE CO., LTD.",MATERIALS - INVENTORY,"$12,110 ",2/11/2016
"BRABAZON PUMPE CO., LTD.",MATERIALS - INVENTORY,"$12,110 ",2/22/2016
"BRABAZON PUMPE CO., LTD.",MATERIALS - INVENTORY,"$18,165 ",3/16/2016
"BRABAZON PUMPE CO., LTD.",MATERIALS - INVENTORY,$690.75 ,6/27/2016
BRAD CLARK,"EMP EXPENSE REIMB, OUT OF TOWN","$1,071.43 ",3/30/2016
BRAD METHLING,"EMP EXPENSE REIMB, LOCAL",$257.60 ,1/25/2016
BRAD METHLING,"EMP EXPENSE REIMB, LOCAL",$286.20 ,2/23/2016
BRAD METHLING,"EMP EXPENSE REIMB, LOCAL",$250.56 ,3/24/2016
BRAD METHLING,"EMP EXPENSE REIMB, LOCAL",$120.96 ,4/20/2016
BRAD METHLING,"EMP EXPENSE REIMB, LOCAL",$247.32 ,6/2/2016
BRAD METHLING,"EMP EXPENSE REIMB, LOCAL",$339.12 ,6/30/2016
BRAD METHLING,"EMP EXPENSE REIMB, LOCAL",$267.84 ,7/11/2016
BRAD METHLING,"EMP EXPENSE REIMB, LOCAL",$339.12 ,7/25/2016
BRAD METHLING,"EMP EXPENSE REIMB, LOCAL",$250.56 ,8/15/2016
BRAD METHLING,"EMP EXPENSE REIMB, LOCAL",$217.08 ,9/8/2016
BRAD METHLING,"EMP EXPENSE REIMB, LOCAL",$176.04 ,10/24/2016
BRAD METHLING,"EMP EXPENSE REIMB, LOCAL",$91.80 ,12/5/2016
BRAINSTORM STRATEGY GROUP INC.,OUTSIDE SERVICES,$945 ,10/20/2016
BRENDAN A. STEJSKAL,"EMP EXPENSE REIMB, LOCAL",$85.10 ,1/25/2016
BRENDAN A. STEJSKAL,"EMP EXPENSE REIMB, LOCAL",$176.04 ,2/24/2016
BRENDAN A. STEJSKAL,"EMP EXPENSE REIMB, LOCAL",$62.64 ,3/17/2016
BRENDAN A. STEJSKAL,"EMP EXPENSE REIMB, LOCAL",$85.32 ,4/14/2016
BRENDAN A. STEJSKAL,"EMP EXPENSE REIMB, LOCAL",$159.84 ,6/2/2016
BRENDAN A. STEJSKAL,"EMP EXPENSE REIMB, LOCAL",$79.92 ,6/27/2016
BRENDAN A. STEJSKAL,"EMP EXPENSE REIMB, LOCAL",$39.96 ,7/21/2016
BRENDAN A. STEJSKAL,"EMP EXPENSE REIMB, LOCAL",$142.56 ,8/29/2016
BRENDAN A. STEJSKAL,"EMP EXPENSE REIMB, LOCAL",$125.28 ,10/4/2016
BRENDAN A. STEJSKAL,"EMP EXPENSE REIMB, LOCAL",$45.36 ,10/31/2016
BRENDAN A. STEJSKAL,"EMP EXPENSE REIMB, LOCAL",$90.72 ,12/5/2016
BRENDAN M. O'HARA,"EMP EXPENSE REIMB, LOCAL",$90.85 ,1/25/2016
BRENDAN M. O'HARA,"EMP EXPENSE REIMB, LOCAL",$42.12 ,6/6/2016
BRENDAN M. O'HARA,"EMP EXPENSE REIMB, LOCAL",$42.66 ,9/6/2016
BRIAN C. PETERS,"EMP EXPENSE REIMB, OUT OF TOWN","$1,229.86 ",9/6/2016
BRIAN J. KOCIS,"EMP EXPENSE REIMB, LOCAL",$32.40 ,4/11/2016
BRIAN JOHNSON,"EMP EXPENSE REIMB, LOCAL",$47.38 ,3/1/2016
BRIAN L. BURNS,"EMP EXPENSE REIMB, LOCAL",$85.32 ,3/2/2016
BRIAN L. BURNS,"EMP EXPENSE REIMB, LOCAL",$165.24 ,4/21/2016
BRIAN L. BURNS,"EMP EXPENSE REIMB, LOCAL",$39.96 ,7/25/2016
BRIAN PIPER,METRA SPONSORED EVENT,$51.75 ,8/11/2016
BRIAN R BENES,"EMP EXPENSE REIMB, OUT OF TOWN","$1,150.39 ",11/2/2016
BRIAN THIELMANN,"EMP EXPENSE REIMB, LOCAL",$83.16 ,6/6/2016
BRITTANY BOGAN,"EMP EXPENSE REIMB, LOCAL",$19.22 ,10/6/2016
BRITTANY WATERS,"EMP EXPENSE REIMB, OUT OF TOWN",$318 ,3/7/2016
"BROADBLAST, INC.",MATERIALS - NON-INVENTORY,"$8,914.40 ",2/8/2016
"BROADBLAST, INC.",MATERIALS - NON-INVENTORY,$892.82 ,2/16/2016
"BROADBLAST, INC.",MATERIALS - NON-INVENTORY,$108.40 ,8/12/2016
"BROADBLAST, INC.",MATERIALS - NON-INVENTORY,"$1,002.19 ",8/15/2016
"BROADBLAST, INC.",MATERIALS - NON-INVENTORY,$589.95 ,11/15/2016
"BROADWAY ELECTRIC, INC.",CONSTRUCTION,"$8,550 ",2/8/2016
"BROADWAY ELECTRIC, INC.",CONSTRUCTION,"$128,745 ",2/25/2016
"BROADWAY ELECTRIC, INC.",CONSTRUCTION,"$32,911.20 ",4/13/2016
"BROADWAY ELECTRIC, INC.",CONSTRUCTION,"$111,729.69 ",5/9/2016
"BROADWAY ELECTRIC, INC.",CONSTRUCTION,"$66,196.44 ",5/24/2016
"BROADWAY ELECTRIC, INC.",CONSTRUCTION,"$36,484.74 ",9/1/2016
"BRONNER GROUP, LLC",PROFESSIONAL SERVICES,"$67,080 ",1/6/2016
"BRONNER GROUP, LLC",PROFESSIONAL SERVICES,"$70,305 ",2/3/2016
"BRONNER GROUP, LLC",PROFESSIONAL SERVICES,"$52,141.25 ",3/1/2016
"BRONNER GROUP, LLC",PROFESSIONAL SERVICES,"$34,180 ",4/19/2016
"BRONNER GROUP, LLC",PROFESSIONAL SERVICES,"$34,780 ",5/3/2016
"BRONNER GROUP, LLC",PROFESSIONAL SERVICES,"$22,860 ",5/19/2016
"BRONNER GROUP, LLC",PROFESSIONAL SERVICES,"$16,375 ",7/25/2016
"BRONNER GROUP, LLC",PROFESSIONAL SERVICES,"$16,327.50 ",8/2/2016
"BRONNER GROUP, LLC",PROFESSIONAL SERVICES,"$11,715 ",8/22/2016
"BRONNER GROUP, LLC",PROFESSIONAL SERVICES,"$12,985 ",10/12/2016
"BRONNER GROUP, LLC",PROFESSIONAL SERVICES,"$26,051.25 ",11/17/2016
"BROOKS-ALLAN, INC.",OUTSIDE SERVICES,"$2,732.84 ",1/7/2016
"BROWNELLS, INC.",MISCELLANEOUS OTHER EXPENSE,$15.95 ,12/15/2016
"BROWNELLS, INC.",MISCELLANEOUS OTHER EXPENSE,"$1,029.52 ",12/15/2016
BRUCE  MARCHESCHI,"EMP EXPENSE REIMB, OUT OF TOWN","$1,704.80 ",2/17/2016
BRUCE  MARCHESCHI,"EMP EXPENSE REIMB, OUT OF TOWN",$764.09 ,6/6/2016
BRUCE  MARCHESCHI,"EMP EXPENSE REIMB, OUT OF TOWN","$1,435.91 ",10/3/2016
BRUNO J ZAWISZA,"EMP EXPENSE REIMB, LOCAL",$63.18 ,12/21/2016
"BUREAU VERITAS NORTH AMERICA, INC.",ENG. MANAGEMENT & INSPECTIONS,"$21,283.23 ",1/14/2016
"BUREAU VERITAS NORTH AMERICA, INC.",ENG. MANAGEMENT & INSPECTIONS,"$1,826.46 ",2/23/2016
"BUREAU VERITAS NORTH AMERICA, INC.",ENG. MANAGEMENT & INSPECTIONS,"$2,752.85 ",3/22/2016
"BUREAU VERITAS NORTH AMERICA, INC.",ENG. MANAGEMENT & INSPECTIONS,"$1,323.64 ",4/18/2016
"BUREAU VERITAS NORTH AMERICA, INC.",ENG. MANAGEMENT & INSPECTIONS,"$10,985.55 ",10/17/2016
"BUREAU VERITAS NORTH AMERICA, INC.",ENG. MANAGEMENT & INSPECTIONS,"$1,434.39 ",12/5/2016
"BUREAU VERITAS NORTH AMERICA, INC.",ENG. MANAGEMENT & INSPECTIONS,"$3,763.42 ",12/15/2016
BURRIS EQUIPMENT CO.,MATERIALS - CAPITAL,"$7,385.60 ",11/14/2016
BURRIS EQUIPMENT CO.,OUTSIDE SERVICES - CAPITAL,"$3,628.80 ",12/8/2016
BURWOOD GROUP,MATERIALS & ASSETS - CAPITAL,"$72,671.52 ",4/11/2016
BURWOOD GROUP,MATERIALS & ASSETS - CAPITAL,"$15,376.50 ",4/14/2016
BURWOOD GROUP,MATERIALS & ASSETS - CAPITAL,"$5,265.43 ",5/19/2016
BURWOOD GROUP,MATERIALS & ASSETS - CAPITAL,"$27,965 ",8/25/2016
BURWOOD GROUP,MATERIALS & ASSETS - CAPITAL,"$26,240 ",9/22/2016
BUSINESS & LEGAL RESOURCES,PROFESSIONAL SERVICES,$219 ,10/6/2016
BUSINESS RESUMPTION PLANNERS ASSN.,PROFESSIONAL SERVICES,$25 ,11/29/2016
"C G PROFESSIONAL SERVICES, INC.",MATERIALS & ASSETS - CAPITAL,"$30,839 ",11/8/2016
"CA, INC.",PROFESSIONAL SERVICES,"$75,106 ",11/28/2016
CALAMP WIRELESS NETWORKS CORP.,MATERIALS & ASSETS - CAPITAL,"$713,450 ",3/10/2016
CALAMP WIRELESS NETWORKS CORP.,MATERIALS & ASSETS - CAPITAL,"$130,476 ",3/15/2016
CALAMP WIRELESS NETWORKS CORP.,MATERIALS & ASSETS - CAPITAL,"$30,148 ",3/28/2016
CALAMP WIRELESS NETWORKS CORP.,MATERIALS & ASSETS - CAPITAL,"$217,730 ",4/18/2016
CALAMP WIRELESS NETWORKS CORP.,MATERIALS & ASSETS - CAPITAL,"$401,550 ",4/19/2016
CALAMP WIRELESS NETWORKS CORP.,MATERIALS & ASSETS - CAPITAL,"$86,984 ",6/6/2016
CALAMP WIRELESS NETWORKS CORP.,MATERIALS & ASSETS - CAPITAL,"$401,280 ",6/13/2016
CALAMP WIRELESS NETWORKS CORP.,MATERIALS & ASSETS - CAPITAL,"$488,534 ",7/13/2016
CALAMP WIRELESS NETWORKS CORP.,MATERIALS & ASSETS - CAPITAL,"$295,745.60 ",9/12/2016
CALAMP WIRELESS NETWORKS CORP.,MATERIALS & ASSETS - CAPITAL,"$249,338 ",9/26/2016
CALUMET HARBOR LUMBER & SUPPLYCO.,MATERIALS - CAPITAL,"$16,242 ",10/10/2016
"CALUMET LIFT TRUCK SERVICE CO.,INC.",OUTSIDE SERVICES,"$7,650 ",2/1/2016
"CALUMET LIFT TRUCK SERVICE CO.,INC.",OUTSIDE SERVICES,"$7,650 ",2/25/2016
"CALUMET LIFT TRUCK SERVICE CO.,INC.",OUTSIDE SERVICES,"$7,650 ",6/7/2016
"CALUMET LIFT TRUCK SERVICE CO.,INC.",OUTSIDE SERVICES,"$15,300 ",6/7/2016
"CALUMET LIFT TRUCK SERVICE CO.,INC.",OUTSIDE SERVICES,"$7,650 ",7/5/2016
"CALUMET LIFT TRUCK SERVICE CO.,INC.",OUTSIDE SERVICES,"$7,650 ",7/26/2016
"CALUMET LIFT TRUCK SERVICE CO.,INC.",OUTSIDE SERVICES,"$4,800 ",8/1/2016
"CALUMET LIFT TRUCK SERVICE CO.,INC.",OUTSIDE SERVICES,"$7,650 ",8/29/2016
"CALUMET LIFT TRUCK SERVICE CO.,INC.",OUTSIDE SERVICES,"$7,650 ",10/3/2016
"CALUMET LIFT TRUCK SERVICE CO.,INC.",OUTSIDE SERVICES,"$4,996.57 ",11/3/2016
CALVERT C. PITCHFORD,"EMP EXPENSE REIMB, LOCAL",$39.96 ,3/23/2016
CALVERT C. PITCHFORD,"EMP EXPENSE REIMB, LOCAL",$39.96 ,6/28/2016
CALVERT C. PITCHFORD,"EMP EXPENSE REIMB, LOCAL",$79.92 ,8/17/2016
CALVERT C. PITCHFORD,"EMP EXPENSE REIMB, LOCAL",$62.64 ,9/8/2016
CALVERT C. PITCHFORD,"EMP EXPENSE REIMB, LOCAL",$39.96 ,10/24/2016
CALVIN JACKSON,"EMP EXPENSE REIMB, LOCAL",$42.98 ,5/4/2016
CANADIAN PACIFIC RAILWAY,OUTSIDE SERVICES,"$70,242.30 ",4/12/2016
CANADIAN PACIFIC RAILWAY,MISCELLANEOUS OTHER EXPENSE,"$5,000 ",11/14/2016
CANADIAN PACIFIC RAILWAY,OUTSIDE SERVICES,"$101,426 ",12/20/2016
"CANETE MEDINA CONSULTING GROUP,INC.",PROFESSIONAL SERVICES,"$126,512.51 ",10/17/2016
"CANETE MEDINA CONSULTING GROUP,INC.",PROFESSIONAL SERVICES,"$78,473.59 ",11/7/2016
"CANETE MEDINA CONSULTING GROUP,INC.",PROFESSIONAL SERVICES,"$48,723.55 ",12/19/2016
"CANETE MEDINA CONSULTING GROUP,INC.",PROFESSIONAL SERVICES,"$98,091.98 ",12/27/2016
"CANON SOLUTIONS AMERICA, INC.",OUTSIDE SERVICES,"$2,197.64 ",1/11/2016
"CANON SOLUTIONS AMERICA, INC.",RENTAL EXPENSE,$75.31 ,1/11/2016
"CANON SOLUTIONS AMERICA, INC.",OUTSIDE SERVICES,"$2,229.05 ",2/8/2016
"CANON SOLUTIONS AMERICA, INC.",RENTAL EXPENSE,$75.31 ,2/8/2016
"CANON SOLUTIONS AMERICA, INC.",RENTAL EXPENSE,$75.31 ,3/3/2016
"CANON SOLUTIONS AMERICA, INC.",OUTSIDE SERVICES,"$2,236.81 ",3/7/2016
"CANON SOLUTIONS AMERICA, INC.",RENTAL EXPENSE,$75.31 ,3/7/2016
"CANON SOLUTIONS AMERICA, INC.",OUTSIDE SERVICES,"$2,246.75 ",3/29/2016
"CANON SOLUTIONS AMERICA, INC.",RENTAL EXPENSE,$75.31 ,3/29/2016
"CANON SOLUTIONS AMERICA, INC.",OUTSIDE SERVICES,"$2,212.48 ",4/27/2016
"CANON SOLUTIONS AMERICA, INC.",RENTAL EXPENSE,$75.31 ,4/27/2016
"CANON SOLUTIONS AMERICA, INC.",OUTSIDE SERVICES,"$2,159.44 ",6/1/2016
"CANON SOLUTIONS AMERICA, INC.",RENTAL EXPENSE,$75.31 ,6/1/2016
"CANON SOLUTIONS AMERICA, INC.",OUTSIDE SERVICES,"$2,255.20 ",6/27/2016
"CANON SOLUTIONS AMERICA, INC.",RENTAL EXPENSE,$75.31 ,6/27/2016
"CANON SOLUTIONS AMERICA, INC.",OUTSIDE SERVICES,"$2,239.63 ",7/27/2016
"CANON SOLUTIONS AMERICA, INC.",RENTAL EXPENSE,$75.31 ,7/27/2016
"CANON SOLUTIONS AMERICA, INC.",OUTSIDE SERVICES,"$2,179.11 ",8/29/2016
"CANON SOLUTIONS AMERICA, INC.",RENTAL EXPENSE,$75.31 ,8/29/2016
"CANON SOLUTIONS AMERICA, INC.",OUTSIDE SERVICES,"$2,209.98 ",10/3/2016
"CANON SOLUTIONS AMERICA, INC.",RENTAL EXPENSE,$75.31 ,10/3/2016
"CANON SOLUTIONS AMERICA, INC.",OUTSIDE SERVICES,"$2,187.98 ",11/3/2016
"CANON SOLUTIONS AMERICA, INC.",RENTAL EXPENSE,$75.31 ,11/3/2016
"CANON SOLUTIONS AMERICA, INC.",RENTAL EXPENSE,"$2,243.76 ",12/12/2016
CAPRICORN COMMUNICATIONS,PROFESSIONAL SERVICES,"$20,000 ",1/21/2016
CAPRICORN COMMUNICATIONS,PROFESSIONAL SERVICES,"$5,000 ",3/4/2016
CAPRICORN COMMUNICATIONS,PROFESSIONAL SERVICES,"$10,000 ",4/15/2016
CAPRICORN COMMUNICATIONS,PROFESSIONAL SERVICES,"$5,000 ",6/16/2016
CAPRICORN COMMUNICATIONS,PROFESSIONAL SERVICES,"$10,000 ",8/12/2016
CAPRICORN COMMUNICATIONS,PROFESSIONAL SERVICES,"$5,000 ",9/9/2016
CAPRICORN COMMUNICATIONS,PROFESSIONAL SERVICES,"$5,000 ",9/14/2016
CAPRICORN COMMUNICATIONS,PROFESSIONAL SERVICES,"$5,000 ",11/18/2016
CAPRICORN COMMUNICATIONS,PROFESSIONAL SERVICES,"$5,000 ",12/9/2016
CARDIAC SCIENCE CORP.,OUTSIDE SERVICES,"$17,888 ",3/7/2016
CARDIAC SCIENCE CORP.,OUTSIDE SERVICES,"$16,640 ",3/21/2016
CARDIAC SCIENCE CORP.,OUTSIDE SERVICES,"$41,625 ",9/1/2016
CARDIAC SCIENCE CORP.,OUTSIDE SERVICES,"$82,038 ",10/12/2016
CARDIAC SCIENCE CORP.,MISCELLANEOUS OTHER EXPENSE,"$1,664 ",12/27/2016
CARDINAL COLORPRINT,MISCELLANEOUS OTHER EXPENSE,"$1,822.85 ",1/11/2016
CARDINAL COLORPRINT,OUTSIDE SERVICES - CAPITAL,"$4,357.59 ",1/13/2016
CARDINAL COLORPRINT,OUTSIDE SERVICES,"$13,999.80 ",2/17/2016
CARDINAL COLORPRINT,OUTSIDE SERVICES,"$7,016.25 ",2/22/2016
CARDINAL COLORPRINT,OUTSIDE SERVICES - CAPITAL,"$4,307.59 ",3/16/2016
CARDINAL COLORPRINT,OUTSIDE SERVICES - CAPITAL,"$2,468.75 ",4/4/2016
CARDINAL COLORPRINT,OUTSIDE SERVICES,"$1,561.50 ",4/4/2016
CARDINAL COLORPRINT,OUTSIDE SERVICES,"$10,106 ",5/2/2016
CARDINAL COLORPRINT,OUTSIDE SERVICES,$798.25 ,5/12/2016
CARDINAL COLORPRINT,OUTSIDE SERVICES,"$2,248.75 ",5/23/2016
CARDINAL COLORPRINT,OUTSIDE SERVICES,"$4,366.50 ",5/31/2016
CARDINAL COLORPRINT,OUTSIDE SERVICES,"$1,110 ",6/1/2016
CARDINAL COLORPRINT,OUTSIDE SERVICES,"$5,888.55 ",6/27/2016
CARDINAL COLORPRINT,OUTSIDE SERVICES,"$1,509 ",8/4/2016
CARDINAL COLORPRINT,OUTSIDE SERVICES - CAPITAL,"$5,377.59 ",8/22/2016
CARDINAL COLORPRINT,OUTSIDE SERVICES,"$3,510.50 ",8/24/2016
CARDINAL COLORPRINT,OUTSIDE SERVICES - CAPITAL,"$2,268.75 ",9/6/2016
CARDINAL COLORPRINT,OUTSIDE SERVICES,"$12,132 ",9/6/2016
CARDINAL COLORPRINT,MISCELLANEOUS OTHER EXPENSE,"$10,474.80 ",9/6/2016
CARDINAL COLORPRINT,OUTSIDE SERVICES,"$3,879.63 ",9/26/2016
CARDINAL COLORPRINT,OUTSIDE SERVICES,"$6,958.20 ",10/24/2016
CARDINAL COLORPRINT,MISCELLANEOUS OTHER EXPENSE,"$1,158.75 ",10/31/2016
CARDINAL COLORPRINT,OUTSIDE SERVICES,"$11,244.84 ",11/9/2016
CARDINAL COLORPRINT,OUTSIDE SERVICES,"$1,674.75 ",12/13/2016
CARL ANDERSON,"EMP EXPENSE REIMB, LOCAL",$301.94 ,4/21/2016
CARL MIEHLKE JR.,"EMP EXPENSE REIMB, LOCAL",$87.40 ,1/25/2016
CARL MIEHLKE JR.,"EMP EXPENSE REIMB, LOCAL",$97.20 ,2/23/2016
CARL MIEHLKE JR.,"EMP EXPENSE REIMB, LOCAL",$60.22 ,4/20/2016
CARL MIEHLKE JR.,"EMP EXPENSE REIMB, LOCAL",$106.22 ,6/29/2016
CARL MIEHLKE JR.,"EMP EXPENSE REIMB, LOCAL",$332.64 ,7/19/2016
CARL MIEHLKE JR.,"EMP EXPENSE REIMB, LOCAL",$131.76 ,10/5/2016
CARL MIEHLKE JR.,"EMP EXPENSE REIMB, LOCAL",$104.76 ,12/5/2016
CARLOS A. DEL TORO,"EMP EXPENSE REIMB, LOCAL",$63.25 ,1/5/2016
CARLOS A. DEL TORO,"EMP EXPENSE REIMB, LOCAL",$60.95 ,1/25/2016
CARLOS A. DEL TORO,"EMP EXPENSE REIMB, LOCAL",$30.24 ,3/2/2016
CARLOS A. DEL TORO,"EMP EXPENSE REIMB, LOCAL",$12.96 ,3/30/2016
CARLOS A. DEL TORO,"EMP EXPENSE REIMB, LOCAL",$21.60 ,5/3/2016
CARLOS A. DEL TORO,"EMP EXPENSE REIMB, LOCAL",$66.96 ,5/31/2016
CARLOS DEGANTE,METRA SPONSORED EVENT,$51.75 ,8/25/2016
CARLOS LAZARO,"EMP EXPENSE REIMB, LOCAL",$113.45 ,7/5/2016
CARLOS PRECIADO,"EMP EXPENSE REIMB, LOCAL",$39.96 ,6/7/2016
CARLOS PRECIADO,"EMP EXPENSE REIMB, LOCAL",$39.96 ,6/28/2016
CARLOS ROJAS,"EMP EXPENSE REIMB, LOCAL",$11.88 ,8/1/2016
CARLOS ROJAS,"EMP EXPENSE REIMB, LOCAL",$126.07 ,8/29/2016
CARLOS ROSS,"EMP EXPENSE REIMB, OUT OF TOWN",$83.84 ,12/19/2016
"CARNOW, CONIBEAR & ASSOC., LTD.",PROFESSIONAL SERVICES,"$7,215.81 ",2/4/2016
"CARNOW, CONIBEAR & ASSOC., LTD.",PROFESSIONAL SERVICES,"$5,413.61 ",2/8/2016
"CARNOW, CONIBEAR & ASSOC., LTD.",PROFESSIONAL SERVICES,"$6,700.43 ",3/1/2016
"CARNOW, CONIBEAR & ASSOC., LTD.",PROFESSIONAL SERVICES,"$15,217.47 ",3/23/2016
"CARNOW, CONIBEAR & ASSOC., LTD.",PROFESSIONAL SERVICES,"$1,354.62 ",4/4/2016
"CARNOW, CONIBEAR & ASSOC., LTD.",PROFESSIONAL SERVICES,"$2,117.17 ",4/5/2016
"CARNOW, CONIBEAR & ASSOC., LTD.",PROFESSIONAL SERVICES,"$2,760.89 ",5/9/2016
"CARNOW, CONIBEAR & ASSOC., LTD.",PROFESSIONAL SERVICES,"$6,835.81 ",6/20/2016
"CARNOW, CONIBEAR & ASSOC., LTD.",PROFESSIONAL SERVICES,"$1,478.27 ",7/5/2016
"CARNOW, CONIBEAR & ASSOC., LTD.",PROFESSIONAL SERVICES,"$3,135.94 ",8/22/2016
"CARNOW, CONIBEAR & ASSOC., LTD.",PROFESSIONAL SERVICES,"$2,689.10 ",9/6/2016
"CARNOW, CONIBEAR & ASSOC., LTD.",OUTSIDE SERVICES,"$1,380.80 ",10/3/2016
"CARNOW, CONIBEAR & ASSOC., LTD.",PROFESSIONAL SERVICES,$969.54 ,10/18/2016
"CARNOW, CONIBEAR & ASSOC., LTD.",PROFESSIONAL SERVICES,$937.92 ,10/24/2016
"CARNOW, CONIBEAR & ASSOC., LTD.",PROFESSIONAL SERVICES,$49.50 ,11/15/2016
"CARNOW, CONIBEAR & ASSOC., LTD.",PROFESSIONAL SERVICES,$724.76 ,11/28/2016
CAROL ANN MARKETING,MISCELLANEOUS OTHER EXPENSE,$58.80 ,1/25/2016
CAROL ANN MARKETING,MISCELLANEOUS OTHER EXPENSE,$38.85 ,6/6/2016
CAROL ANN MARKETING,MISCELLANEOUS OTHER EXPENSE,$232.32 ,11/2/2016
CAROLYN R. KING,"EMP EXPENSE REIMB, LOCAL",$170.20 ,2/2/2016
CAROLYN R. KING,"EMP EXPENSE REIMB, LOCAL",$199.80 ,2/24/2016
CAROLYN R. KING,"EMP EXPENSE REIMB, LOCAL",$119.88 ,3/24/2016
CAROLYN R. KING,"EMP EXPENSE REIMB, LOCAL",$79.92 ,4/20/2016
CAROLYN R. KING,"EMP EXPENSE REIMB, LOCAL",$199.80 ,5/26/2016
CAROLYN R. KING,"EMP EXPENSE REIMB, LOCAL",$119.88 ,6/14/2016
CAROLYN R. KING,"EMP EXPENSE REIMB, LOCAL",$119.88 ,8/2/2016
CAROLYN R. KING,"EMP EXPENSE REIMB, LOCAL",$79.92 ,9/12/2016
CASIMIR J SIERONSKI,"EMP EXPENSE REIMB, LOCAL",$149 ,1/6/2016
CASIMIR J SIERONSKI,"EMP EXPENSE REIMB, LOCAL",$21 ,1/25/2016
CASIMIR J SIERONSKI,"EMP EXPENSE REIMB, LOCAL",$105 ,2/17/2016
CASIMIR J SIERONSKI,"EMP EXPENSE REIMB, LOCAL",$105 ,2/23/2016
CASIMIR J SIERONSKI,"EMP EXPENSE REIMB, LOCAL",$164 ,3/3/2016
CASIMIR J SIERONSKI,"EMP EXPENSE REIMB, LOCAL",$142 ,3/31/2016
CASIMIR J SIERONSKI,"EMP EXPENSE REIMB, LOCAL",$140 ,4/11/2016
CASIMIR J SIERONSKI,"EMP EXPENSE REIMB, OUT OF TOWN",$226 ,4/14/2016
CASIMIR J SIERONSKI,"EMP EXPENSE REIMB, OUT OF TOWN",$121 ,5/9/2016
CASIMIR J SIERONSKI,"EMP EXPENSE REIMB, LOCAL",$82 ,6/21/2016
CASIMIR J SIERONSKI,"EMP EXPENSE REIMB, LOCAL",$105 ,6/28/2016
CASIMIR J SIERONSKI,"EMP EXPENSE REIMB, OUT OF TOWN",$63 ,7/6/2016
CASIMIR J SIERONSKI,"EMP EXPENSE REIMB, OUT OF TOWN",$84 ,7/26/2016
CASIMIR J SIERONSKI,"EMP EXPENSE REIMB, OUT OF TOWN",$226 ,8/29/2016
CASIMIR J SIERONSKI,"EMP EXPENSE REIMB, LOCAL",$122 ,9/6/2016
CASIMIR J SIERONSKI,"EMP EXPENSE REIMB, LOCAL",$84 ,9/28/2016
CASIMIR J SIERONSKI,"EMP EXPENSE REIMB, LOCAL",$105 ,10/3/2016
CASIMIR J SIERONSKI,"EMP EXPENSE REIMB, LOCAL",$84 ,10/24/2016
CASIMIR J SIERONSKI,"EMP EXPENSE REIMB, LOCAL",$100 ,11/7/2016
CASIMIR J SIERONSKI,"EMP EXPENSE REIMB, LOCAL",$147 ,12/5/2016
CASIMIR J SIERONSKI,"EMP EXPENSE REIMB, LOCAL",$168 ,12/6/2016
CAVALRY FIRE PROTECTION SERVICES,OUTSIDE SERVICES,$557 ,1/25/2016
CAVALRY FIRE PROTECTION SERVICES,MATERIALS - NON-INVENTORY,"$1,074 ",2/24/2016
CAVALRY FIRE PROTECTION SERVICES,OUTSIDE SERVICES,"$3,078 ",2/25/2016
CAVALRY FIRE PROTECTION SERVICES,OUTSIDE SERVICES,$544 ,2/29/2016
CAVALRY FIRE PROTECTION SERVICES,OUTSIDE SERVICES,$288 ,2/29/2016
CAVALRY FIRE PROTECTION SERVICES,OUTSIDE SERVICES,$176 ,2/29/2016
CAVALRY FIRE PROTECTION SERVICES,OUTSIDE SERVICES,$71 ,3/3/2016
CAVALRY FIRE PROTECTION SERVICES,OUTSIDE SERVICES,$244.50 ,4/4/2016
CAVALRY FIRE PROTECTION SERVICES,OUTSIDE SERVICES,"$1,003 ",4/4/2016
CAVALRY FIRE PROTECTION SERVICES,OUTSIDE SERVICES,$96 ,4/4/2016
CAVALRY FIRE PROTECTION SERVICES,OUTSIDE SERVICES,"$3,194 ",4/12/2016
CAVALRY FIRE PROTECTION SERVICES,OUTSIDE SERVICES,$519 ,4/14/2016
CAVALRY FIRE PROTECTION SERVICES,OUTSIDE SERVICES,$104 ,5/2/2016
CAVALRY FIRE PROTECTION SERVICES,OUTSIDE SERVICES,$562.50 ,5/11/2016
CAVALRY FIRE PROTECTION SERVICES,OUTSIDE SERVICES,$35 ,6/9/2016
CAVALRY FIRE PROTECTION SERVICES,OUTSIDE SERVICES,$75 ,6/9/2016
CAVALRY FIRE PROTECTION SERVICES,OUTSIDE SERVICES,"$3,056.50 ",6/30/2016
CAVALRY FIRE PROTECTION SERVICES,OUTSIDE SERVICES,$262 ,6/30/2016
CAVALRY FIRE PROTECTION SERVICES,OUTSIDE SERVICES,$437 ,7/25/2016
CAVALRY FIRE PROTECTION SERVICES,OUTSIDE SERVICES,$154 ,7/25/2016
CAVALRY FIRE PROTECTION SERVICES,OUTSIDE SERVICES,$301 ,8/9/2016
CAVALRY FIRE PROTECTION SERVICES,OUTSIDE SERVICES,$586 ,8/12/2016
CAVALRY FIRE PROTECTION SERVICES,OUTSIDE SERVICES,$53 ,8/12/2016
CAVALRY FIRE PROTECTION SERVICES,OUTSIDE SERVICES,$151 ,8/24/2016
CAVALRY FIRE PROTECTION SERVICES,OUTSIDE SERVICES,$454 ,8/24/2016
CAVALRY FIRE PROTECTION SERVICES,OUTSIDE SERVICES,$575 ,8/29/2016
CAVALRY FIRE PROTECTION SERVICES,OUTSIDE SERVICES,$609.50 ,9/19/2016
CAVALRY FIRE PROTECTION SERVICES,OUTSIDE SERVICES,$267 ,9/19/2016
CAVALRY FIRE PROTECTION SERVICES,OUTSIDE SERVICES,$78 ,9/19/2016
CAVALRY FIRE PROTECTION SERVICES,OUTSIDE SERVICES,$586 ,10/3/2016
CAVALRY FIRE PROTECTION SERVICES,OUTSIDE SERVICES,$53 ,10/3/2016
CAVALRY FIRE PROTECTION SERVICES,OUTSIDE SERVICES,$298 ,10/31/2016
CAVALRY FIRE PROTECTION SERVICES,OUTSIDE SERVICES,$491 ,10/31/2016
CAVALRY FIRE PROTECTION SERVICES,OUTSIDE SERVICES,$749 ,11/2/2016
CAVALRY FIRE PROTECTION SERVICES,OUTSIDE SERVICES,$452 ,11/2/2016
CAVALRY FIRE PROTECTION SERVICES,OUTSIDE SERVICES,"$1,094.50 ",11/15/2016
CAVALRY FIRE PROTECTION SERVICES,OUTSIDE SERVICES,$846 ,12/7/2016
CAVALRY FIRE PROTECTION SERVICES,MATERIALS - NON-INVENTORY,"$1,232 ",12/12/2016
CAVALRY FIRE PROTECTION SERVICES,OUTSIDE SERVICES,"$1,407 ",12/12/2016
CAVALRY FIRE PROTECTION SERVICES,OUTSIDE SERVICES,$613 ,12/12/2016
CAVALRY FIRE PROTECTION SERVICES,OUTSIDE SERVICES,"$2,116 ",12/14/2016
CAVALRY FIRE PROTECTION SERVICES,OUTSIDE SERVICES,"$1,700 ",12/14/2016
CAVALRY FIRE PROTECTION SERVICES,OUTSIDE SERVICES,"$3,405 ",12/15/2016
CAVALRY FIRE PROTECTION SERVICES,OUTSIDE SERVICES,$749.50 ,12/19/2016
CBT NUGGETS LLC,RENTAL EXPENSE,"$4,474.56 ",12/12/2016
CDECI,OUTSIDE SERVICES,"$53,554.85 ",1/12/2016
CDECI,OUTSIDE SERVICES,"$41,794.32 ",2/3/2016
CDECI,OUTSIDE SERVICES,"$13,900.05 ",2/11/2016
CDECI,OUTSIDE SERVICES,"$21,940.26 ",3/16/2016
CDECI,OUTSIDE SERVICES,"$5,423.20 ",3/31/2016
CDECI,OUTSIDE SERVICES,"$17,797.36 ",4/20/2016
CDECI,OUTSIDE SERVICES,"$14,673.31 ",5/16/2016
CDECI,OUTSIDE SERVICES,"$17,868.59 ",5/24/2016
CDECI,OUTSIDE SERVICES,"$33,769.34 ",8/1/2016
CDECI,OUTSIDE SERVICES,"$13,154.11 ",8/8/2016
CDECI,OUTSIDE SERVICES,"$16,017.67 ",8/22/2016
CDECI,MATERIALS - NON-INVENTORY,"$3,717.02 ",9/1/2016
CDECI,OUTSIDE SERVICES,"$18,924 ",9/1/2016
CDECI,MATERIALS - NON-INVENTORY,"$8,435.18 ",10/18/2016
CDECI,OUTSIDE SERVICES,"$36,520 ",10/18/2016
CDECI,MATERIALS - NON-INVENTORY,"$5,483.73 ",11/28/2016
CDECI,OUTSIDE SERVICES,"$28,928 ",11/28/2016
CDECI,MATERIALS - NON-INVENTORY,"$3,116.58 ",12/19/2016
CDECI,OUTSIDE SERVICES,"$13,280 ",12/19/2016
"CDM SMITH, INC.",ENGINEERING & DESIGN,"$4,975.65 ",1/19/2016
"CDM SMITH, INC.",ENGINEERING & DESIGN,"$41,631.57 ",8/11/2016
"CDM SMITH, INC.",ENGINEERING & DESIGN,"$12,174.51 ",8/22/2016
"CDM SMITH, INC.",ENGINEERING & DESIGN,"$9,882.46 ",8/29/2016
"CDW GOVERNMENT, INC.****0004518502",MATERIALS & ASSETS - CAPITAL,"$3,016.96 ",8/4/2016
"CDW GOVERNMENT, LLC",MISCELLANEOUS OTHER EXPENSE,"$3,856.17 ",1/11/2016
"CDW GOVERNMENT, LLC",MATERIALS & ASSETS - CAPITAL,"$3,343.92 ",1/12/2016
"CDW GOVERNMENT, LLC",MISCELLANEOUS OTHER EXPENSE,"$19,815.47 ",1/25/2016
"CDW GOVERNMENT, LLC",MATERIALS - NON-INVENTORY,"$1,631.27 ",2/4/2016
"CDW GOVERNMENT, LLC",MATERIALS - NON-INVENTORY,$107.50 ,2/17/2016
"CDW GOVERNMENT, LLC",MATERIALS & ASSETS - CAPITAL,"$228,810 ",2/29/2016
"CDW GOVERNMENT, LLC",MISCELLANEOUS OTHER EXPENSE,"$1,071.17 ",3/3/2016
"CDW GOVERNMENT, LLC",MISCELLANEOUS OTHER EXPENSE,$498.96 ,3/10/2016
"CDW GOVERNMENT, LLC",MATERIALS - NON-INVENTORY,$221.37 ,4/5/2016
"CDW GOVERNMENT, LLC",MISCELLANEOUS OTHER EXPENSE,"$13,840.43 ",4/5/2016
"CDW GOVERNMENT, LLC",MISCELLANEOUS OTHER EXPENSE,"$3,925.22 ",4/18/2016
"CDW GOVERNMENT, LLC",MATERIALS & ASSETS - CAPITAL,"$44,448.20 ",4/18/2016
"CDW GOVERNMENT, LLC",MATERIALS & ASSETS - CAPITAL,"$16,040 ",4/26/2016
"CDW GOVERNMENT, LLC",MATERIALS & ASSETS - CAPITAL,$824.13 ,5/12/2016
"CDW GOVERNMENT, LLC",MATERIALS & ASSETS - CAPITAL,"$40,100 ",6/9/2016
"CDW GOVERNMENT, LLC",OUTSIDE SERVICES,"$11,298.89 ",6/20/2016
"CDW GOVERNMENT, LLC",MISCELLANEOUS OTHER EXPENSE,"$5,490.69 ",6/27/2016
"CDW GOVERNMENT, LLC",MISCELLANEOUS OTHER EXPENSE,"$5,934.46 ",6/27/2016
"CDW GOVERNMENT, LLC",MATERIALS & ASSETS - CAPITAL,"$52,882.56 ",7/18/2016
"CDW GOVERNMENT, LLC",MISCELLANEOUS OTHER EXPENSE,$56.41 ,8/16/2016
"CDW GOVERNMENT, LLC",MATERIALS - NON-INVENTORY,$74.84 ,8/22/2016
"CDW GOVERNMENT, LLC",MISCELLANEOUS OTHER EXPENSE,"$50,515 ",8/29/2016
"CDW GOVERNMENT, LLC",MATERIALS & ASSETS - CAPITAL,"$36,090 ",9/7/2016
"CDW GOVERNMENT, LLC",MATERIALS & ASSETS - CAPITAL,"$3,016.96 ",9/14/2016
"CDW GOVERNMENT, LLC",MISCELLANEOUS OTHER EXPENSE,"$14,076.62 ",9/26/2016
"CDW GOVERNMENT, LLC",MATERIALS - NON-INVENTORY,"$11,652.80 ",10/4/2016
"CDW GOVERNMENT, LLC",MISCELLANEOUS OTHER EXPENSE,"$1,974.75 ",11/2/2016
"CDW GOVERNMENT, LLC",MATERIALS & ASSETS - CAPITAL,"$14,806.10 ",11/22/2016
"CDW GOVERNMENT, LLC",MISCELLANEOUS OTHER EXPENSE,"$571,486.30 ",11/29/2016
"CDW GOVERNMENT, LLC",MISCELLANEOUS OTHER EXPENSE,"$27,514.76 ",12/7/2016
"CDW GOVERNMENT, LLC",MATERIALS & ASSETS - CAPITAL,"$372,844.27 ",12/12/2016
"CDW GOVERNMENT, LLC",MISCELLANEOUS OTHER EXPENSE,"$650,178.46 ",12/19/2016
CEDRIC GARRETT,"EMP EXPENSE REIMB, LOCAL",$45.36 ,2/24/2016
CEDRIC GARRETT,"EMP EXPENSE REIMB, LOCAL",$90.72 ,4/18/2016
CEDRIC GARRETT,"EMP EXPENSE REIMB, LOCAL",$45.36 ,5/5/2016
CEDRIC GARRETT,"EMP EXPENSE REIMB, LOCAL",$90.72 ,5/31/2016
CEDRIC L SMITH,"EMP EXPENSE REIMB, LOCAL",$136.08 ,2/24/2016
CEDRIC L SMITH,"EMP EXPENSE REIMB, LOCAL",$97.20 ,3/24/2016
CEDRIC L SMITH,"EMP EXPENSE REIMB, LOCAL",$162.43 ,5/31/2016
CEDRIC L SMITH,"EMP EXPENSE REIMB, LOCAL",$145.80 ,6/27/2016
CEDRIC L SMITH,"EMP EXPENSE REIMB, LOCAL",$176.47 ,7/21/2016
CELERITAS V. GREEN,"EMP EXPENSE REIMB, OUT OF TOWN",$400.36 ,7/7/2016
CENTER FOR EDUCUCATION & EMPLOYMENT,MISCELLANEOUS OTHER EXPENSE,$254.95 ,10/4/2016
CENTER FOR PUBLIC SAFETY,MISCELLANEOUS OTHER EXPENSE,$80 ,10/13/2016
CENTRAL SALES & SERVICE INC.,MATERIALS - INVENTORY,$221.48 ,1/4/2016
CENTRAL SALES & SERVICE INC.,MATERIALS - INVENTORY,$118.56 ,1/25/2016
CENTRAL SALES & SERVICE INC.,MATERIALS - INVENTORY,$435.34 ,2/22/2016
CENTRAL SALES & SERVICE INC.,MATERIALS & ASSETS - CAPITAL,"$39,850.80 ",3/21/2016
CENTRAL SALES & SERVICE INC.,MATERIALS - INVENTORY,$516.60 ,3/24/2016
CENTRAL SALES & SERVICE INC.,MATERIALS - INVENTORY,$390.32 ,4/18/2016
CENTRAL SALES & SERVICE INC.,MATERIALS - INVENTORY,$397.50 ,4/28/2016
CENTRAL SALES & SERVICE INC.,MATERIALS - INVENTORY,$371 ,5/10/2016
CENTRAL SALES & SERVICE INC.,MATERIALS - INVENTORY,$528.08 ,6/1/2016
CENTRAL SALES & SERVICE INC.,MATERIALS - INVENTORY,$118.56 ,6/2/2016
CENTRAL SALES & SERVICE INC.,MATERIALS & ASSETS - CAPITAL,"$51,806.04 ",6/7/2016
CENTRAL SALES & SERVICE INC.,MATERIALS - INVENTORY,$931.56 ,6/20/2016
CENTRAL SALES & SERVICE INC.,MATERIALS - INVENTORY,$673.68 ,7/25/2016
CENTRAL SALES & SERVICE INC.,MATERIALS - INVENTORY,$371 ,9/6/2016
CENTRAL SALES & SERVICE INC.,MATERIALS - INVENTORY,$265 ,10/18/2016
CENTRAL SALES & SERVICE INC.,MATERIALS - INVENTORY,"$1,622.10 ",11/14/2016
CENTURY CONTRACTORS INC.,OUTSIDE SERVICES,"$28,550 ",1/11/2016
CENTURY CONTRACTORS INC.,OUTSIDE SERVICES - CAPITAL,"$2,925 ",2/2/2016
CENTURY CONTRACTORS INC.,MATERIALS - NON-INVENTORY,"$1,350 ",2/2/2016
CENTURY CONTRACTORS INC.,OUTSIDE SERVICES,"$4,615 ",2/4/2016
CENTURY CONTRACTORS INC.,OUTSIDE SERVICES,"$18,850 ",2/4/2016
CENTURY CONTRACTORS INC.,RENTAL EXPENSE,"$6,800 ",3/7/2016
CENTURY CONTRACTORS INC.,MATERIALS - NON-INVENTORY,"$6,800 ",3/23/2016
CENTURY CONTRACTORS INC.,MATERIALS - NON-INVENTORY,$540 ,4/14/2016
CENTURY CONTRACTORS INC.,RENTAL EXPENSE,"$6,800 ",4/18/2016
CENTURY CONTRACTORS INC.,OUTSIDE SERVICES - CAPITAL,"$10,752.50 ",5/3/2016
"CERTIFIED FLEET SERVICES, INC.",OUTSIDE SERVICES,"$5,563.56 ",1/14/2016
"CERTIFIED FLEET SERVICES, INC.",MISCELLANEOUS OTHER EXPENSE,$800 ,1/14/2016
"CERTIFIED FLEET SERVICES, INC.",OUTSIDE SERVICES,"$4,567.91 ",3/14/2016
"CERTIFIED FLEET SERVICES, INC.",OUTSIDE SERVICES,"$4,836.05 ",3/21/2016
"CERTIFIED FLEET SERVICES, INC.",MISCELLANEOUS OTHER EXPENSE,$45 ,3/21/2016
"CERTIFIED FLEET SERVICES, INC.",MISCELLANEOUS OTHER EXPENSE,$400 ,3/21/2016
"CERTIFIED FLEET SERVICES, INC.",OUTSIDE SERVICES,"$14,709.64 ",5/9/2016
"CERTIFIED FLEET SERVICES, INC.",MISCELLANEOUS OTHER EXPENSE,$115.70 ,5/9/2016
"CERTIFIED FLEET SERVICES, INC.",MISCELLANEOUS OTHER EXPENSE,$400 ,5/9/2016
"CERTIFIED FLEET SERVICES, INC.",OUTSIDE SERVICES,"$10,713.88 ",6/15/2016
"CERTIFIED FLEET SERVICES, INC.",MISCELLANEOUS OTHER EXPENSE,$89.11 ,6/15/2016
"CERTIFIED FLEET SERVICES, INC.",MISCELLANEOUS OTHER EXPENSE,"$2,772.90 ",6/15/2016
"CERTIFIED FLEET SERVICES, INC.",OUTSIDE SERVICES,"$9,333.01 ",7/12/2016
"CERTIFIED FLEET SERVICES, INC.",MISCELLANEOUS OTHER EXPENSE,$28 ,7/12/2016
"CERTIFIED FLEET SERVICES, INC.",MISCELLANEOUS OTHER EXPENSE,$800 ,7/12/2016
"CERTIFIED FLEET SERVICES, INC.",OUTSIDE SERVICES,"$1,171.27 ",7/18/2016
"CERTIFIED FLEET SERVICES, INC.",OUTSIDE SERVICES,$896.94 ,7/25/2016
"CERTIFIED FLEET SERVICES, INC.",MISCELLANEOUS OTHER EXPENSE,$10.25 ,7/25/2016
"CERTIFIED FLEET SERVICES, INC.",OUTSIDE SERVICES,$807.50 ,8/9/2016
"CERTIFIED FLEET SERVICES, INC.",OUTSIDE SERVICES,$150 ,10/26/2016
"CERTIFIED FLEET SERVICES, INC.",MISCELLANEOUS OTHER EXPENSE,$475 ,10/26/2016
"CERTIFIED FLEET SERVICES, INC.",OUTSIDE SERVICES,"$5,363.42 ",11/9/2016
"CERTIFIED FLEET SERVICES, INC.",MISCELLANEOUS OTHER EXPENSE,$22.77 ,11/9/2016
"CERTIFIED FLEET SERVICES, INC.",MISCELLANEOUS OTHER EXPENSE,$400 ,11/9/2016
"CERTIFIED FLEET SERVICES, INC.",OUTSIDE SERVICES,"$3,962.30 ",11/10/2016
"CERTIFIED FLEET SERVICES, INC.",MISCELLANEOUS OTHER EXPENSE,$400 ,11/10/2016
"CERTIFIED FLEET SERVICES, INC.",OUTSIDE SERVICES,"$3,320.41 ",11/21/2016
"CERTIFIED FLEET SERVICES, INC.",MISCELLANEOUS OTHER EXPENSE,$400 ,11/21/2016
"CERTIFIED FLEET SERVICES, INC.",MISCELLANEOUS OTHER EXPENSE,$400 ,12/5/2016
"CERTIFIED FLEET SERVICES, INC.",OUTSIDE SERVICES,"$14,582.91 ",12/12/2016
"CERTIFIED FLEET SERVICES, INC.",MISCELLANEOUS OTHER EXPENSE,$475 ,12/12/2016
"CERTIFIED FLEET SERVICES, INC.",OUTSIDE SERVICES,"$1,979.89 ",12/19/2016
CERTIFIED LANGUAGES INTERNATIONAL,MISCELLANEOUS OTHER EXPENSE,$24.30 ,5/16/2016
CERTIFIED LANGUAGES INTERNATIONAL,MISCELLANEOUS OTHER EXPENSE,$1.80 ,6/6/2016
CERTIFIED LANGUAGES INTERNATIONAL,MISCELLANEOUS OTHER EXPENSE,$31.50 ,7/18/2016
CERTIFIED LANGUAGES INTERNATIONAL,MISCELLANEOUS OTHER EXPENSE,$9 ,9/15/2016
CERTIFIED LANGUAGES INTERNATIONAL,MISCELLANEOUS OTHER EXPENSE,$144.54 ,9/28/2016
CERTIFIED LANGUAGES INTERNATIONAL,MISCELLANEOUS OTHER EXPENSE,$4.50 ,10/24/2016
CERTIFIED LANGUAGES INTERNATIONAL,MISCELLANEOUS OTHER EXPENSE,$37.80 ,11/2/2016
"CHAMBERS, CONLON & HARTWELL, LLC",PROFESSIONAL SERVICES,"$49,399.07 ",1/21/2016
"CHAMBERS, CONLON & HARTWELL, LLC",PROFESSIONAL SERVICES,"$48,817.76 ",3/4/2016
"CHAMBERS, CONLON & HARTWELL, LLC",PROFESSIONAL SERVICES,"$24,508.94 ",4/15/2016
"CHAMBERS, CONLON & HARTWELL, LLC",PROFESSIONAL SERVICES,"$24,265.07 ",6/16/2016
"CHAMBERS, CONLON & HARTWELL, LLC",PROFESSIONAL SERVICES,"$48,649.72 ",8/12/2016
"CHAMBERS, CONLON & HARTWELL, LLC",PROFESSIONAL SERVICES,"$73,141.93 ",9/9/2016
"CHAMBERS, CONLON & HARTWELL, LLC",PROFESSIONAL SERVICES,"$75,069.92 ",12/9/2016
CHARLES J. HARRISON,"EMP EXPENSE REIMB, LOCAL",$199 ,9/14/2016
CHARLIE'S AUTOBODY REPAIR SHOP,OUTSIDE SERVICES,$319 ,1/4/2016
CHARLIE'S AUTOBODY REPAIR SHOP,OUTSIDE SERVICES,$874 ,1/13/2016
CHARLIE'S AUTOBODY REPAIR SHOP,OUTSIDE SERVICES,$308 ,1/19/2016
CHARLIE'S AUTOBODY REPAIR SHOP,OUTSIDE SERVICES,"$1,861.96 ",1/25/2016
CHARLIE'S AUTOBODY REPAIR SHOP,OUTSIDE SERVICES,$181.50 ,2/8/2016
CHARLIE'S AUTOBODY REPAIR SHOP,OUTSIDE SERVICES,$319 ,3/14/2016
CHARLIE'S AUTOBODY REPAIR SHOP,OUTSIDE SERVICES,$462.81 ,6/15/2016
CHAS A ARCE,"EMP EXPENSE REIMB, LOCAL",$252.43 ,2/4/2016
CHAS A ARCE,"EMP EXPENSE REIMB, LOCAL",$187.92 ,3/1/2016
CHAS A ARCE,"EMP EXPENSE REIMB, LOCAL",$170.64 ,4/12/2016
CHAS A ARCE,"EMP EXPENSE REIMB, LOCAL",$104.76 ,8/23/2016
CHAS A ARCE,"EMP EXPENSE REIMB, LOCAL",$330.48 ,9/15/2016
CHAS A ARCE,"EMP EXPENSE REIMB, LOCAL",$167.40 ,12/28/2016
"CHEM & CONSULT, INC.",MATERIALS - INVENTORY,"$1,509.20 ",9/19/2016
"CHEM & CONSULT, INC.",MATERIALS - INVENTORY,"$1,509.20 ",11/2/2016
"CHEM & CONSULT, INC.",MATERIALS - INVENTORY,"$1,131.90 ",12/1/2016
"CHEM & CONSULT, INC.",MATERIALS - INVENTORY,"$1,131.90 ",12/19/2016
CHERIE J. KIZER,"EMP EXPENSE REIMB, OUT OF TOWN",$538.05 ,1/25/2016
CHERIE J. KIZER,"EMP EXPENSE REIMB, OUT OF TOWN",$731.72 ,8/18/2016
CHESTER WAGER,"EMP EXPENSE REIMB, LOCAL",$39.96 ,3/10/2016
CHESTER WAGER,"EMP EXPENSE REIMB, LOCAL",$199.80 ,4/20/2016
CHESTER WAGER,"EMP EXPENSE REIMB, LOCAL",$119.88 ,6/6/2016
CHESTNUT RIDGE FOAM INC.,MATERIALS & ASSETS - CAPITAL,"$21,829.81 ",2/18/2016
CHICAGO BAR ASSN.,MISCELLANEOUS OTHER EXPENSE,$282 ,4/20/2016
CHICAGO BAR ASSN.,PROFESSIONAL SERVICES,$432 ,4/28/2016
CHICAGO BAR ASSN.,PROFESSIONAL SERVICES,$80 ,4/28/2016
CHICAGO BAR ASSN.,PROFESSIONAL SERVICES,$480 ,5/16/2016
CHICAGO BAR ASSN.,MISCELLANEOUS OTHER EXPENSE,$45 ,11/21/2016
"CHICAGO JACK SERVICE, INC.",MATERIALS - NON-INVENTORY,"$1,338 ",4/7/2016
"CHICAGO JACK SERVICE, INC.",MATERIALS & ASSETS - CAPITAL,"$14,000 ",4/11/2016
"CHICAGO JACK SERVICE, INC.",MATERIALS - NON-INVENTORY,$433 ,5/19/2016
"CHICAGO JACK SERVICE, INC.",OUTSIDE SERVICES,"$7,200 ",12/12/2016
"CHICAGO METAL MAINTENANCE, INC.",OUTSIDE SERVICES,$605 ,1/4/2016
"CHICAGO METAL MAINTENANCE, INC.",OUTSIDE SERVICES,$605 ,3/24/2016
"CHICAGO METAL MAINTENANCE, INC.",OUTSIDE SERVICES,$605 ,3/28/2016
"CHICAGO METAL MAINTENANCE, INC.",OUTSIDE SERVICES,$605 ,5/9/2016
"CHICAGO METAL MAINTENANCE, INC.",OUTSIDE SERVICES,$605 ,5/24/2016
"CHICAGO METAL MAINTENANCE, INC.",OUTSIDE SERVICES,$605 ,6/28/2016
"CHICAGO METAL MAINTENANCE, INC.",OUTSIDE SERVICES,$605 ,7/28/2016
"CHICAGO METAL MAINTENANCE, INC.",OUTSIDE SERVICES,$605 ,9/15/2016
"CHICAGO METAL MAINTENANCE, INC.",OUTSIDE SERVICES,$605 ,10/18/2016
"CHICAGO METAL MAINTENANCE, INC.",OUTSIDE SERVICES,$605 ,10/25/2016
"CHICAGO METAL MAINTENANCE, INC.",OUTSIDE SERVICES,$610 ,12/14/2016
CHICAGO MINORITY SUPPLIER,MISCELLANEOUS OTHER EXPENSE,"$2,050 ",2/2/2016
CHICAGO PARK DISTRICT,MISCELLANEOUS OTHER EXPENSE,$250 ,5/5/2016
"CHICAGO PARTS & SOUND, LLC.",OUTSIDE SERVICES,$96.91 ,2/29/2016
"CHICAGO PARTS & SOUND, LLC.",MISCELLANEOUS OTHER EXPENSE,$917.68 ,3/21/2016
"CHICAGO PARTS & SOUND, LLC.",OUTSIDE SERVICES,"$2,227.50 ",6/6/2016
"CHICAGO PARTS & SOUND, LLC.",MISCELLANEOUS OTHER EXPENSE,"$1,922.96 ",6/7/2016
"CHICAGO PARTS & SOUND, LLC.",OUTSIDE SERVICES,$110 ,7/27/2016
"CHICAGO PARTS & SOUND, LLC.",OUTSIDE SERVICES,$280.50 ,8/22/2016
"CHICAGO PARTS & SOUND, LLC.",MISCELLANEOUS OTHER EXPENSE,$768.79 ,9/6/2016
"CHICAGO PARTS & SOUND, LLC.",MISCELLANEOUS OTHER EXPENSE,"$2,520 ",10/25/2016
"CHICAGO PARTS & SOUND, LLC.",OUTSIDE SERVICES,$48.50 ,11/9/2016
"CHICAGO PARTS & SOUND, LLC.",MISCELLANEOUS OTHER EXPENSE,"$2,415.60 ",12/7/2016
CHICAGO SCHOLARS FOUNDATION,MISCELLANEOUS OTHER EXPENSE,$250 ,6/27/2016
CHICAGO SPENCE TOOL & RUBBER CO.,MATERIALS - INVENTORY,"$1,420.50 ",8/22/2016
CHICAGO SPENCE TOOL & RUBBER CO.,MATERIALS - INVENTORY,$786.70 ,10/24/2016
CHICAGO SUN-TIMES,MISCELLANEOUS OTHER EXPENSE,$416 ,1/20/2016
CHICAGO SUN-TIMES,OUTSIDE SERVICES - CAPITAL,$703 ,3/7/2016
CHICAGO SUN-TIMES,MISCELLANEOUS OTHER EXPENSE,"$1,677.70 ",3/7/2016
CHICAGO SUN-TIMES,OUTSIDE SERVICES - CAPITAL,$799.90 ,3/16/2016
CHICAGO SUN-TIMES,MISCELLANEOUS OTHER EXPENSE,"$2,127.05 ",3/16/2016
CHICAGO SUN-TIMES,OUTSIDE SERVICES - CAPITAL,"$1,675.80 ",4/7/2016
CHICAGO SUN-TIMES,MISCELLANEOUS OTHER EXPENSE,"$2,985.85 ",4/7/2016
CHICAGO SUN-TIMES,OUTSIDE SERVICES - CAPITAL,$562.40 ,5/3/2016
CHICAGO SUN-TIMES,MISCELLANEOUS OTHER EXPENSE,"$2,943.10 ",5/3/2016
CHICAGO SUN-TIMES,OUTSIDE SERVICES - CAPITAL,"$1,521.90 ",5/25/2016
CHICAGO SUN-TIMES,MISCELLANEOUS OTHER EXPENSE,"$4,656.90 ",5/25/2016
CHICAGO SUN-TIMES,OUTSIDE SERVICES - CAPITAL,$454.10 ,6/27/2016
CHICAGO SUN-TIMES,MISCELLANEOUS OTHER EXPENSE,"$5,453 ",6/27/2016
CHICAGO SUN-TIMES,OUTSIDE SERVICES - CAPITAL,$454.10 ,8/4/2016
CHICAGO SUN-TIMES,MISCELLANEOUS OTHER EXPENSE,"$2,456.70 ",8/4/2016
CHICAGO SUN-TIMES,OUTSIDE SERVICES - CAPITAL,$119.70 ,8/25/2016
CHICAGO SUN-TIMES,MISCELLANEOUS OTHER EXPENSE,"$1,858.20 ",8/25/2016
CHICAGO SUN-TIMES,OUTSIDE SERVICES - CAPITAL,"$1,074.45 ",10/5/2016
CHICAGO SUN-TIMES,MISCELLANEOUS OTHER EXPENSE,"$2,245.80 ",10/5/2016
CHICAGO SUN-TIMES,OUTSIDE SERVICES - CAPITAL,"$1,048.80 ",10/25/2016
CHICAGO SUN-TIMES,MISCELLANEOUS OTHER EXPENSE,"$2,203.05 ",10/25/2016
CHICAGO SUN-TIMES,OUTSIDE SERVICES - CAPITAL,"$1,282.50 ",11/28/2016
CHICAGO SUN-TIMES,MISCELLANEOUS OTHER EXPENSE,"$2,109.95 ",11/28/2016
CHICAGO TIRE INC.,OUTSIDE SERVICES,"$2,454.69 ",1/11/2016
CHICAGO TIRE INC.,MATERIALS - NON-INVENTORY,"$4,968 ",1/14/2016
CHICAGO TIRE INC.,OUTSIDE SERVICES,"$11,569.62 ",1/14/2016
CHICAGO TIRE INC.,OUTSIDE SERVICES,$532.74 ,1/21/2016
CHICAGO TIRE INC.,OUTSIDE SERVICES,"$3,416.94 ",1/25/2016
CHICAGO TIRE INC.,OUTSIDE SERVICES,$122.38 ,2/3/2016
CHICAGO TIRE INC.,OUTSIDE SERVICES,"$3,156.08 ",2/4/2016
CHICAGO TIRE INC.,MATERIALS - NON-INVENTORY,"$12,642.32 ",2/8/2016
CHICAGO TIRE INC.,OUTSIDE SERVICES,"$3,164.54 ",2/8/2016
CHICAGO TIRE INC.,OUTSIDE SERVICES,$243.08 ,2/16/2016
CHICAGO TIRE INC.,OUTSIDE SERVICES,"$5,424.08 ",2/29/2016
CHICAGO TIRE INC.,OUTSIDE SERVICES,"$1,038.32 ",3/2/2016
CHICAGO TIRE INC.,OUTSIDE SERVICES,"$6,129.65 ",3/9/2016
CHICAGO TIRE INC.,OUTSIDE SERVICES,$812.09 ,3/10/2016
CHICAGO TIRE INC.,OUTSIDE SERVICES,$340.87 ,3/14/2016
CHICAGO TIRE INC.,OUTSIDE SERVICES,$236.90 ,3/16/2016
CHICAGO TIRE INC.,OUTSIDE SERVICES,"$3,758.71 ",3/16/2016
CHICAGO TIRE INC.,OUTSIDE SERVICES,"$2,807.34 ",3/21/2016
CHICAGO TIRE INC.,OUTSIDE SERVICES,$127.11 ,3/22/2016
CHICAGO TIRE INC.,OUTSIDE SERVICES,$312.93 ,3/23/2016
CHICAGO TIRE INC.,OUTSIDE SERVICES,"$2,402.52 ",3/29/2016
CHICAGO TIRE INC.,OUTSIDE SERVICES,"$1,062.38 ",3/30/2016
CHICAGO TIRE INC.,OUTSIDE SERVICES,"$1,101.17 ",3/30/2016
CHICAGO TIRE INC.,OUTSIDE SERVICES,"$3,986.42 ",4/11/2016
CHICAGO TIRE INC.,OUTSIDE SERVICES,"$3,788.14 ",4/20/2016
CHICAGO TIRE INC.,OUTSIDE SERVICES,$60 ,4/25/2016
CHICAGO TIRE INC.,OUTSIDE SERVICES,$122.38 ,4/25/2016
CHICAGO TIRE INC.,OUTSIDE SERVICES,$215.51 ,4/26/2016
CHICAGO TIRE INC.,MISCELLANEOUS OTHER EXPENSE,$6.50 ,4/26/2016
CHICAGO TIRE INC.,OUTSIDE SERVICES,$464.88 ,5/9/2016
CHICAGO TIRE INC.,OUTSIDE SERVICES,$390.09 ,5/10/2016
CHICAGO TIRE INC.,OUTSIDE SERVICES,$749 ,5/16/2016
CHICAGO TIRE INC.,OUTSIDE SERVICES,"$3,120.67 ",5/16/2016
CHICAGO TIRE INC.,OUTSIDE SERVICES,$234.14 ,5/16/2016
CHICAGO TIRE INC.,OUTSIDE SERVICES,$156 ,5/16/2016
CHICAGO TIRE INC.,OUTSIDE SERVICES,$558.14 ,5/18/2016
CHICAGO TIRE INC.,OUTSIDE SERVICES,"$5,902.50 ",5/23/2016
CHICAGO TIRE INC.,OUTSIDE SERVICES,"$4,405.61 ",6/1/2016
CHICAGO TIRE INC.,OUTSIDE SERVICES,$195 ,6/13/2016
CHICAGO TIRE INC.,MATERIALS - NON-INVENTORY,"$2,484 ",6/13/2016
CHICAGO TIRE INC.,OUTSIDE SERVICES,"$3,097.50 ",6/13/2016
CHICAGO TIRE INC.,OUTSIDE SERVICES,"$1,132.43 ",6/13/2016
CHICAGO TIRE INC.,OUTSIDE SERVICES,$671.56 ,6/14/2016
CHICAGO TIRE INC.,OUTSIDE SERVICES,"$3,412.92 ",6/21/2016
CHICAGO TIRE INC.,OUTSIDE SERVICES,$284.63 ,6/27/2016
CHICAGO TIRE INC.,OUTSIDE SERVICES,"$3,207.86 ",7/5/2016
CHICAGO TIRE INC.,OUTSIDE SERVICES,$607.50 ,7/12/2016
CHICAGO TIRE INC.,OUTSIDE SERVICES,$798.61 ,7/12/2016
CHICAGO TIRE INC.,MATERIALS - NON-INVENTORY,"$11,830 ",7/25/2016
CHICAGO TIRE INC.,OUTSIDE SERVICES,"$11,820.10 ",7/25/2016
CHICAGO TIRE INC.,OUTSIDE SERVICES,"$2,139.41 ",7/25/2016
CHICAGO TIRE INC.,OUTSIDE SERVICES,$905.90 ,7/27/2016
CHICAGO TIRE INC.,OUTSIDE SERVICES,"$1,729.98 ",7/28/2016
CHICAGO TIRE INC.,OUTSIDE SERVICES,$297.68 ,8/1/2016
CHICAGO TIRE INC.,OUTSIDE SERVICES,$591.56 ,8/1/2016
CHICAGO TIRE INC.,OUTSIDE SERVICES,"$1,316.57 ",8/9/2016
CHICAGO TIRE INC.,OUTSIDE SERVICES,$358.74 ,8/10/2016
CHICAGO TIRE INC.,OUTSIDE SERVICES,$227.83 ,8/16/2016
CHICAGO TIRE INC.,OUTSIDE SERVICES,"$2,495.98 ",8/22/2016
CHICAGO TIRE INC.,OUTSIDE SERVICES,"$4,097.13 ",8/24/2016
CHICAGO TIRE INC.,OUTSIDE SERVICES,$30 ,8/25/2016
CHICAGO TIRE INC.,OUTSIDE SERVICES,$140 ,8/29/2016
CHICAGO TIRE INC.,OUTSIDE SERVICES,$140.76 ,8/29/2016
CHICAGO TIRE INC.,OUTSIDE SERVICES,"$3,212.40 ",8/29/2016
CHICAGO TIRE INC.,OUTSIDE SERVICES,"$2,495.64 ",9/1/2016
CHICAGO TIRE INC.,OUTSIDE SERVICES,"$2,508.88 ",9/6/2016
CHICAGO TIRE INC.,OUTSIDE SERVICES,$345.20 ,9/15/2016
CHICAGO TIRE INC.,MATERIALS - NON-INVENTORY,"$4,028.50 ",9/15/2016
CHICAGO TIRE INC.,OUTSIDE SERVICES,"$2,621.08 ",9/15/2016
CHICAGO TIRE INC.,OUTSIDE SERVICES,"$3,000.75 ",9/21/2016
CHICAGO TIRE INC.,OUTSIDE SERVICES,$636.74 ,9/26/2016
CHICAGO TIRE INC.,OUTSIDE SERVICES,"$24,375.24 ",9/27/2016
CHICAGO TIRE INC.,OUTSIDE SERVICES,"$2,273.62 ",10/25/2016
CHICAGO TIRE INC.,OUTSIDE SERVICES,"$2,717.26 ",10/31/2016
CHICAGO TIRE INC.,OUTSIDE SERVICES,"$1,441.67 ",11/2/2016
CHICAGO TIRE INC.,OUTSIDE SERVICES,"$4,338.29 ",11/9/2016
CHICAGO TIRE INC.,OUTSIDE SERVICES,$12 ,11/14/2016
CHICAGO TIRE INC.,OUTSIDE SERVICES,"$2,630.63 ",11/15/2016
CHICAGO TIRE INC.,OUTSIDE SERVICES,"$45,115.54 ",11/21/2016
CHICAGO TIRE INC.,OUTSIDE SERVICES,$12 ,11/21/2016
CHICAGO TIRE INC.,OUTSIDE SERVICES,"$1,512.10 ",12/7/2016
CHICAGO TIRE INC.,OUTSIDE SERVICES,"$3,115.34 ",12/7/2016
CHICAGO TIRE INC.,OUTSIDE SERVICES,"$1,555.94 ",12/19/2016
CHICAGO TIRE INC.,OUTSIDE SERVICES,$972.64 ,12/20/2016
CHICAGO TIRE INC.,OUTSIDE SERVICES,$390.96 ,12/27/2016
CHICAGO TRIBUNE,MISCELLANEOUS OTHER EXPENSE,$377 ,6/2/2016
CHICAGO TRIBUNE,MISCELLANEOUS OTHER EXPENSE,$585 ,12/6/2016
CHICAGO UNIFORM CO.,MATERIALS - CAPITAL,$355.01 ,1/5/2016
CHICAGO UNIFORM CO.,MISCELLANEOUS OTHER EXPENSE,"$12,510.87 ",1/5/2016
CHICAGO UNIFORM CO.,MATERIALS - CAPITAL,$50 ,1/19/2016
CHICAGO UNIFORM CO.,MISCELLANEOUS OTHER EXPENSE,"$9,436.20 ",1/19/2016
CHICAGO UNIFORM CO.,MATERIALS - CAPITAL,$10 ,1/20/2016
CHICAGO UNIFORM CO.,MISCELLANEOUS OTHER EXPENSE,"$13,403.61 ",1/20/2016
CHICAGO UNIFORM CO.,MATERIALS - CAPITAL,$29.95 ,4/6/2016
CHICAGO UNIFORM CO.,MISCELLANEOUS OTHER EXPENSE,"$10,401.41 ",4/6/2016
CHICAGO UNIFORM CO.,MATERIALS - CAPITAL,$258.75 ,5/2/2016
CHICAGO UNIFORM CO.,MISCELLANEOUS OTHER EXPENSE,"$6,635.84 ",5/2/2016
CHICAGO UNIFORM CO.,MATERIALS - CAPITAL,$134.95 ,5/9/2016
CHICAGO UNIFORM CO.,MISCELLANEOUS OTHER EXPENSE,$479.85 ,5/9/2016
CHICAGO UNIFORM CO.,MATERIALS - CAPITAL,$329.90 ,5/16/2016
CHICAGO UNIFORM CO.,MISCELLANEOUS OTHER EXPENSE,"$1,258.13 ",5/16/2016
CHICAGO UNIFORM CO.,MATERIALS - CAPITAL,$472.85 ,6/20/2016
CHICAGO UNIFORM CO.,MISCELLANEOUS OTHER EXPENSE,"$5,530.15 ",6/20/2016
CHICAGO UNIFORM CO.,MATERIALS - CAPITAL,"$3,165.42 ",8/11/2016
CHICAGO UNIFORM CO.,MISCELLANEOUS OTHER EXPENSE,"$7,164.07 ",8/11/2016
CHICAGO UNIFORM CO.,MATERIALS - CAPITAL,$320.50 ,10/10/2016
CHICAGO UNIFORM CO.,MISCELLANEOUS OTHER EXPENSE,"$11,701.79 ",10/10/2016
CHICAGO UNIFORM CO.,MISCELLANEOUS OTHER EXPENSE,"$13,726.38 ",10/11/2016
CHICAGO UNIFORM CO.,MATERIALS - CAPITAL,$126.95 ,10/12/2016
CHICAGO UNIFORM CO.,MATERIALS - CAPITAL,"$4,387.47 ",11/14/2016
CHICAGO UNIFORM CO.,MISCELLANEOUS OTHER EXPENSE,"$19,961.01 ",11/14/2016
CHICAGO UNIFORM CO.,MATERIALS - CAPITAL,$138.95 ,11/16/2016
CHICAGO UNIFORM CO.,MISCELLANEOUS OTHER EXPENSE,"$1,924.20 ",11/16/2016
CHICAGO UNION STATION CO.,UTILITIES,"$3,500 ",1/6/2016
CHICAGO UNION STATION CO.,RENTAL EXPENSE,"$781,216.94 ",1/12/2016
CHICAGO UNION STATION CO.,UTILITIES,"$3,500 ",2/4/2016
CHICAGO UNION STATION CO.,RENTAL EXPENSE,"$772,492.14 ",2/16/2016
CHICAGO UNION STATION CO.,UTILITIES,"$3,500 ",3/16/2016
CHICAGO UNION STATION CO.,RENTAL EXPENSE,"$772,492.14 ",3/16/2016
CHICAGO UNION STATION CO.,UTILITIES,"$3,500 ",3/23/2016
CHICAGO UNION STATION CO.,UTILITIES,"$3,500 ",4/4/2016
CHICAGO UNION STATION CO.,RENTAL EXPENSE,"$772,492.14 ",4/6/2016
CHICAGO UNION STATION CO.,RENTAL EXPENSE,"$777,640.17 ",5/9/2016
CHICAGO UNION STATION CO.,UTILITIES,"$3,500 ",5/16/2016
CHICAGO UNION STATION CO.,UTILITIES,"$3,500 ",6/6/2016
CHICAGO UNION STATION CO.,RENTAL EXPENSE,"$777,640.17 ",6/20/2016
CHICAGO UNION STATION CO.,RENTAL EXPENSE,"$777,640.17 ",7/11/2016
CHICAGO UNION STATION CO.,UTILITIES,"$3,500 ",7/12/2016
CHICAGO UNION STATION CO.,UTILITIES,"$3,500 ",8/12/2016
CHICAGO UNION STATION CO.,RENTAL EXPENSE,"$786,271.26 ",8/12/2016
CHICAGO UNION STATION CO.,RENTAL EXPENSE,"$17,050 ",8/25/2016
CHICAGO UNION STATION CO.,RENTAL EXPENSE,"$786,271.26 ",9/6/2016
CHICAGO UNION STATION CO.,UTILITIES,"$3,500 ",9/19/2016
CHICAGO UNION STATION CO.,RENTAL EXPENSE,"$786,271.26 ",10/10/2016
CHICAGO UNION STATION CO.,UTILITIES,"$3,500 ",10/25/2016
CHICAGO UNION STATION CO.,UTILITIES,"$3,500 ",11/14/2016
CHICAGO UNION STATION CO.,RENTAL EXPENSE,"$786,070.17 ",11/14/2016
CHICAGO UNION STATION CO.,MATERIALS & ASSETS - CAPITAL,"$894,224.13 ",11/15/2016
CHICAGO UNION STATION CO.,CONSTRUCTION,"$525,166.09 ",11/15/2016
CHICAGO UNION STATION CO.,RENTAL EXPENSE,"$786,070.17 ",11/28/2016
CHICAGO UNITED,MISCELLANEOUS OTHER EXPENSE,$175 ,7/21/2016
"CHICAGO UNITED INDUSTRIES, LTD.",MATERIALS - INVENTORY,$915 ,1/19/2016
"CHICAGO UNITED INDUSTRIES, LTD.",MATERIALS - INVENTORY,"$1,426 ",6/1/2016
"CHICAGO UNITED INDUSTRIES, LTD.",MATERIALS - INVENTORY,$459 ,7/11/2016
"CHICAGO UNITED INDUSTRIES, LTD.",MATERIALS - INVENTORY,$459 ,7/19/2016
"CHICAGO UNITED INDUSTRIES, LTD.",MATERIALS - INVENTORY,"$1,416 ",7/25/2016
"CHICAGO UNITED INDUSTRIES, LTD.",MATERIALS - INVENTORY,$918 ,7/27/2016
"CHICAGO UNITED INDUSTRIES, LTD.",MATERIALS - INVENTORY,"$2,172 ",8/4/2016
"CHICAGO UNITED INDUSTRIES, LTD.",MATERIALS - INVENTORY,"$1,457 ",8/22/2016
"CHICAGO UNITED INDUSTRIES, LTD.",MATERIALS - INVENTORY,$568 ,9/26/2016
"CHICAGO UNITED INDUSTRIES, LTD.",MATERIALS - INVENTORY,"$1,854 ",10/17/2016
"CHICAGO UNITED INDUSTRIES, LTD.",MATERIALS - INVENTORY,$977 ,10/25/2016
"CHICAGO UNITED INDUSTRIES, LTD.",MATERIALS - INVENTORY,$654.24 ,11/21/2016
"CHICAGO UNITED INDUSTRIES, LTD.",MATERIALS - INVENTORY,"$1,654 ",12/13/2016
CHICAGO URBAN LEAGUE,MISCELLANEOUS OTHER EXPENSE,$250 ,6/27/2016
CHICAGO-KENT COLLEGE OF LAW,PROFESSIONAL SERVICES,$390 ,2/22/2016
"CHICAGO-KENT COLLEGE OF LAW,",PROFESSIONAL SERVICES,$390 ,2/22/2016
"CHICAGOLAND PAVING CONTRACTORS,INC.",OUTSIDE SERVICES - CAPITAL,"$67,212.50 ",1/6/2016
"CHICAGOLAND PAVING CONTRACTORS,INC.",OUTSIDE SERVICES - CAPITAL,"$31,437 ",1/12/2016
"CHICAGOLAND PAVING CONTRACTORS,INC.",MATERIALS - NON-INVENTORY,"$6,980.75 ",2/11/2016
"CHICAGOLAND PAVING CONTRACTORS,INC.",OUTSIDE SERVICES - CAPITAL,"$12,698 ",2/24/2016
"CHICAGOLAND PAVING CONTRACTORS,INC.",CONSTRUCTION,"$44,848.50 ",3/10/2016
"CHICAGOLAND PAVING CONTRACTORS,INC.",CONSTRUCTION,"$63,214.85 ",6/16/2016
"CHICAGOLAND PAVING CONTRACTORS,INC.",OUTSIDE SERVICES - CAPITAL,"$71,127.25 ",6/21/2016
"CHICAGOLAND PAVING CONTRACTORS,INC.",OUTSIDE SERVICES - CAPITAL,"$26,376.25 ",7/18/2016
"CHICAGOLAND PAVING CONTRACTORS,INC.",OUTSIDE SERVICES - CAPITAL,"$16,669.25 ",8/8/2016
"CHICAGOLAND PAVING CONTRACTORS,INC.",OUTSIDE SERVICES,"$11,365.50 ",8/8/2016
"CHICAGOLAND PAVING CONTRACTORS,INC.",OUTSIDE SERVICES - CAPITAL,"$67,609.25 ",8/22/2016
"CHICAGOLAND PAVING CONTRACTORS,INC.",CONSTRUCTION,"$52,465.94 ",9/1/2016
"CHICAGOLAND PAVING CONTRACTORS,INC.",CONSTRUCTION,"$52,465.96 ",9/1/2016
"CHICAGOLAND PAVING CONTRACTORS,INC.",OUTSIDE SERVICES - CAPITAL,"$13,916 ",9/15/2016
"CHICAGOLAND PAVING CONTRACTORS,INC.",OUTSIDE SERVICES - CAPITAL,"$17,934 ",10/5/2016
"CHICAGOLAND PAVING CONTRACTORS,INC.",CONSTRUCTION,"$77,044.25 ",10/12/2016
"CHICAGOLAND PAVING CONTRACTORS,INC.",CONSTRUCTION,"$51,834.60 ",10/19/2016
"CHICAGOLAND PAVING CONTRACTORS,INC.",OUTSIDE SERVICES - CAPITAL,"$8,851.50 ",10/24/2016
"CHICAGOLAND PAVING CONTRACTORS,INC.",MISCELLANEOUS OTHER EXPENSE,"$8,315 ",10/24/2016
"CHICAGOLAND PAVING CONTRACTORS,INC.",CONSTRUCTION,"$107,167.25 ",10/26/2016
"CHICAGOLAND PAVING CONTRACTORS,INC.",CONSTRUCTION,"$22,324 ",11/10/2016
"CHICAGOLAND PAVING CONTRACTORS,INC.",CONSTRUCTION,"$12,234.50 ",11/15/2016
"CHICAGOLAND PAVING CONTRACTORS,INC.",OUTSIDE SERVICES - CAPITAL,"$57,375.40 ",11/21/2016
"CHICAGOLAND PAVING CONTRACTORS,INC.",OUTSIDE SERVICES - CAPITAL,"$44,393.90 ",11/28/2016
"CHICAGOLAND PAVING CONTRACTORS,INC.",CONSTRUCTION,"$20,577.40 ",12/12/2016
"CHICAGOLAND PAVING CONTRACTORS,INC.",CONSTRUCTION,"$24,794 ",12/15/2016
"CHICAGOLAND PAVING CONTRACTORS,INC.",OUTSIDE SERVICES - CAPITAL,"$15,524.40 ",12/19/2016
"CHICAGOLAND PAVING CONTRACTORS,INC.",OUTSIDE SERVICES,"$14,464.45 ",12/19/2016
"CHICAGOLAND PAVING CONTRACTORS,INC.",OUTSIDE SERVICES,"$14,630 ",12/19/2016
CHIPPEWA CREE CULTURAL RESOURCE DEP,OUTSIDE SERVICES,"$1,500 ",5/17/2016
CHIPPEWA CREE CULTURAL RESOURCE DEP,OUTSIDE SERVICES,"$1,200 ",6/6/2016
CHOOSE CHICAGO,MISCELLANEOUS OTHER EXPENSE,$699 ,4/27/2016
CHRISTOPHER A PRUTSMAN,"EMP EXPENSE REIMB, LOCAL",$66.70 ,1/25/2016
CHRISTOPHER A PRUTSMAN,"EMP EXPENSE REIMB, LOCAL",$119.88 ,2/25/2016
CHRISTOPHER BLANFORD,"EMP EXPENSE REIMB, LOCAL",$37.03 ,1/5/2016
CHRISTOPHER BLANFORD,"EMP EXPENSE REIMB, LOCAL",$19.01 ,3/14/2016
CHRISTOPHER BLANFORD,"EMP EXPENSE REIMB, LOCAL",$74.95 ,5/9/2016
CHRISTOPHER BLANFORD,"EMP EXPENSE REIMB, LOCAL",$36.18 ,8/1/2016
CHRISTOPHER D. LEONARD,"EMP EXPENSE REIMB, LOCAL",$170.20 ,2/2/2016
CHRISTOPHER D. LEONARD,"EMP EXPENSE REIMB, LOCAL",$159.84 ,2/24/2016
CHRISTOPHER D. LEONARD,"EMP EXPENSE REIMB, LOCAL",$39.96 ,3/24/2016
CHRISTOPHER D. LEONARD,"EMP EXPENSE REIMB, LOCAL",$119.88 ,4/14/2016
CHRISTOPHER D. LEONARD,"EMP EXPENSE REIMB, LOCAL",$119.88 ,5/26/2016
CHRISTOPHER D. LEONARD,"EMP EXPENSE REIMB, LOCAL",$159.84 ,6/22/2016
CHRISTOPHER D. LEONARD,"EMP EXPENSE REIMB, LOCAL",$79.92 ,7/26/2016
CHRISTOPHER D. LEONARD,"EMP EXPENSE REIMB, LOCAL",$119.88 ,9/6/2016
CHRISTOPHER D. LEONARD,"EMP EXPENSE REIMB, LOCAL",$119.88 ,9/28/2016
CHRISTOPHER E CULBRETH,"EMP EXPENSE REIMB, LOCAL",$57.67 ,9/26/2016
CHRISTOPHER E.K PFANNKUCHE,PROFESSIONAL SERVICES,$500 ,10/20/2016
CHRISTOPHER L. SWOOPE,"EMP EXPENSE REIMB, LOCAL",$208.01 ,2/24/2016
CHRISTOPHER L. SWOOPE,"EMP EXPENSE REIMB, LOCAL",$62.40 ,10/24/2016
CHRISTOPHER L. SWOOPE,"EMP EXPENSE REIMB, LOCAL",$62.40 ,12/5/2016
CHRISTOPHER LAWRENCE,"EMP EXPENSE REIMB, LOCAL",$185.21 ,9/12/2016
CHRISTOPHER P. DORSEY,"EMP EXPENSE REIMB, LOCAL",$22.68 ,8/23/2016
CHRISTOPHER P. DORSEY,"EMP EXPENSE REIMB, LOCAL",$165.24 ,9/26/2016
CHRISTOPHER P. DORSEY,"EMP EXPENSE REIMB, LOCAL",$182.52 ,10/25/2016
CHRISTOPHER P. DORSEY,"EMP EXPENSE REIMB, LOCAL",$125.28 ,11/10/2016
CHRISTOPHER P. DORSEY,"EMP EXPENSE REIMB, LOCAL",$142.56 ,11/21/2016
CHRISTOPHER P. DORSEY,"EMP EXPENSE REIMB, LOCAL",$125.28 ,12/6/2016
CHRISTOPHER P. DORSEY,"EMP EXPENSE REIMB, LOCAL",$156.60 ,12/27/2016
CHRISTOPHER PERSONS,"EMP EXPENSE REIMB, LOCAL",$316.65 ,1/25/2016
CHRISTOPHER R EVERS,"EMP EXPENSE REIMB, OUT OF TOWN","$1,073.49 ",3/30/2016
CHRISTOPHER R EVERS,"EMP EXPENSE REIMB, OUT OF TOWN",$911.55 ,5/31/2016
CHRISTOPHER R. CLEARY,"EMP EXPENSE REIMB, LOCAL",$18.38 ,4/11/2016
CHRISTY WEBBER & CO.,OUTSIDE SERVICES,"$19,556 ",7/11/2016
CHRISTY WEBBER & CO.,OUTSIDE SERVICES,"$17,450 ",8/22/2016
CHRISTY WEBBER & CO.,OUTSIDE SERVICES,"$9,778 ",9/6/2016
CHRISTY WEBBER & CO.,OUTSIDE SERVICES,"$9,778 ",9/26/2016
CHRISTY WEBBER & CO.,OUTSIDE SERVICES,"$9,778 ",11/15/2016
CHRISTY WEBBER & CO.,OUTSIDE SERVICES,"$9,778 ",12/19/2016
CHRISTY WEBBER & CO.,OUTSIDE SERVICES,"$9,778 ",12/27/2016
CITY CLUB OF CHICAGO,MISCELLANEOUS OTHER EXPENSE,$125 ,1/28/2016
CITY CLUB OF CHICAGO,MISCELLANEOUS OTHER EXPENSE,$170 ,2/8/2016
CITY CLUB OF CHICAGO,PROFESSIONAL SERVICES,$170 ,2/18/2016
CITY CLUB OF CHICAGO,PROFESSIONAL SERVICES,$170 ,3/7/2016
CITY CLUB OF CHICAGO,PROFESSIONAL SERVICES,$35 ,3/30/2016
CITY CLUB OF CHICAGO,PROFESSIONAL SERVICES,$80 ,4/14/2016
CITY CLUB OF CHICAGO,MISCELLANEOUS OTHER EXPENSE,$40 ,4/19/2016
CITY CLUB OF CHICAGO,PROFESSIONAL SERVICES,$385 ,4/20/2016
CITY CLUB OF CHICAGO,PROFESSIONAL SERVICES,$215 ,5/9/2016
CITY CLUB OF CHICAGO,PROFESSIONAL SERVICES,$125 ,6/9/2016
CITY CLUB OF CHICAGO,PROFESSIONAL SERVICES,$215 ,6/13/2016
CITY CLUB OF CHICAGO,PROFESSIONAL SERVICES,$125 ,9/12/2016
CITY CLUB OF CHICAGO,PROFESSIONAL SERVICES,$215 ,9/12/2016
CITY CLUB OF CHICAGO,PROFESSIONAL SERVICES,$295 ,9/14/2016
CITY CLUB OF CHICAGO,PROFESSIONAL SERVICES,$85 ,10/17/2016
CITY CLUB OF CHICAGO,MISCELLANEOUS OTHER EXPENSE,$85 ,10/17/2016
CITY CLUB OF CHICAGO,PROFESSIONAL SERVICES,$185 ,11/7/2016
CITY CLUB OF CHICAGO,PROFESSIONAL SERVICES,$385 ,11/21/2016
CITY CLUB OF CHICAGO,PROFESSIONAL SERVICES,$85 ,11/28/2016
CITY CLUB OF CHICAGO,PROFESSIONAL SERVICES,$385 ,11/30/2016
CITY COLLEGES OF CHICAGO,OUTSIDE SERVICES,"$21,250 ",5/3/2016
CITY COLLEGES OF CHICAGO,OUTSIDE SERVICES,"$9,107.16 ",5/9/2016
CITY COLLEGES OF CHICAGO,OUTSIDE SERVICES,"$9,107.16 ",5/31/2016
CITY COLLEGES OF CHICAGO,OUTSIDE SERVICES,"$9,107.12 ",12/5/2016
CITY COLLEGES OF CHICAGO,OUTSIDE SERVICES,"$9,107.14 ",12/21/2016
CITY OF AURORA,OUTSIDE SERVICES,"$90,000 ",12/20/2016
CITY OF BLUE ISLAND,UTILITIES,$996.22 ,1/4/2016
CITY OF BLUE ISLAND,UTILITIES,"$1,070.52 ",2/16/2016
CITY OF BLUE ISLAND,UTILITIES,"$1,103.54 ",3/9/2016
CITY OF BLUE ISLAND,UTILITIES,"$1,293.44 ",4/13/2016
CITY OF BLUE ISLAND,UTILITIES,"$1,062.26 ",5/16/2016
CITY OF BLUE ISLAND,UTILITIES,"$1,204.81 ",6/16/2016
CITY OF BLUE ISLAND,UTILITIES,$975.38 ,8/1/2016
CITY OF BLUE ISLAND,UTILITIES,"$1,045.76 ",8/11/2016
CITY OF BLUE ISLAND,UTILITIES,"$1,004.48 ",9/14/2016
CITY OF BLUE ISLAND,UTILITIES,"$1,103.54 ",10/13/2016
CITY OF BLUE ISLAND,UTILITIES,"$1,020.98 ",11/14/2016
CITY OF BLUE ISLAND,UTILITIES,"$1,029.25 ",12/13/2016
CITY OF CHICAGO,CONSTRUCTION,"$3,500 ",4/14/2016
CITY OF CRYSTAL LAKE,MISCELLANEOUS OTHER EXPENSE,"$262,812.10 ",4/18/2016
CITY OF CRYSTAL LAKE,OUTSIDE SERVICES,"$7,811 ",10/17/2016
CITY OF ELGIN,UTILITIES,$170.70 ,1/4/2016
CITY OF ELGIN,UTILITIES,"$1,694.51 ",1/14/2016
CITY OF ELGIN,UTILITIES,$176.77 ,2/8/2016
CITY OF ELGIN,UTILITIES,"$1,742.48 ",2/16/2016
CITY OF ELGIN,UTILITIES,$254.97 ,3/9/2016
CITY OF ELGIN,UTILITIES,"$1,270.14 ",3/24/2016
CITY OF ELGIN,UTILITIES,$176.77 ,4/4/2016
CITY OF ELGIN,UTILITIES,"$1,029.49 ",4/13/2016
CITY OF ELGIN,UTILITIES,$188.15 ,5/5/2016
CITY OF ELGIN,UTILITIES,"$1,063.82 ",5/16/2016
CITY OF ELGIN,UTILITIES,$200.12 ,6/9/2016
CITY OF ELGIN,UTILITIES,$929.53 ,6/16/2016
CITY OF ELGIN,UTILITIES,$182.62 ,7/21/2016
CITY OF ELGIN,UTILITIES,"$1,167.68 ",8/1/2016
CITY OF ELGIN,UTILITIES,$176.39 ,8/8/2016
CITY OF ELGIN,UTILITIES,$947.18 ,8/10/2016
CITY OF ELGIN,UTILITIES,$196.79 ,9/8/2016
CITY OF ELGIN,UTILITIES,"$1,250.97 ",9/14/2016
CITY OF ELGIN,UTILITIES,"$1,954.04 ",10/13/2016
CITY OF ELGIN,UTILITIES,"$1,717.59 ",11/14/2016
CITY OF ELGIN,UTILITIES,$194 ,12/12/2016
CITY OF ELGIN,UTILITIES,"$1,689.65 ",12/13/2016
CITY OF GENEVA,CONSTRUCTION,"$247,304.86 ",3/7/2016
CITY OF GENEVA,ENG. MANAGEMENT & INSPECTIONS,"$19,074.97 ",3/7/2016
CITY OF GENEVA,CONSTRUCTION,"$226,402.98 ",3/22/2016
CITY OF HARVEY WATER DEPARTMENT,UTILITIES,$15.92 ,1/12/2016
CITY OF HARVEY WATER DEPARTMENT,UTILITIES,$41.99 ,2/16/2016
CITY OF HARVEY WATER DEPARTMENT,UTILITIES,$38.20 ,3/24/2016
CITY OF HARVEY WATER DEPARTMENT,UTILITIES,$32.51 ,4/13/2016
CITY OF HARVEY WATER DEPARTMENT,UTILITIES,$35.30 ,5/16/2016
CITY OF HARVEY WATER DEPARTMENT,UTILITIES,$44 ,6/16/2016
CITY OF HARVEY WATER DEPARTMENT,UTILITIES,$35.38 ,7/21/2016
CITY OF HARVEY WATER DEPARTMENT,UTILITIES,$36.85 ,8/11/2016
CITY OF HARVEY WATER DEPARTMENT,UTILITIES,$32.16 ,9/14/2016
CITY OF HARVEY WATER DEPARTMENT,UTILITIES,$71.84 ,10/13/2016
CITY OF HARVEY WATER DEPARTMENT,UTILITIES,$40.70 ,11/14/2016
CITY OF HARVEY WATER DEPARTMENT,UTILITIES,$43.61 ,12/13/2016
CITY OF HIGHLAND PARK,UTILITIES,$22.89 ,1/13/2016
CITY OF HIGHLAND PARK,UTILITIES,$27.47 ,1/25/2016
CITY OF HIGHLAND PARK,UTILITIES,$26.16 ,3/31/2016
CITY OF HIGHLAND PARK,UTILITIES,$26.16 ,6/27/2016
CITY OF HIGHLAND PARK,UTILITIES,$26.16 ,10/3/2016
CITY OF JOLIET MUNICIPAL UTILITIES,UTILITIES,$22.54 ,1/4/2016
CITY OF JOLIET MUNICIPAL UTILITIES,UTILITIES,$527.18 ,1/25/2016
CITY OF JOLIET MUNICIPAL UTILITIES,UTILITIES,$19.39 ,2/17/2016
CITY OF JOLIET MUNICIPAL UTILITIES,UTILITIES,$220.78 ,2/29/2016
CITY OF JOLIET MUNICIPAL UTILITIES,UTILITIES,$23.08 ,3/8/2016
CITY OF JOLIET MUNICIPAL UTILITIES,UTILITIES,$311.89 ,3/24/2016
CITY OF JOLIET MUNICIPAL UTILITIES,UTILITIES,$330.96 ,4/13/2016
CITY OF JOLIET MUNICIPAL UTILITIES,UTILITIES,$18.79 ,4/27/2016
CITY OF JOLIET MUNICIPAL UTILITIES,UTILITIES,$228.64 ,5/25/2016
CITY OF JOLIET MUNICIPAL UTILITIES,UTILITIES,$22.80 ,5/26/2016
CITY OF JOLIET MUNICIPAL UTILITIES,UTILITIES,$347.91 ,6/27/2016
CITY OF JOLIET MUNICIPAL UTILITIES,UTILITIES,$377.32 ,8/4/2016
CITY OF JOLIET MUNICIPAL UTILITIES,UTILITIES,$94.22 ,9/8/2016
CITY OF JOLIET MUNICIPAL UTILITIES,UTILITIES,$215.95 ,9/19/2016
CITY OF JOLIET MUNICIPAL UTILITIES,UTILITIES,$22.92 ,10/13/2016
CITY OF JOLIET MUNICIPAL UTILITIES,UTILITIES,$148.76 ,10/25/2016
CITY OF JOLIET MUNICIPAL UTILITIES,UTILITIES,$243.04 ,11/14/2016
CITY OF JOLIET MUNICIPAL UTILITIES,UTILITIES,$213.65 ,11/21/2016
CITY OF JOLIET MUNICIPAL UTILITIES,UTILITIES,$20.92 ,12/12/2016
CITY OF JOLIET MUNICIPAL UTILITIES,UTILITIES,$155.88 ,12/20/2016
"CITY OF OAK FOREST,ILL.",UTILITIES,$65.10 ,1/25/2016
"CITY OF OAK FOREST,ILL.",UTILITIES,$65.10 ,4/27/2016
"CITY OF OAK FOREST,ILL.",CONSTRUCTION,"$46,225.47 ",5/11/2016
"CITY OF OAK FOREST,ILL.",UTILITIES,$68.35 ,8/4/2016
"CITY OF OAK FOREST,ILL.",UTILITIES,$113.20 ,10/25/2016
CITY OF WHEATON,OUTSIDE SERVICES,"$14,250 ",9/13/2016
CITYWIDE CPR INC.,MISCELLANEOUS OTHER EXPENSE,"$2,898 ",1/20/2016
"CLAEVEN, LTD.",MISCELLANEOUS OTHER EXPENSE,"$1,000 ",1/4/2016
"CLAEVEN, LTD.",MISCELLANEOUS OTHER EXPENSE,"$1,037.50 ",1/6/2016
"CLAEVEN, LTD.",MISCELLANEOUS OTHER EXPENSE,"$5,312.50 ",1/13/2016
"CLAEVEN, LTD.",MISCELLANEOUS OTHER EXPENSE,$225 ,1/19/2016
"CLAEVEN, LTD.",MISCELLANEOUS OTHER EXPENSE,"$3,093.75 ",1/25/2016
"CLAEVEN, LTD.",MISCELLANEOUS OTHER EXPENSE,"$3,437.50 ",2/8/2016
"CLAEVEN, LTD.",MISCELLANEOUS OTHER EXPENSE,$662.50 ,2/16/2016
"CLAEVEN, LTD.",RENTAL EXPENSE,$937.50 ,2/16/2016
"CLAEVEN, LTD.",MISCELLANEOUS OTHER EXPENSE,"$2,750 ",2/22/2016
"CLAEVEN, LTD.",MISCELLANEOUS OTHER EXPENSE,"$2,631.25 ",2/24/2016
"CLAEVEN, LTD.",MISCELLANEOUS OTHER EXPENSE,$687.50 ,2/29/2016
"CLAEVEN, LTD.",MISCELLANEOUS OTHER EXPENSE,$743.75 ,3/1/2016
"CLAEVEN, LTD.",MISCELLANEOUS OTHER EXPENSE,"$3,250 ",3/7/2016
"CLAEVEN, LTD.",MISCELLANEOUS OTHER EXPENSE,"$1,350 ",3/9/2016
"CLAEVEN, LTD.",MISCELLANEOUS OTHER EXPENSE,"$1,100 ",3/14/2016
"CLAEVEN, LTD.",MISCELLANEOUS OTHER EXPENSE,$437.50 ,3/16/2016
"CLAEVEN, LTD.",MISCELLANEOUS OTHER EXPENSE,$436.75 ,3/28/2016
"CLAEVEN, LTD.",MISCELLANEOUS OTHER EXPENSE,$437.50 ,3/31/2016
"CLAEVEN, LTD.",RENTAL EXPENSE,$500.75 ,3/31/2016
"CLAEVEN, LTD.",MISCELLANEOUS OTHER EXPENSE,$780 ,6/20/2016
"CLAEVEN, LTD.",MISCELLANEOUS OTHER EXPENSE,$720 ,6/21/2016
"CLAEVEN, LTD.",MISCELLANEOUS OTHER EXPENSE,$420 ,6/27/2016
"CLAEVEN, LTD.",MISCELLANEOUS OTHER EXPENSE,"$3,036 ",6/28/2016
"CLAEVEN, LTD.",MISCELLANEOUS OTHER EXPENSE,$420 ,7/11/2016
"CLAEVEN, LTD.",MISCELLANEOUS OTHER EXPENSE,$780 ,7/25/2016
"CLAEVEN, LTD.",MISCELLANEOUS OTHER EXPENSE,"$1,080 ",7/27/2016
"CLAEVEN, LTD.",MISCELLANEOUS OTHER EXPENSE,"$1,500 ",8/1/2016
"CLAEVEN, LTD.",MISCELLANEOUS OTHER EXPENSE,$900 ,8/8/2016
"CLAEVEN, LTD.",MISCELLANEOUS OTHER EXPENSE,$840 ,8/12/2016
"CLAEVEN, LTD.",MISCELLANEOUS OTHER EXPENSE,$900 ,8/15/2016
"CLAEVEN, LTD.",MISCELLANEOUS OTHER EXPENSE,$660 ,8/16/2016
"CLAEVEN, LTD.",MISCELLANEOUS OTHER EXPENSE,"$1,740 ",8/22/2016
"CLAEVEN, LTD.",MISCELLANEOUS OTHER EXPENSE,$780 ,8/29/2016
"CLAEVEN, LTD.",MISCELLANEOUS OTHER EXPENSE,$420 ,9/6/2016
"CLAEVEN, LTD.",MISCELLANEOUS OTHER EXPENSE,$420 ,9/12/2016
"CLAEVEN, LTD.",MISCELLANEOUS OTHER EXPENSE,"$1,380 ",9/13/2016
"CLAEVEN, LTD.",MISCELLANEOUS OTHER EXPENSE,$960 ,9/19/2016
"CLAEVEN, LTD.",MISCELLANEOUS OTHER EXPENSE,$660 ,9/22/2016
"CLAEVEN, LTD.",MISCELLANEOUS OTHER EXPENSE,"$1,320 ",10/10/2016
"CLAEVEN, LTD.",MISCELLANEOUS OTHER EXPENSE,"$2,794 ",10/24/2016
"CLAEVEN, LTD.",MISCELLANEOUS OTHER EXPENSE,"$1,440 ",11/2/2016
"CLAEVEN, LTD.",MISCELLANEOUS OTHER EXPENSE,"$2,820 ",11/7/2016
"CLAEVEN, LTD.",MISCELLANEOUS OTHER EXPENSE,$420 ,11/9/2016
"CLAEVEN, LTD.",MISCELLANEOUS OTHER EXPENSE,"$1,080 ",11/14/2016
"CLAEVEN, LTD.",MISCELLANEOUS OTHER EXPENSE,$300 ,11/15/2016
"CLAEVEN, LTD.",MISCELLANEOUS OTHER EXPENSE,"$2,760 ",11/22/2016
"CLAEVEN, LTD.",MISCELLANEOUS OTHER EXPENSE,"$1,200 ",11/28/2016
"CLAEVEN, LTD.",MISCELLANEOUS OTHER EXPENSE,"$1,680 ",12/1/2016
"CLAEVEN, LTD.",MISCELLANEOUS OTHER EXPENSE,"$1,320 ",12/5/2016
"CLAEVEN, LTD.",MISCELLANEOUS OTHER EXPENSE,"$2,460 ",12/12/2016
"CLAEVEN, LTD.",MISCELLANEOUS OTHER EXPENSE,$660 ,12/15/2016
"CLAEVEN, LTD.",MISCELLANEOUS OTHER EXPENSE,$840 ,12/27/2016
"CLARITY PARTNERS, LLC",PROFESSIONAL SERVICES,"$79,847.50 ",2/25/2016
"CLARITY PARTNERS, LLC",PROFESSIONAL SERVICES,"$180,414.09 ",4/27/2016
"CLARITY PARTNERS, LLC",PROFESSIONAL SERVICES,"$244,665.03 ",5/23/2016
"CLARITY PARTNERS, LLC",PROFESSIONAL SERVICES,"$179,337.01 ",6/2/2016
"CLARITY PARTNERS, LLC",PROFESSIONAL SERVICES,"$428,690.84 ",8/1/2016
"CLARITY PARTNERS, LLC",PROFESSIONAL SERVICES,"$386,139.93 ",8/22/2016
"CLARITY PARTNERS, LLC",PROFESSIONAL SERVICES,"$381,076.96 ",10/31/2016
"CLARITY PARTNERS, LLC",PROFESSIONAL SERVICES,"$86,994.66 ",11/10/2016
"CLARITY PARTNERS, LLC",PROFESSIONAL SERVICES,"$62,780.50 ",12/27/2016
CLARK FILTER,MATERIALS - INVENTORY,"$4,207.28 ",1/19/2016
CLARK FILTER,MATERIALS - INVENTORY,"$6,718.26 ",2/4/2016
CLARK FILTER,MATERIALS - INVENTORY,"$1,631.52 ",2/9/2016
CLARK FILTER,MATERIALS - INVENTORY,$380.16 ,2/17/2016
CLARK FILTER,MATERIALS - INVENTORY,"$2,175.36 ",4/18/2016
CLARK FILTER,MATERIALS - INVENTORY,$409.68 ,4/25/2016
CLARK FILTER,MATERIALS - INVENTORY,"$1,253.12 ",5/9/2016
CLARK FILTER,MATERIALS - INVENTORY,"$8,056.50 ",5/16/2016
CLARK FILTER,MATERIALS - INVENTORY,"$3,697.66 ",6/13/2016
CLARK FILTER,MATERIALS - INVENTORY,"$3,068 ",6/14/2016
CLARK FILTER,MATERIALS - INVENTORY,"$4,054.74 ",6/29/2016
CLARK FILTER,MATERIALS - INVENTORY,"$3,703.26 ",7/5/2016
CLARK FILTER,MATERIALS - INVENTORY,"$3,761.28 ",7/25/2016
CLARK FILTER,MATERIALS - INVENTORY,$589.32 ,7/26/2016
CLARK FILTER,MATERIALS - INVENTORY,"$4,041.44 ",8/9/2016
CLARK FILTER,MATERIALS - INVENTORY,"$1,982.64 ",8/15/2016
CLARK FILTER,MATERIALS - INVENTORY,"$8,090.54 ",8/29/2016
CLARK FILTER,MATERIALS - INVENTORY,"$6,932.16 ",9/6/2016
CLARK FILTER,MATERIALS - INVENTORY,"$4,145.88 ",9/19/2016
CLARK FILTER,MATERIALS - INVENTORY,$576.24 ,10/10/2016
CLARK FILTER,MATERIALS - INVENTORY,"$3,135.60 ",10/17/2016
CLARK FILTER,MATERIALS - INVENTORY,"$2,253.26 ",10/18/2016
CLARK FILTER,MATERIALS - INVENTORY,"$2,593.32 ",10/25/2016
CLARK FILTER,MATERIALS - INVENTORY,"$1,283.52 ",11/2/2016
CLARK FILTER,MATERIALS - INVENTORY,"$3,517.56 ",11/15/2016
CLARK FILTER,MATERIALS - INVENTORY,"$4,965.52 ",11/21/2016
CLARK FILTER,MATERIALS - INVENTORY,"$2,019.52 ",11/22/2016
CLARK FILTER,MATERIALS - INVENTORY,"$4,162.40 ",12/5/2016
CLARK FILTER,MATERIALS - INVENTORY,"$2,671.40 ",12/12/2016
CLARK FILTER,MATERIALS - INVENTORY,"$3,239.58 ",12/13/2016
CLARKE ENV. MOSQUITO MANAGEMENT INC,OUTSIDE SERVICES,"$1,475 ",8/1/2016
CLARKE ENV. MOSQUITO MANAGEMENT INC,OUTSIDE SERVICES,"$1,475 ",8/22/2016
CLARKE ENV. MOSQUITO MANAGEMENT INC,OUTSIDE SERVICES,"$2,950 ",8/29/2016
CLARKE ENV. MOSQUITO MANAGEMENT INC,OUTSIDE SERVICES,"$1,475 ",9/6/2016
CLARKE ENV. MOSQUITO MANAGEMENT INC,OUTSIDE SERVICES,"$5,900 ",9/26/2016
CLARKE ENV. MOSQUITO MANAGEMENT INC,OUTSIDE SERVICES,"$1,475 ",10/18/2016
CLARKE ENV. MOSQUITO MANAGEMENT INC,OUTSIDE SERVICES,"$1,475 ",10/31/2016
CLARKE ENV. MOSQUITO MANAGEMENT INC,OUTSIDE SERVICES,$553 ,11/7/2016
CLARKE ENV. MOSQUITO MANAGEMENT INC,OUTSIDE SERVICES,"$1,475 ",11/21/2016
CLARKE ENV. MOSQUITO MANAGEMENT INC,OUTSIDE SERVICES,"$4,425 ",11/28/2016
CLASS C SOLUTIONS GROUP,MATERIALS - CAPITAL,"$19,112.32 ",1/4/2016
CLASS C SOLUTIONS GROUP,MATERIALS - NON-INVENTORY,$145.20 ,1/13/2016
CLASS C SOLUTIONS GROUP,MATERIALS - NON-INVENTORY,$528.13 ,1/13/2016
CLASS C SOLUTIONS GROUP,MATERIALS - NON-INVENTORY,$992.21 ,1/13/2016
CLASS C SOLUTIONS GROUP,MATERIALS - CAPITAL,"$4,392 ",1/14/2016
CLASS C SOLUTIONS GROUP,MATERIALS - NON-INVENTORY,"$1,510.10 ",1/14/2016
CLASS C SOLUTIONS GROUP,MATERIALS - NON-INVENTORY,"$3,495.50 ",1/20/2016
CLASS C SOLUTIONS GROUP,MATERIALS - NON-INVENTORY,$3.50 ,1/21/2016
CLASS C SOLUTIONS GROUP,MATERIALS - NON-INVENTORY,"$1,324.27 ",1/25/2016
CLASS C SOLUTIONS GROUP,MATERIALS - NON-INVENTORY,"$7,157.35 ",1/25/2016
CLASS C SOLUTIONS GROUP,MATERIALS - NON-INVENTORY,$677 ,1/26/2016
CLASS C SOLUTIONS GROUP,MATERIALS - NON-INVENTORY,"$8,280.20 ",2/1/2016
CLASS C SOLUTIONS GROUP,MATERIALS - NON-INVENTORY,"$6,424.60 ",2/3/2016
CLASS C SOLUTIONS GROUP,MATERIALS - NON-INVENTORY,"$12,875.60 ",2/9/2016
CLASS C SOLUTIONS GROUP,MATERIALS - NON-INVENTORY,"$12,013.04 ",2/16/2016
CLASS C SOLUTIONS GROUP,MATERIALS - NON-INVENTORY,"$5,063.30 ",2/18/2016
CLASS C SOLUTIONS GROUP,MATERIALS - NON-INVENTORY,"$4,631.43 ",2/22/2016
CLASS C SOLUTIONS GROUP,MATERIALS - NON-INVENTORY,"$3,846.49 ",2/23/2016
CLASS C SOLUTIONS GROUP,MATERIALS - NON-INVENTORY,$93.35 ,2/24/2016
CLASS C SOLUTIONS GROUP,MATERIALS - CAPITAL,"$8,559.30 ",2/29/2016
CLASS C SOLUTIONS GROUP,MATERIALS - NON-INVENTORY,"$1,736 ",2/29/2016
CLASS C SOLUTIONS GROUP,MATERIALS - NON-INVENTORY,$283.05 ,2/29/2016
CLASS C SOLUTIONS GROUP,MATERIALS - CAPITAL,"$1,157.05 ",3/7/2016
CLASS C SOLUTIONS GROUP,OUTSIDE SERVICES - CAPITAL,"$2,380.90 ",3/7/2016
CLASS C SOLUTIONS GROUP,MATERIALS - NON-INVENTORY,"$2,572 ",3/7/2016
CLASS C SOLUTIONS GROUP,MATERIALS - NON-INVENTORY,"$13,447.02 ",3/7/2016
CLASS C SOLUTIONS GROUP,MATERIALS - NON-INVENTORY,"$1,404.60 ",3/7/2016
CLASS C SOLUTIONS GROUP,MATERIALS - NON-INVENTORY,"$4,062.75 ",3/8/2016
CLASS C SOLUTIONS GROUP,MATERIALS - NON-INVENTORY,$324.99 ,3/8/2016
CLASS C SOLUTIONS GROUP,MATERIALS - NON-INVENTORY,"$1,447 ",3/15/2016
CLASS C SOLUTIONS GROUP,MATERIALS - NON-INVENTORY,"$4,512 ",3/15/2016
CLASS C SOLUTIONS GROUP,MATERIALS - NON-INVENTORY,"$2,969.50 ",3/17/2016
CLASS C SOLUTIONS GROUP,MATERIALS - NON-INVENTORY,$0.05 ,3/17/2016
CLASS C SOLUTIONS GROUP,MATERIALS - CAPITAL,"$1,792.85 ",3/21/2016
CLASS C SOLUTIONS GROUP,MATERIALS - NON-INVENTORY,"$2,821.25 ",3/21/2016
CLASS C SOLUTIONS GROUP,MATERIALS - NON-INVENTORY,$487.26 ,3/21/2016
CLASS C SOLUTIONS GROUP,MATERIALS - NON-INVENTORY,$716.15 ,3/23/2016
CLASS C SOLUTIONS GROUP,MATERIALS - NON-INVENTORY,"$5,077.97 ",3/24/2016
CLASS C SOLUTIONS GROUP,MATERIALS - NON-INVENTORY,"$15,935.30 ",3/29/2016
CLASS C SOLUTIONS GROUP,MATERIALS - NON-INVENTORY,$481 ,3/30/2016
CLASS C SOLUTIONS GROUP,MATERIALS - NON-INVENTORY,$232.74 ,4/4/2016
CLASS C SOLUTIONS GROUP,MATERIALS - NON-INVENTORY,$386.20 ,4/11/2016
CLASS C SOLUTIONS GROUP,MATERIALS - NON-INVENTORY,"$20,905.16 ",4/11/2016
CLASS C SOLUTIONS GROUP,MATERIALS - NON-INVENTORY,"$5,850.80 ",4/11/2016
CLASS C SOLUTIONS GROUP,MATERIALS - NON-INVENTORY,$9.80 ,4/12/2016
CLASS C SOLUTIONS GROUP,MATERIALS - CAPITAL,"$1,141.80 ",4/18/2016
CLASS C SOLUTIONS GROUP,MATERIALS - NON-INVENTORY,$31.10 ,4/18/2016
CLASS C SOLUTIONS GROUP,MATERIALS - NON-INVENTORY,$942.10 ,4/18/2016
CLASS C SOLUTIONS GROUP,MATERIALS - NON-INVENTORY,$721.48 ,4/18/2016
CLASS C SOLUTIONS GROUP,MATERIALS - CAPITAL,"$1,513.69 ",4/19/2016
CLASS C SOLUTIONS GROUP,MATERIALS - NON-INVENTORY,$247.17 ,4/19/2016
CLASS C SOLUTIONS GROUP,MATERIALS - NON-INVENTORY,$72.63 ,4/19/2016
CLASS C SOLUTIONS GROUP,MATERIALS - CAPITAL,$45.10 ,4/25/2016
CLASS C SOLUTIONS GROUP,MATERIALS - NON-INVENTORY,"$3,577.12 ",4/25/2016
CLASS C SOLUTIONS GROUP,MATERIALS - CAPITAL,"$1,154.30 ",4/26/2016
CLASS C SOLUTIONS GROUP,MATERIALS - NON-INVENTORY,"$2,066.23 ",4/26/2016
CLASS C SOLUTIONS GROUP,MATERIALS - NON-INVENTORY,$250.60 ,4/28/2016
CLASS C SOLUTIONS GROUP,MATERIALS - NON-INVENTORY,"$9,850.13 ",4/28/2016
CLASS C SOLUTIONS GROUP,MATERIALS - NON-INVENTORY,"$2,487.78 ",4/28/2016
CLASS C SOLUTIONS GROUP,MATERIALS - NON-INVENTORY,$465.26 ,4/28/2016
CLASS C SOLUTIONS GROUP,MATERIALS - NON-INVENTORY,$481.34 ,4/28/2016
CLASS C SOLUTIONS GROUP,MATERIALS - CAPITAL,"$1,078.72 ",5/2/2016
CLASS C SOLUTIONS GROUP,MATERIALS - NON-INVENTORY,"$1,744.50 ",5/2/2016
CLASS C SOLUTIONS GROUP,MATERIALS - NON-INVENTORY,$280.58 ,5/2/2016
CLASS C SOLUTIONS GROUP,MATERIALS - NON-INVENTORY,"$6,211 ",5/2/2016
CLASS C SOLUTIONS GROUP,MATERIALS - NON-INVENTORY,$210 ,5/3/2016
CLASS C SOLUTIONS GROUP,MATERIALS - NON-INVENTORY,"$3,918.40 ",5/3/2016
CLASS C SOLUTIONS GROUP,MATERIALS - NON-INVENTORY,"$1,291.75 ",5/3/2016
CLASS C SOLUTIONS GROUP,MATERIALS - CAPITAL,"$10,305.62 ",5/9/2016
CLASS C SOLUTIONS GROUP,MATERIALS - NON-INVENTORY,$166.50 ,5/9/2016
CLASS C SOLUTIONS GROUP,MATERIALS - NON-INVENTORY,$992.50 ,5/9/2016
CLASS C SOLUTIONS GROUP,MATERIALS - NON-INVENTORY,"$3,373.96 ",5/9/2016
CLASS C SOLUTIONS GROUP,MATERIALS - NON-INVENTORY,"$2,919.19 ",5/9/2016
CLASS C SOLUTIONS GROUP,MATERIALS - NON-INVENTORY,$252.53 ,5/9/2016
CLASS C SOLUTIONS GROUP,MATERIALS - NON-INVENTORY,$486.96 ,5/10/2016
CLASS C SOLUTIONS GROUP,MATERIALS - NON-INVENTORY,$147.56 ,5/10/2016
CLASS C SOLUTIONS GROUP,MATERIALS - CAPITAL,$124.95 ,5/12/2016
CLASS C SOLUTIONS GROUP,MATERIALS - NON-INVENTORY,"$1,086.16 ",5/12/2016
CLASS C SOLUTIONS GROUP,MATERIALS - NON-INVENTORY,$86.15 ,5/12/2016
CLASS C SOLUTIONS GROUP,MATERIALS - CAPITAL,"$1,212.10 ",5/16/2016
CLASS C SOLUTIONS GROUP,MATERIALS - NON-INVENTORY,$260 ,5/16/2016
CLASS C SOLUTIONS GROUP,MATERIALS - NON-INVENTORY,$448 ,5/16/2016
CLASS C SOLUTIONS GROUP,MATERIALS - NON-INVENTORY,$446.80 ,5/16/2016
CLASS C SOLUTIONS GROUP,MATERIALS - CAPITAL,$932.43 ,5/18/2016
CLASS C SOLUTIONS GROUP,MATERIALS - NON-INVENTORY,"$4,823.47 ",5/23/2016
CLASS C SOLUTIONS GROUP,MATERIALS - NON-INVENTORY,$401.94 ,5/24/2016
CLASS C SOLUTIONS GROUP,MATERIALS - NON-INVENTORY,$159.47 ,6/2/2016
CLASS C SOLUTIONS GROUP,MATERIALS - NON-INVENTORY,$18.50 ,6/7/2016
CLASS C SOLUTIONS GROUP,MATERIALS - NON-INVENTORY,$922.10 ,6/7/2016
CLASS C SOLUTIONS GROUP,MATERIALS - NON-INVENTORY,"$6,016.92 ",6/13/2016
CLASS C SOLUTIONS GROUP,MATERIALS - NON-INVENTORY,"$7,068.75 ",6/13/2016
CLASS C SOLUTIONS GROUP,MATERIALS - NON-INVENTORY,$66.50 ,6/13/2016
CLASS C SOLUTIONS GROUP,MATERIALS - NON-INVENTORY,"$1,416.75 ",6/13/2016
CLASS C SOLUTIONS GROUP,MATERIALS - NON-INVENTORY,$186 ,6/16/2016
CLASS C SOLUTIONS GROUP,MATERIALS - CAPITAL,"$2,598.67 ",6/20/2016
CLASS C SOLUTIONS GROUP,MATERIALS - NON-INVENTORY,$792.62 ,6/20/2016
CLASS C SOLUTIONS GROUP,MATERIALS - NON-INVENTORY,$484.82 ,6/20/2016
CLASS C SOLUTIONS GROUP,MATERIALS - NON-INVENTORY,"$5,392.71 ",6/22/2016
CLASS C SOLUTIONS GROUP,MATERIALS - NON-INVENTORY,$422.73 ,6/22/2016
CLASS C SOLUTIONS GROUP,MATERIALS - CAPITAL,$36.60 ,6/28/2016
CLASS C SOLUTIONS GROUP,MATERIALS - NON-INVENTORY,"$3,300.30 ",6/28/2016
CLASS C SOLUTIONS GROUP,MATERIALS - NON-INVENTORY,$543.05 ,6/28/2016
CLASS C SOLUTIONS GROUP,MATERIALS - NON-INVENTORY,"$1,929.96 ",6/28/2016
CLASS C SOLUTIONS GROUP,MATERIALS - CAPITAL,$544.15 ,6/29/2016
CLASS C SOLUTIONS GROUP,MATERIALS - NON-INVENTORY,$910.48 ,6/29/2016
CLASS C SOLUTIONS GROUP,MATERIALS - NON-INVENTORY,$543.05 ,6/29/2016
CLASS C SOLUTIONS GROUP,MATERIALS - NON-INVENTORY,"$1,929.96 ",6/29/2016
CLASS C SOLUTIONS GROUP,MATERIALS - CAPITAL,"$2,023.98 ",7/5/2016
CLASS C SOLUTIONS GROUP,MATERIALS - NON-INVENTORY,"$3,634.60 ",7/5/2016
CLASS C SOLUTIONS GROUP,MATERIALS - NON-INVENTORY,"$19,667.18 ",7/5/2016
CLASS C SOLUTIONS GROUP,MATERIALS - NON-INVENTORY,"$1,292.02 ",7/5/2016
CLASS C SOLUTIONS GROUP,MATERIALS - NON-INVENTORY,$440.53 ,7/6/2016
CLASS C SOLUTIONS GROUP,MATERIALS - NON-INVENTORY,$104.50 ,7/7/2016
CLASS C SOLUTIONS GROUP,MATERIALS - INVENTORY,$758 ,7/11/2016
CLASS C SOLUTIONS GROUP,MATERIALS - CAPITAL,"$8,464.47 ",7/11/2016
CLASS C SOLUTIONS GROUP,MATERIALS - NON-INVENTORY,"$2,199.41 ",7/11/2016
CLASS C SOLUTIONS GROUP,MATERIALS - NON-INVENTORY,$987.40 ,7/11/2016
CLASS C SOLUTIONS GROUP,MATERIALS - NON-INVENTORY,"$2,962.67 ",7/11/2016
CLASS C SOLUTIONS GROUP,MATERIALS - CAPITAL,$743.89 ,7/18/2016
CLASS C SOLUTIONS GROUP,MATERIALS - NON-INVENTORY,"$2,507 ",7/18/2016
CLASS C SOLUTIONS GROUP,MATERIALS - NON-INVENTORY,$439.72 ,7/18/2016
CLASS C SOLUTIONS GROUP,MATERIALS - CAPITAL,"$6,825.76 ",7/19/2016
CLASS C SOLUTIONS GROUP,MATERIALS - NON-INVENTORY,$303.40 ,7/21/2016
CLASS C SOLUTIONS GROUP,MATERIALS - CAPITAL,"$1,780.25 ",7/25/2016
CLASS C SOLUTIONS GROUP,MATERIALS - NON-INVENTORY,"$4,543.47 ",7/25/2016
CLASS C SOLUTIONS GROUP,MATERIALS - NON-INVENTORY,$260.03 ,7/26/2016
CLASS C SOLUTIONS GROUP,MATERIALS - CAPITAL,$751.60 ,7/28/2016
CLASS C SOLUTIONS GROUP,MATERIALS - NON-INVENTORY,"$4,978.60 ",8/1/2016
CLASS C SOLUTIONS GROUP,MATERIALS - NON-INVENTORY,$100.06 ,8/1/2016
CLASS C SOLUTIONS GROUP,MATERIALS - NON-INVENTORY,"$1,375.15 ",8/2/2016
CLASS C SOLUTIONS GROUP,MATERIALS - NON-INVENTORY,"$1,171.18 ",8/2/2016
CLASS C SOLUTIONS GROUP,MATERIALS - NON-INVENTORY,$634.80 ,8/8/2016
CLASS C SOLUTIONS GROUP,MATERIALS - NON-INVENTORY,$59.08 ,8/8/2016
CLASS C SOLUTIONS GROUP,MATERIALS - NON-INVENTORY,$75.24 ,8/12/2016
CLASS C SOLUTIONS GROUP,MATERIALS - NON-INVENTORY,$364 ,8/15/2016
CLASS C SOLUTIONS GROUP,MATERIALS - NON-INVENTORY,$405.31 ,8/15/2016
CLASS C SOLUTIONS GROUP,MATERIALS - NON-INVENTORY,"$7,785.05 ",8/15/2016
CLASS C SOLUTIONS GROUP,MATERIALS - NON-INVENTORY,$115.80 ,8/16/2016
CLASS C SOLUTIONS GROUP,MATERIALS - CAPITAL,"$3,588.60 ",8/22/2016
CLASS C SOLUTIONS GROUP,MATERIALS - NON-INVENTORY,"$2,017.28 ",8/22/2016
CLASS C SOLUTIONS GROUP,MATERIALS - NON-INVENTORY,"$5,045.60 ",8/22/2016
CLASS C SOLUTIONS GROUP,MATERIALS - NON-INVENTORY,$29.65 ,8/22/2016
CLASS C SOLUTIONS GROUP,MATERIALS - NON-INVENTORY,$429 ,8/23/2016
CLASS C SOLUTIONS GROUP,MATERIALS - NON-INVENTORY,"$1,775.96 ",8/23/2016
CLASS C SOLUTIONS GROUP,MATERIALS - NON-INVENTORY,"$3,078.33 ",8/29/2016
CLASS C SOLUTIONS GROUP,MATERIALS - NON-INVENTORY,"$6,215.40 ",8/29/2016
CLASS C SOLUTIONS GROUP,MATERIALS - NON-INVENTORY,$178.35 ,8/29/2016
CLASS C SOLUTIONS GROUP,MATERIALS - CAPITAL,$411.94 ,8/31/2016
CLASS C SOLUTIONS GROUP,MATERIALS - NON-INVENTORY,$65.77 ,8/31/2016
CLASS C SOLUTIONS GROUP,MATERIALS - NON-INVENTORY,$63 ,9/6/2016
CLASS C SOLUTIONS GROUP,MATERIALS - NON-INVENTORY,$571.30 ,9/8/2016
CLASS C SOLUTIONS GROUP,MATERIALS - NON-INVENTORY,$225.59 ,9/8/2016
CLASS C SOLUTIONS GROUP,MATERIALS - NON-INVENTORY,$91.96 ,9/12/2016
CLASS C SOLUTIONS GROUP,MATERIALS - NON-INVENTORY,"$1,696.62 ",9/12/2016
CLASS C SOLUTIONS GROUP,MATERIALS - NON-INVENTORY,"$1,166.60 ",9/12/2016
CLASS C SOLUTIONS GROUP,MATERIALS - CAPITAL,"$2,746.71 ",9/20/2016
CLASS C SOLUTIONS GROUP,MATERIALS - NON-INVENTORY,"$5,433.53 ",9/20/2016
CLASS C SOLUTIONS GROUP,MATERIALS - NON-INVENTORY,$843 ,9/20/2016
CLASS C SOLUTIONS GROUP,MATERIALS - CAPITAL,$935.50 ,9/26/2016
CLASS C SOLUTIONS GROUP,MATERIALS - NON-INVENTORY,"$1,077.20 ",9/26/2016
CLASS C SOLUTIONS GROUP,MATERIALS - NON-INVENTORY,"$1,158.24 ",9/28/2016
CLASS C SOLUTIONS GROUP,MATERIALS - NON-INVENTORY,$268.38 ,9/28/2016
CLASS C SOLUTIONS GROUP,MATERIALS - NON-INVENTORY,$721 ,10/3/2016
CLASS C SOLUTIONS GROUP,MATERIALS - NON-INVENTORY,"$1,312 ",10/3/2016
CLASS C SOLUTIONS GROUP,MATERIALS - NON-INVENTORY,"$1,417.71 ",10/3/2016
CLASS C SOLUTIONS GROUP,MATERIALS - NON-INVENTORY,$184.50 ,10/5/2016
CLASS C SOLUTIONS GROUP,MATERIALS - CAPITAL,"$1,516.73 ",10/6/2016
CLASS C SOLUTIONS GROUP,MATERIALS - NON-INVENTORY,$336.70 ,10/6/2016
CLASS C SOLUTIONS GROUP,MATERIALS - CAPITAL,$388.50 ,10/10/2016
CLASS C SOLUTIONS GROUP,MATERIALS - NON-INVENTORY,"$4,798.30 ",10/10/2016
CLASS C SOLUTIONS GROUP,MATERIALS - NON-INVENTORY,"$3,442.30 ",10/10/2016
CLASS C SOLUTIONS GROUP,MATERIALS - NON-INVENTORY,$392.34 ,10/13/2016
CLASS C SOLUTIONS GROUP,MATERIALS - NON-INVENTORY,$528.82 ,10/13/2016
CLASS C SOLUTIONS GROUP,MATERIALS - NON-INVENTORY,$641.95 ,10/13/2016
CLASS C SOLUTIONS GROUP,MATERIALS - NON-INVENTORY,"$1,358 ",10/13/2016
CLASS C SOLUTIONS GROUP,MATERIALS - CAPITAL,"$3,243 ",10/17/2016
CLASS C SOLUTIONS GROUP,MATERIALS - NON-INVENTORY,$562.06 ,10/18/2016
CLASS C SOLUTIONS GROUP,MATERIALS - NON-INVENTORY,"$1,761.76 ",10/18/2016
CLASS C SOLUTIONS GROUP,MATERIALS - NON-INVENTORY,"$2,367.82 ",10/20/2016
CLASS C SOLUTIONS GROUP,MATERIALS - CAPITAL,"$2,280.93 ",10/24/2016
CLASS C SOLUTIONS GROUP,MATERIALS - NON-INVENTORY,$442.40 ,10/24/2016
CLASS C SOLUTIONS GROUP,MATERIALS - CAPITAL,$35.98 ,11/1/2016
CLASS C SOLUTIONS GROUP,MATERIALS - NON-INVENTORY,"$1,709.90 ",11/1/2016
CLASS C SOLUTIONS GROUP,MATERIALS - NON-INVENTORY,"$8,226 ",11/1/2016
CLASS C SOLUTIONS GROUP,MATERIALS - NON-INVENTORY,$917.08 ,11/1/2016
CLASS C SOLUTIONS GROUP,MATERIALS - NON-INVENTORY,$106.20 ,11/1/2016
CLASS C SOLUTIONS GROUP,MATERIALS - NON-INVENTORY,$186 ,11/28/2016
CLASS C SOLUTIONS GROUP,MATERIALS - NON-INVENTORY,$131.50 ,11/28/2016
CLASS C SOLUTIONS GROUP,MATERIALS - NON-INVENTORY,$320.52 ,11/28/2016
CLASS C SOLUTIONS GROUP,MATERIALS - CAPITAL,"$6,581.74 ",12/5/2016
